{"text_format":"2","workbook":"xlsx","n_sheets":10,"sheets":["прил 1 (2013 доходы)","прил3 (админ)","прил4","прил5","прил6","прил7","прил8","прил9","прил10","прил 18 источн.13"],"not_rendered":{"charts":0,"images":0,"macros":0,"external_links":0,"defined_names":20,"comments":0,"pivot_tables":0},"unopened":[],"bounds":{"document_bytes":16777216,"sheet_cells":100000,"run_cost":"one","rows_first":2000,"rows_last":500,"rows_between":2000,"halvings":0,"cell_chars":16384,"cell_head_chars":4096},"cells_cut":0,"cells_raw":0,"read":"whole","date_system":"1900"}

{"sheet":"прил 1 (2013 доходы)","index":0,"n_rows":147,"n_cols":6,"rows_kept":147,"cut":false,"hidden":false,"merged":[[74,6,74,15],[76,6,76,11],[5,0,6,3],[8,0,9,0],[8,1,8,2],[8,3,9,3],[8,5,9,5],[8,4,9,4]]}
[]
[]
[]
[]
[]
["Прогнозируемые доходы бюджета Черемховского районного муниципального образования на 2013 год  "]
[]
[null,null,null,"(тыс. рублей)"]
["Наименование","Код бюджетной классификации",null,"Прогноз на 2013 год  (май)","Прогноз на 2013 год  ","ОТК"]
[null,"главного администратора доходов","доходов районного бюджета"]
["НАЛОГОВЫЕ И НЕНАЛОГОВЫЕ ДОХОДЫ","000","1 00 00000 00 0000 000",{"$f":"D12+D17+D27+D31+D35+D40+D46+D53+D58+D83","v":87014.12999999999},{"$f":"E12+E17+E27+E31+E35+E40+E46+E53+E58+E83","v":87824.12999999999},{"$f":"E11-D11","v":810}]
["НАЛОГИ НА ПРИБЫЛЬ, ДОХОДЫ","182","1 01 00000 00 0000 000",{"$f":"D13+D14+D15+D16","v":53100},{"$f":"E13+E14+E15+E16","v":53200},{"$f":"E12-D12","v":100}]
["Налог на доходы физических лиц с доходов, источником которых является налоговый агент, за исключением доходов, в отношении которых исчисление и уплата налога осуществляются в соответствии со статьями 227,227¹ и 228 Налогового кодекса Российской Федерации","182","1 01 02010 01 0000 110",52835.4,52835.4,0]
["Налог на доходы физических лиц с доходов, полученных от осуществления деятельности физическими лицами,зарегистрированными в качестве индивидуальных предпринимателей,нотариусов,занимающихся частной практикой,адвокатов,учредивших адвокатские кабинеты и других лиц, занимающихся частной практикой","182","1 01 02020 01 0000 110",129.4,129.4,0]
["Налог на доходы физических лиц с доходов,  полученных физическими лицами, не являющимися налоговыми резидентами ","182","1 01 02030 01 0000 110",131.69999999999999,231.7,100]
["Налог на доходы физических лиц в виде фиксированных авансовых платежей с доходов, полученных физическими лицами, являющимися иностранными гражданами, осуществляющими трудовую деятельность по найму у физических лиц на основании патента ","182","1 01 02040 01 0000 110",3.5,3.5,0]
["НАЛОГИ НА СОВОКУПНЫЙ ДОХОД","182","1 05 00000 00 0000 000",{"$f":"D18+D24+D25+D26","v":9300.4},{"$f":"E18+E24+E25+E26","v":9603.2000000000007},302.80000000000109]
["Налог, взимаемый в связи с применением упрощенной системы налогообложения ","182","1 05 01000 00 0000 110",{"$f":"D19+D20+D21+D22","v":3770.3999999999996},{"$f":"E19+E20+E21+E22","v":3783.2},12.800000000000182]
["Налог, взимаемый с налогоплательщиков, выбравших в качестве объекта налогообложения  доходы","182","1 05 01010 01 0000 110",1487,1487,0]
["Налог, взимаемый с налогоплательщиков, выбравших в качестве объекта налогообложения доходы, уменьшенные на величину расходов","182","1 05 01020 01 0000 110",1540,1540,0]
["Налог, взимаемый с налогоплательщиков, выбравших в качестве объекта налогообложения доходы, уменьшенные на величину расходов (за налоговые периоды, истекшие до 1 января 2011 года)","182","1 05 01022 01 0000 110",106.2,106.2,0]
["Минимальный налог, зачисляемый в бюджеты субьектов РФ","182","1 05 01050 01 0000 110",637.20000000000005,650,12.799999999999955]
["Налог, взимаемый в связи с применением патентной системы налогообложения","182",null,0,null,0]
["Единый налог на вмененный доход для отдельных видов деятельности","182","1 05 02000 02 0000 110",5310,5310,0]
["Единый сельскохозяйственный налог ","182","1 05 03000 01 0000 110",210,500,290]
["Налог, взимаемый в связи с применением патентной системы налогообложения","182","1 05 04000 01 0000 110",10,10,0]
["ГОСУДАРСТВЕННАЯ ПОШЛИНА","000","1 08 00000 00 0000 000",{"$f":"D28+D29+D30","v":1028},{"$f":"E28+E29+E30","v":1308},280]
["Государственная пошлина по делам, рассматриваемым в судах общей юрисдикции, мировыми судьями (за исключением Верховного Суда Российской Федерации)","182","1 08 03010 01 0000 110",308,308,0]
["Государственная пошлина за совершение действий, связанных с лицензированием, с проведением аттестации в случаях, если такая аттестация предусмотрена законодательством Российской Федерации, зачисляемая в бюджеты муниципальных районов","917","1 08 07084 01 1000 110",720,1000,280]
["Государственная пошлина за государственную регистрацию транспортных средств и иные юридически значимые действия, связанные с изменениями и выдачей документов на транспортные средства, выдачей регистрационных знаков, приемом квалификационных экзаменов на получение права на управление транспортными средствами","000","1 08 07141 01 0000 110",null,null,0]
["ЗАДОЛЖЕННОСТЬ И ПЕРЕРАСЧЕТЫ ПО ОТМЕНЕННЫМ НАЛОГАМ, СБОРАМ И ИНЫМ ОБЯЗАТЕЛЬНЫМ ПЛАТЕЖАМ","182","1 09 00000 00 0000 000",{"$f":"D33+D34+D32","v":2},{"$f":"E33+E34+E32","v":110},108]
["Налог на прибыль организаций, зачислявшийся до 1 января 2005 года в местные бюджеты","182","1 09 01030 05 0000 110",0.05,0.05,0]
["Налог на имущество предприятий","182","1 09 04010 02 0000 110",0.45,0.45,0]
["Налог с продаж","182","1 09 06010 02 0000 110",1.5,109.5,108]
["ДОХОДЫ ОТ ИСПОЛЬЗОВАНИЯ ИМУЩЕСТВА, НАХОДЯЩЕГОСЯ В ГОСУДАРСТВЕННОЙ И МУНИЦИПАЛЬНОЙ СОБСТВЕННОСТИ","000","1 11 00000 00 0000 000",{"$f":"D36+D39","v":9990},{"$f":"E36+E39","v":9990},0]
["Доходы, получаемые в виде арендной  платы за земельные участки,государственная собственность на которые не разграничена и которые расположеныв границах поселений, а также средства от продажи права на заключение договоров аренды указанных земельных участков","000","1 11 05013 10 0000 120",{"$f":"D37+D38","v":5090},{"$f":"E37+E38","v":5090},0]
["Доходы, получаемые в виде арендной платы за земельные участки, государственная собственность на которые не разграничена и которые расположены в границах поселений, а также средства от продажи права на заключение договоров аренды указанных земельных участков","913","1 11 05013 10 0000 120",4340,4340,0]
["Доходы, получаемые в виде арендной  платы за земельные участки,государственная собственность на которые не разграничена и которые расположеныв границах поселений, а также средства от продажи права на заключение договоров аренды указанных земельных участков","950","1 11 05013 10 0000 120",750,750,0]
["Доходы от сдачи в аренду имущества, находящегося в оперативном управлении органов управления муниципальных районов и созданных ими учреждений (за исключением имущества муниципальных автономных учреждений)","913","1 11 05035 05 0000 120",4900,4900,0]
["ПЛАТЕЖИ ПРИ ПОЛЬЗОВАНИИ ПРИРОДНЫМИ РЕСУРСАМИ","048","1 12 00000 00 0000 000",{"$f":"D41","v":179.13},{"$f":"E41","v":179.13},0]
["Плата за негативное воздействие на окружающую среду","048","1 12 01000 01 0000 120",{"$f":"D42+D43+D45+D44","v":179.13},{"$f":"E42+E43+E45+E44","v":179.13},0]
["Плата за выбросы загрязняющих веществ в атмосферный воздух стационарными объектами ","048","1 12 01010 01 0000 120",72.900000000000006,72.900000000000006,0]
["Плата за выбросы загрязняющих веществ в атмосферный воздух передвижными объектами","048","1 12 01020 01 0000 120",60,60,0]
["Плата за сбросы загрязняющих веществ в водные объекты","048","1 12 01030 01 0000 120",2.4700000000000002,2.4700000000000002,0]
["Плата за размещение отходов производства и потребления","048","1 12 01040 01 0000 120",43.76,43.76,0]
["ДОХОДЫ ОТ ОКАЗАНИЯ ПЛАТНЫХ УСЛУГ И КОМПЕНСАЦИИ ЗАТРАТ ГОСУДАРСТВА","000","1 13 00000 00 0000 000",{"$f":"D47+D48","v":7394},{"$f":"E47+E48","v":7394},0]
["Прочие доходы от оказания платных услуг (работ) получателями средств бюджетов муниципальных районов","907","113 01995 05 0000 130",7070,7070,0]
["Прочие доходы от оказания платных услуг (работ) получателями средств бюджетов муниципальных районов ","904","113 01995 05 0000 130",{"$f":"D49+D50+D51+D52","v":324},{"$f":"E49+E50+E51+E52","v":324},0]
["Прочие доходы от оказания платных услуг (работ) получателями средств бюджетов муниципальных районов (МКУК МКЦ АЧРМО)","000","113 01995 05 0000 130",55,55,0]
["Прочие доходы от оказания платных услуг (работ) получателями средств бюджетов муниципальных районов (МКУК РИК МУЗЕЙ)","000","113 01995 05 0000 130",21,21,0]
["Прочие доходы от оказания платных услуг (работ) получателями средств бюджетов муниципальных районов (МКУК МБЧР)","000","113 01995 05 0000 130",26,26,0]
["Прочие доходы от оказания платных услуг (работ) получателями средств бюджетов муниципальных районов (МКОУ ДОД ДШИ)","000","113 01995 05 0000 130",222,222,0]
["ДОХОДЫ ОТ ПРОДАЖИ МАТЕРИАЛЬНЫХ И НЕМАТЕРИАЛЬНЫХ АКТИВОВ","913","1 14 00000 00 0000 000",{"$f":"D54+D56","v":4900},{"$f":"E54+E56","v":4900},0]
["Доходы от реализации имущества, находящегося в государственной и муниципальной собственности (за исключением имущества автономных учреждений, а также имущества государственных и муниципальных унитарных предприятий, в том числе казенных)","913","1 14 02000 00 0000 000",{"$f":"D55","v":2600},{"$f":"E55","v":2600},0]
["Доходы от реализации иного имущества, находящегося в собственности муниципальных районов (за исключением имущества муниципальных автономных учреждений, а также имущества муниципальных унитарных предприятий, в том числе казенных), в части реализации основных средств по указанному имуществу","913","1 14 02053 05 0000 410",2600,2600,0]
["Доходы от продажи земельных участков, находящихся в  государственной и муниципальной собственности (за исключением земельных участков автономных учреждений)","913","1 14 06000 00 0000 430",{"$f":"D57","v":2300},{"$f":"E57","v":2300},0]
["Доходы от продажи земельных участков, государственная собственность на которые не разграничена и которые расположены в границах поселений","913","1 14 06013 10 0000 430",2300,2300,0]
["ШТРАФЫ, САНКЦИИ, ВОЗМЕЩЕНИЕ УЩЕРБА","000","1 16 00000 00 0000 000",{"$f":"D59+D63+D64+D69+D73+D72+D62+D68","v":514.20000000000005},{"$f":"E59+E63+E64+E69+E73+E72+E62+E68","v":533.4},19.199999999999932]
["Денежные взыскания (штрафы) за нарушение законодательства о налогах и сборах","182","1 16 03000 01 0000 140",{"$f":"D60+D61","v":39},{"$f":"E60+E61","v":40.6},1.6000000000000014]
["Денежные взыскания (штрафы) за нарушение законодательства о налогах и сборах, предусмотренные статьями 116, 118, пунктом 2 статьи 119, статьей 1191, пунктами 1 и 2 статьи 120, статьями 125, 126, 128, 129, 1291,  статьями 1294, 132, 133, 134, 135, 1351 и 1352 Налогового кодекса Российской Федерации, а также штрафы, взыскание которых осуществляется на основании ранее действовавшей статьи 117 Налогового кодекса Российской Федерации ","182","1 16 03010 01 0000 140",39,39,0]
["Денежные взыскания (штрафы) за административные правонарушения в области налогов и сборов, предусмотренные Кодексом Российской Федерации об административных правонарушениях","182","1 16 03030 01 0000 140",0,1.6,1.6]
["Денежные взыскания (штрафы) за нарушение  законодательства о применении контрольно-кассовой техники при осуществлении наличных денежных расчетов и (или) расчетов с использованием платежных карт","182","1 16 06000 01 0000 140",1.2,1.2,0]
["Денежные взыскания (штрафы) за административные правонарушения в области государственного регулирования производства и оборота этилового спирта, алкогольной и спиртосодержащей продукции","000","1 16 08000 01 0000 140",3.2,3.2,0]
["Денежные взыскания (штрафы) за нарушение законодательства о недрах, об особо охраняемых природных территориях, об охране и использовании животного мира, об экологической экспертизе, в области охраны окружающей среды, земельного законодательства","000","1 16 25000 01 0000 140",{"$f":"D66+D67+D65","v":37},{"$f":"E66+E67+E65","v":47},10]
["Денежные взыскания (штрафы) за нарушение законодательства о недрах","000","1 16 25010 01 6000 140",1,1,0]
["Денежные взыскания (штрафы) за нарушение законодательства об охране и использовании животного мира","815","1 16 25030 01 6000 140",35,45,10]
["Денежные взыскания (штрафы) за нарушение земельного законодательства","081","1 16 25060 01 6000 140",1,1,0]
["Денежные взыскания (штрафы) за нарушение законодательства в области обеспечения санитарно-эпидемиологического благополучия человека и законодательства в сфере защиты прав потребителей","141","1 16 28000 01 6000 140",0.5,0.5,0]
["Денежные взыскания (штрафы) за правонарушения в области дорожного движения","000","1 16 30000 01 0000 140",{"$f":"D70+D71","v":31.7},{"$f":"E70+E71","v":31.7},0]
["Денежные взыскания (штрафы) за административные правонарушения в области дорожного движения","188","1 16 30014 01 0000 140",2.7,2.7,0]
["Прочие денежные взыскания (штрафы) за административные правонарушения в области дорожного движения","188","1 16 30030 01 0000 140",29,29,0]
["Денежные взыскания (штрафы) за нарушение законодательства РФ об административных правонарушениях, предусмотренные статьей 20.25 Кодекса РФ об административных правонарушений","188","1 16 43000 01 0000 140",2.2000000000000002,9.8000000000000007,7.6000000000000005]
["Прочие поступления от денежных взысканий (штрафов) и иных сумм в возмещение ущерба, зачисляемые в бюджеты муниципальных районов","000","1 16 90050 05 0000 140",{"$f":"D74+D75+D76+D77+D78+D79+D81+D82+D80","v":399.4},{"$f":"E74+E75+E76+E77+E78+E79+E81+E82+E80","v":399.4},0]
["Прочие поступления от денежных взысканий (штрафов) и иных сумм в возмещение ущерба, зачисляемые в бюджеты муниципальных районов","081","1 16 90050 05 0000 140",15,14,-1]
["Прочие поступления от денежных взысканий (штрафов) и иных сумм в возмещение ущерба, зачисляемые в бюджеты муниципальных районов","177","1 16 90050 05 0000 140",38,38,0]
["Прочие поступления от денежных взысканий (штрафов) и иных сумм в возмещение ущерба, зачисляемые в бюджеты муниципальных районов","188","1 16 90050 05 0000 140",59,59,0]
["Прочие поступления от денежных взысканий (штрафов) и иных сумм в возмещение ущерба, зачисляемые в бюджеты муниципальных районов","192","1 16 90050 05 0000 140",100.4,100.4,0]
["Прочие поступления от денежных взысканий (штрафов) и иных сумм в возмещение ущерба, зачисляемые в бюджеты муниципальных районов","415","1 16 90050 05 0000 140",60,60,{"$f":"E78-D78","v":0}]
["Прочие поступления от денежных взысканий (штрафов) и иных сумм в возмещение ущерба, зачисляемые в бюджеты муниципальных районов","809","1 16 90050 05 0000 140",60,60,0]
["Прочие поступления от денежных взысканий (штрафов) и иных сумм в возмещение ущерба, зачисляемые в бюджеты муниципальных районов","815","1 16 90050 05 0000 140",20,21,1]
["Прочие поступления от денежных взысканий (штрафов) и иных сумм в возмещение ущерба, зачисляемые в бюджеты муниципальных районов","917","1 16 90050 05 0000 140",12,12,0]
["Прочие поступления от денежных взысканий (штрафов) и иных сумм в возмещение ущерба, зачисляемые в бюджеты муниципальных районов","918","1 16 90050 05 0000 140",35,35,0]
["ПРОЧИЕ НЕНАЛОГОВЫЕ ДОХОДЫ","000","1 17 00000 00 0000 000",{"$f":"D84+D85","v":606.4},{"$f":"E84+E85","v":606.4},0]
["Невыясненные поступления","000","1 17 01000 00 0000 180",0,0,0]
["Прочие неналоговые доходы","000","1 17 05000 00 0000 180",{"$f":"D86+D87+D88","v":606.4},{"$f":"E86+E87+E88","v":606.4},0]
["Прочие неналоговые доходы","907","1 17 05000 00 0000 180",3,3,0]
["Прочие неналоговые доходы","917","1 17 05000 00 0000 180",600,600,0]
["Прочие неналоговые доходы","904","1 17 05000 00 0000 180",3.4,3.4,0]
["БЕЗВОЗМЕЗДНЫЕ ПОСТУПЛЕНИЯ","000","2 00 00000 00 0000 000",{"$f":"D90+D139+D143+D141","v":510007.50115000003},{"$f":"E90+E139+E143+E141","v":519179.61514999997},9172.1139999999432]
["БЕЗВОЗМЕЗДНЫЕ ПОСТУПЛЕНИЯ ИЗ ДРУГИХ БЮДЖЕТОВ БЮДЖЕТНОЙ СИСТЕМЫ РФ","000","2 02 00000 00 0000 151",{"$f":"D91+D94+D110+D126","v":509195.42507},{"$f":"E91+E94+E110+E126","v":517321.42506999994},8125.9999999999418]
["ДОТАЦИИ БЮДЖЕТАМ МУНИЦИПАЛЬНЫХ ОБРАЗОВАНИЙ","000","2 02 01000 00 0000 151",{"$f":"D92+D93","v":125656},{"$f":"E92+E93","v":125656},0]
["Дотации муниципальным районам на выравнивание уровня бюджетной  обеспеченности","910","2 02 01001 05 0000 151",124989,124989,0]
["Дотации муниципальным районам на поддержку мер  по обеспечению сбалансированности  бюджетов","910","2 02 01003 05 0000 151",667,667,0]
["СУБСИДИИ БЮДЖЕТАМ МУНИЦИПАЛЬНЫХ ОБРАЗОВАНИЙ","000","2 02 02000 00 0000 151",{"$f":"D95+D97+D98+D99+D96","v":72438.7},{"$f":"E95+E97+E98+E99+E96","v":80564.699999999983},8125.9999999999854]
["Федеральная программа \"Молодым семьям - доступное жилье на 2005-2019 годы\"","917","2 02 02051 05 0000 151",0,null,0]
["Субсидии бюджетам муниципальных районов на модернизацию региональных систем общего образования. Модернизация региональных систем общего образования в части развития школьной инфраструктуры (текущий ремонт с целью обеспечения выполнения требований к санитарно-бытовым условиям и охране здоровья обучающихся, а также с целью подготовки помещений для установки оборудования) и (или) проведение капитального ремонта зданий общеобразовательных учреждений в Иркутской области","907","2 02 02145 05 0000 151",1600,1600,0]
["Долгосрочная целевая программа \"Энергосбережение и повышение энергетической эффективности на территории Иркутской области на 2011-2015 годы и на период до 2020 года","910","2 02 02150 05 0000 151",761,761,0]
["Областная государственная социальная программа \"Молодым семьям- доступное жилье\" на 2005-2019 годы\"","917","2 02 02008 05 0000 151",230.4,230.4,0]
["Прочие субсидии","000","2 02 02999 05 0000 151",{"$f":"D100+D101+D104+D106+D108+D107+D102+D103+D109+D105","v":69847.3},{"$f":"E100+E101+E104+E106+E108+E107+E102+E103+E109+E105","v":77973.299999999988},8125.9999999999854]
["Субсидии на выплату заработной платы с начислениями на нее педагогическим работникам муниципальных дошкольных образовательных учреждений","907","2 02 02999 05 0000 151",32175.3,32175.3,0]
["Субсидия за счет средств долгосрочной целевой программы Иркутской области \"Повышение эффективности бюджетных расходов Иркутской области на 2011-2013 годы\"","910","2 02 02999 05 0000 151",16827,24453,7626]
["ДЦП \"Развитие автомобильных дорог общего пользования регионального или межмуниципального значения и местного значения в Иркутской области на 2011-2015 годы \"\n","917","2 02 02999 05 0000 151",3829,3829,0]
["Реализация мероприятий перечня проектов народных инициатив","910","2 02 02999 05 0000 151",6963.9,6963.9,0]
["Долгосрочная целевая программа  Иркутской области «Организация и обеспечение отдыха и оздоровления детей в Иркутской области на 2012-2014 годы» ","907","2 02 02999 05 0000 151",2352.1,2352.1,0]
["Долгосрочная целевая программа Иркутской области «Публичные центры правовой, деловой и социально-значимой информации центральных районных библиотек Иркутской области» (2013-2014 годы)","904","2 02 02999 05 0000 151",0,500,500]
["Подпрограмма \"Подготовка объектов коммунальной инфраструктуры Иркутской области к отопительному сезону в 2011-2013 годах\"","907","2 02 02999 05 0000 151",1700,1700,0]
["Долгосрочная целевая программа «Поддержка и развитие малого и среднего предпринимательства в Иркутской области» на 2011-2012 годы (за счет федерального бюджета)","917","2 02 02999 05 0000 151",0,null,0]
["Долгосрочная целевая программа «Защита окружающией среды в Иркутской области на 2011-2015 годы\" ","918","2 02 02999 05 0000 151",5000,5000,0]
["Долгосрочная целевая программа Иркутской области \"100 модельных домов культуры Приангарью\" на 2011-2014 годы","904","2 02 02999 05 0000 151",1000,1000,0]
["СУБВЕНЦИИ БЮДЖЕТАМ МУНИЦИПАЛЬНЫХ ОБРАЗОВАНИЙ","000","2 02 03000 00 0000 151",{"$f":"D112+D113+D114+D116+D117+D118+D119+D120+D121+D122+D123+D124","v":304096.5},{"$f":"E112+E113+E114+E116+E117+E118+E119+E120+E121+E122+E123+E124","v":304096.5},0]
["Субвенции бюджетам муниципальных районов на осуществление полномочий по подготовке проведения статистических переписей","917","2 02 03002 05 0000 151",0,null,0]
["Субвенции бюджетам  муниципальных районов на составление списков кандидатов в присяжные заседатели федеральных судов общей юрисдикции в Российской Федерации","917","2 02 03007 05 0000 151",0,null,0]
["Субвенции бюджетам на ежемесячное денежное вознаграждение за классное руководство","907","2 02 03021 05 0000 151",5000.1000000000004,5000.1000000000004,0]
["Субвенции бюджетам муниципальных образований на предоставление гражданам субсидий на оплату жилого помещения и коммунальных услуг","918","2 02 03022 05 0000 151",7589.7,7589.7,0]
["Субвенции местным бюджетам на выполнение переданных полномочий субъектов РФ","000","2 02 03024 05 0000 151",{"$f":"D116+D117+D118+D119+D120+D121","v":10302.6},{"$f":"E116+E117+E118+E119+E120+E121","v":10302.6},0]
["Хранение, комплектование,  учет и использование архивных документов, относящихся к областной государственной собственности","917","2 02 03024 05 0000 151",1174,1174,0]
["Государственные    полномочия в области охраны труда","917","2 02 03024 05 0000 151",604.1,604.1,0]
["Определение персонального состава и обеспечение деятельности районных (городских), районных в городах комиссий по делам несовершеннолетних и защите их прав","917","2 02 03024 05 0000 151",1155.8,1155.8,0]
["Лицензирование розничной продажи алкогольной продукции","917","2 02 03024 05 0000 151",402.8,402.8,0]
["Определение персонального состава и обеспечение деятельности административных комиссий","917","2 02 03024 05 0000 151",604.1,604.1,0]
[" Предоставление мер социальной поддержки многодетным и малоимущим семьям","907","2 02 03024 05 0000 151",6361.8,6361.8,0]
["Субвенции бюджетам муниципальных районов на обеспечение жилыми помещениями детей-сирот, детей, оставшихся без попечения родителей, а также детей, находящихся под опекой (попечительством), не имеющих закрепленного жилого помещения","913","2 02 03026 05 0000 151",0,null,0]
["Субвенции бюджетам муниципальных районов на обеспечение жилыми помещениями детей-сирот, детей, оставшихся без попечения родителей, а также детей, находящихся под опекой (попечительством), не имеющих закрепленного жилого помещения (федер.)","913","2 02 03026 05 0000 151",0,null,0]
["Прочие субвенции","000","2 02 03999 05 0000 151",{"$f":"D125","v":281204.09999999998},{"$f":"E125","v":281204.09999999998},0]
["Субвенция на обеспечение государственных гарантий прав граждан на получение общедоступного и бесплатного дошкольного, начального общего, основного общего, среднего (полного) общего образования, а также дополнительного образования в общеобразовательных учреждениях","907","2 02 03999 05 0000 151",281204.09999999998,281204.09999999998,0]
["ИНЫЕ МЕЖБЮДЖЕТНЫЕ ТРАНСФЕРТЫ","000","2 02 04000 00 0000 151",{"$f":"D127+D132+D133+D137","v":7004.2250700000004},{"$f":"E127+E132+E133+E137","v":7004.2250700000004},0]
["Межбюджетные трансферты, передаваемые бюджетам муниципальных районов из бюджетов поселений на осуществление части полномочий по решению вопросов местного значения в соответствии с заключенными соглашениями","000","2 02 04014 05 0000 151",{"$f":"D128+D129+D130+D131","v":1785.92507},{"$f":"E128+E129+E130+E131","v":1785.92507},0]
["Межбюджетные трансферты, передаваемые бюджетам муниципальных районов из бюджетов поселений на осуществление части полномочий по решению вопросов местного значения в соответствии с заключенными соглашениями (ФУ)","910","2 02 04014 05 0000 151",921.19104000000004,921.19104000000004,0]
["Межбюджетные трансферты, передаваемые бюджетам муниципальных районов из бюджетов поселений на осуществление части полномочий по решению вопросов местного значения в соответствии с заключенными соглашениями (ГО и ЧС)","917","2 02 04014 05 0000 151",460.59552000000002,460.59552000000002,0]
["Межбюджетные трансферты, передаваемые бюджетам муниципальных районов из бюджетов поселений на осуществление части полномочий по решению вопросов местного значения в соответствии с заключенными соглашениями (генплан)","918","2 02 04014 05 0000 151",30.2,30.2,0]
["Межбюджетные трансферты, передаваемые бюджетам муниципальных районов из бюджетов поселений на осуществление части полномочий по решению вопросов местного значения в соответствии с заключенными соглашениями (КСП )","923","2 02 04014 05 0000 151",373.93851000000001,373.93851000000001,0]
["Межбюджетные трансферты, передаваемые бюджетам муниципальных районов на комплектование книжных фондов библиотек муниципальных образований (областной бюджет)","904","2 02 04025 05 0000 151",162.69999999999999,162.69999999999999,0]
["Межбюджетные трансферты, передаваемые бюджетам муниципальных районов на комплектование книжных фондов библиотек муниципальных образований (федеральный бюджет)","904","2 02 04025 05 0000 151",303.60000000000002,303.60000000000002,0]
["Прочие межбюджетные трансферты, передаваемые бюджетам муниципальных районов","000","2 02 04999 05 0000 151",null,null,0]
["Дотации на возмещ.расходов местных бюджетов в связи с предоставлением льгот по оплате жилого помещения и коммунальных услуг педагогическим работникам, проживающим в сельской местности, рабочих поселках (пгт) и работающим в муниц.образоват.учреждениях","907","2 02 04999 05 0000 151",null,null,0]
["Межбюджетные трансферты в целях финансовой поддержки муниципальных образований Иркутской области, осуществляющих эффективное управление бюджетными средствами ","910","2 02 04999 05 0000 151",null,null,0]
["ПРОЧИЕ МЕЖБЮДЖЕТНЫЕ ТРАНСФЕРТЫ","000","2 02 04999 00 0000 151",{"$f":"D138","v":4752},{"$f":"E138","v":4752},0]
["Исполнение судебных актов, вступивших в силу до 1 января 2013 года, по обеспечению жилыми помещениями детей-сирот и детей, оставшихся без попечения родителей, лиц из числа детей-сирот и детей, оставшихся без попечения родителей, не имеющих закрепленного жилого помещения","913","2 02 04999 05 0000 151",4752,4752,0]
["ПРОЧИЕ БЕЗВОЗМЕЗДНЫЕ ПОСТУПЛЕНИЯ","000","2 07 00000 00 0000 180",{"$f":"D140","v":1014},{"$f":"E140","v":2060.114},1046.114]
["Прочие безвозмездные поступления в бюджеты муниципальных районов","000","2 07 05030 05 0000 180",{"$f":"14+1000","v":1014},{"$f":"1014+1046.114","v":2060.114},1046.114]
["ДОХОДЫ БЮДЖЕТОВ БЮДЖЕТНОЙ СИСТЕМЫ РОССИЙСКОЙ ФЕДЕРАЦИИ ОТ ВОЗВРАТА БЮДЖЕТАМИ БЮДЖЕТНОЙ СИСТЕМЫ РОССИЙСКОЙ ФЕДЕРАЦИИ И ОРГАНИЗАЦИЯМИ ОСТАТКОВ СУБСИДИЙ, СУБВЕНЦИЙ И ИНЫХ МЕЖБЮДЖЕТНЫХ ТРАНСФЕРТОВ, ИМЕЮЩИХ ЦЕЛЕВОЕ НАЗНАЧЕНИЕ, ПРОШЛЫХ ЛЕТ","000","2 18 00000 00 0000 000",{"$f":"D142","v":3.64},{"$f":"E142","v":3.64},0]
["Доходы бюджетов муниципальных районов от возврата бюджетными учреждениями остатков субсидий прошлых лет","917","2 18 05010 05 0000 180",3.64,3.64,0]
["ВОЗВРАТ ОСТАТКОВ СУБСИДИЙ, СУБВЕНЦИЙ И ИНЫХ МЕЖБЮДЖЕТНЫХ ТРАНСФЕРТОВ, ИМЕЮЩИХ ЦЕЛЕВОЕ НАЗНАЧЕНИЕ, ПРОШЛЫХ ЛЕТ","000","2 19 00000 00 0000 000",{"$f":"D144","v":-205.56392},{"$f":"E144","v":-205.56392},{"$f":"E143-D143","v":0}]
["Возврат остатков субсидий и субвенций из бюджетов муниципальных районов","910","2 19 05000 05 0000 180",{"$f":"-201.92392-3.64","v":-205.56392},{"$f":"-201.92392-3.64","v":-205.56392},{"$f":"E144-D144","v":0}]
["ИТОГО ДОХОДОВ","000","8 50 00000 00 0000 000",{"$f":"D89+D11","v":597021.63115000003},{"$f":"E89+E11","v":607003.74514999997},{"$f":"E145-D145","v":9982.1139999999432}]
[]
["И.о. начальника финансового управления",null,null,"Ю.Н. Гайдук","С.М. Татина"]

{"sheet":"прил3 (админ)","index":1,"n_rows":93,"n_cols":4,"rows_kept":93,"cut":false,"hidden":false,"merged":[[19,2,19,3],[7,0,8,3],[9,0,9,1],[9,2,10,3],[11,2,11,3],[12,2,12,3],[13,2,13,3],[14,2,14,3],[15,2,15,3],[16,2,16,3],[17,2,17,3],[18,2,18,3],[31,2,31,3],[20,2,20,3],[21,2,21,3],[22,2,22,3],[23,2,23,3],[24,2,24,3],[25,2,25,3],[26,2,26,3],[38,2,38,3],[39,2,39,3],[40,2,40,3],[27,2,27,3],[28,2,28,3],[29,2,29,3],[30,2,30,3],[32,2,32,3],[33,2,33,3],[34,2,34,3],[35,2,35,3],[36,2,36,3],[37,2,37,3],[55,2,55,3],[44,2,44,3],[45,2,45,3],[46,2,46,3],[47,2,47,3],[48,2,48,3],[49,2,49,3],[50,2,50,3],[51,2,51,3],[52,2,52,3],[53,2,53,3],[54,2,54,3],[41,2,41,3],[42,2,42,3],[43,2,43,3],[68,2,68,3],[56,2,56,3],[57,2,57,3],[58,2,58,3],[59,2,59,3],[60,2,60,3],[61,2,61,3],[62,2,62,3],[64,2,64,3],[65,2,65,3],[66,2,66,3],[67,2,67,3],[63,2,63,3],[80,2,80,3],[69,2,69,3],[70,2,70,3],[71,2,71,3],[72,2,72,3],[73,2,73,3],[74,2,74,3],[79,2,79,3],[87,2,87,3],[88,2,88,3],[89,2,89,3],[75,2,75,3],[76,2,76,3],[77,2,77,3],[78,2,78,3],[90,2,90,3],[81,2,81,3],[82,2,82,3],[83,2,83,3],[84,2,84,3],[85,2,85,3],[86,2,86,3]]}
{"$rows_empty":7}
["Перечень главных администраторов доходов бюджета Черемховского районного муниципального образования - органов местного самоуправления Черемховского районного муниципального образования"]
[]
["Код бюджетной классификации РФ",null,"Наименование главного администратора доходов районного бюджета"]
["главного администратора доходов","доходов районного бюджета"]
[904,null,"Отдел по культуре и библиотечному обслуживанию администрации Черемховского районного муниципального образования"]
[904,"1 13 01995 05 0000 130","Прочие доходы от оказания платных услуг получателями средств бюджетов муниципальных районов и компенсации затрат бюджетов муниципальных районов"]
[904,"1 17 01050 05 0000 180","Невыясненные поступления, зачисляемые в бюджеты муниципальных районов"]
[904,"1 17 05050 05 0000 180","Прочие неналоговые доходы бюджетов муниципальных районов"]
[904,"2 02 01999 05 0000 151","Прочие дотации бюджетам муниципальных районов"]
[904,"2 02 02999 05 0000 151","Прочие субсидии бюджетам муниципальных районов"]
[904,"2 02 03999 05 0000 151","Прочие субвенции бюджетам муниципальных районов"]
[904,"2 02 04025 05 0000 151","Межбюджетные трансферты, передаваемые бюджетам муниципальных районов на комплектование книжных фондов библиотек муниципальных образований"]
[904,"2 02 04999 05 0000 151","Прочие межбюджетные трансферты, передаваемые бюджетам муниципальных районов"]
[904,"2 07 05030 05 0000 180","Прочие безвозмездные поступления в бюджеты муниципальных районов"]
[907,null,"Отдел образования администрации Черемховского районного муниципального образования"]
[907,"1 13 01995 05 0000 130","Прочие доходы от оказания платных услуг получателями средств бюджетов муниципальных районов и компенсации затрат бюджетов муниципальных районов"]
[907,"1 17 01050 05 0000 180","Невыясненные поступления, зачисляемые в бюджеты муниципальных районов"]
[907,"1 17 05050 05 0000 180","Прочие неналоговые доходы бюджетов муниципальных районов"]
[907,"2 02 01999 05 0000 151","Прочие дотации бюджетам муниципальных районов"]
[907,"2 02 02022 05 0000 151","Субсидии бюджетам муниципальных образований на внедрение инновационных образовательных программ"]
["907","2 02 02145 05 0000 151","Субсидии бюджетам муниципальных районов на модернизацию региональных систем общего образования "]
[907,"2 02 02999 05 0000 151","Прочие субсидии бюджетам муниципальных районов"]
[907,"2 02 03021 05 0000 151","Субвенции бюджетам муниципальных районов на ежемесячное денежное вознаграждение за классное руководство"]
[907,"2 02 03024 05 0000 151","Субвенции бюджетам муниципальных районов на выполнение передаваемых полномочий субъектов РФ"]
[907,"2 02 03999 05 0000 151","Прочие субвенции бюджетам муниципальных районов"]
[907,"2 02 04999 05 0000 151","Прочие межбюджетные трансферты, передаваемые бюджетам муниципальных районов"]
[907,"2 07 05030 05 0000 180","Прочие безвозмездные поступления в бюджеты муниципальных районов"]
[910,null,"Финансовое управление Администрации Черемховского районного муниципального образования"]
[910,"1 17 01050 05 0000 180","Невыясненные поступления, зачисляемые в бюджеты муниципальных районов"]
[910,"1 17 05050 05 0000 180","Прочие неналоговые доходы бюджетов муниципальных районов"]
[910,"2 02 01001 05 0000 151","Дотации бюджетам муниципальных районов на выравнивание уровня бюджетной обеспеченности"]
[910,"2 02 01003 05 0000 151","Дотации бюджетам муниципальных районов на поддержку мер по обеспечению сбалансированности бюджетов"]
[910,"2 02 01999 05 0000 151","Прочие дотации бюджетам муниципальных районов"]
[910,"2 02 02008 05 0000 151","Субсидии бюджетам муниципальных районов на обеспечение жильем молодых семей"]
[910,"2 02 02999 05 0000 151","Прочие субсидии бюджетам муниципальных районов"]
[910,"2 02 03999 05 0000 151","Прочие субвенции бюджетам муниципальных районов"]
[910,"2 02 04014 05 0000 151","Межбюджетные трансферты, передаваемые бюджетам муниципальных районов из бюджетов поселений на осуществление части полномочий по решению вопросов местного значения в соответствии с заключенными соглашениями"]
[910,"2 02 04999 05 0000 151","Прочие межбюджетные трансферты, передаваемые бюджетам муниципальных районов"]
[910,"2 07 05030 05 0000 180","Прочие безвозмездные поступления в бюджеты муниципальных районов"]
[910,"2 08 05000 05 0000 180","Перечисления из бюджетов муниципальных районов (в бюджеты муниципальных районов) для осуществления возврата (зачета) излишне уплаченных или излишне взысканных сумм налогов, сборов и иных платежей, а также сумм процентов за несвоевременное осуществление такого возврата и процентов, начисленных на излишне взысканные суммы"]
[910,"2 19 05000 05 0000 151","Возврат остатков субсидий и субвенций из бюджетов муниципальных районов"]
[913,null,"Комитет по управлению муниципальным имуществом администрации Черемховского районного муниципального образования"]
[913,"1 11 05013 10 0000 120","Доходы, получаемые в виде арендной платы за земельные участки, государственная собственность на которые не разграничена и которые расположены в границах поселений, а также средства от продажи права на заключение договоров аренды указанных земельных участков"]
[913,"1 11 05035 05 0000 120","Доходы от сдачи в аренду имущества, находящегося в оперативном управлении органов управления муниципальных районов и созданных ими учреждений (за исключением имущества муниципальных автономных учреждений)"]
[913,"1 14 02052 05 0000 410","Доходы от реализации имущества, находящегося в оперативном управлении учреждений, находящихся в ведении органов управления муниципальных районов (за исключением имущества муниципальных автономных учреждений), в части реализации основных средств по указанному имуществу"]
[913,"1 14 02052 05 0000 440","Доходы от реализации имущества, находящегося в оперативном управлении учреждений, находящихся в ведении органов управления муниципальных районов (за исключением имущества муниципальных автономных учреждений), в части реализации материальных запасов по указанному имуществу"]
[913,"1 14 02053 05 0000 410","Доходы от реализации иного имущества, находящегося в собственности муниципальных районов (за исключением имущества муниципальных автономных учреждений, а также имущества муниципальных унитарных предприятий, в том числе казенных), в части реализации основных средств по указанному имуществу"]
[913,"1 14 02053 05 0000 440","Доходы от реализации иного имущества, находящегося в собственности муниципальных районов (за исключением имущества муниципальных автономных учреждений, а также имущества муниципальных унитарных предприятий, в том числе казенных), в части реализации материальных запасов по указанному имуществу"]
[913,"1 14 06013 10 0000 430","Доходы от продажи земельных участков, государственная собственность на которые не разграничена и которые расположены в границах поселений"]
[913,"1 14 06025 05 0000 430","Доходы от продажи земельных участков, находящихся в собственности муниципальных районов (за исключением земельных участков муниципальных автономных учреждений)"]
[913,"1 17 01050 05 0000 180","Невыясненные поступления, зачисляемые в бюджеты муниципальных районов"]
[913,"1 17 05050 05 0000 180","Прочие неналоговые доходы бюджетов муниципальных районов"]
[913,"2 02 03026 05 0000 151","Субвенции бюджетам муниципальных районов на обеспечение жилыми помещениями детей-сирот, детей, оставшихся без попечения родителей, а также детей, находящихся под опекой (попечительством), не имеющих закрепленного жилого помещения"]
[913,"2 02 04999 05 0000 151","Прочие межбюджетные трансферты, передаваемые бюджетам муниципальных районов"]
[917,null,"Администрация Черемховского районного муниципального образования"]
[917,"1 08 07084 01 1000 110","Государственная пошлина за совершение действий, связанных с лицензированием, с проведением аттестации в случаях, если такая аттестация предусмотрена законодательством Российской Федерации, зачисляемая в бюджеты муниципальных районов"]
[917,"1 08 07084 01 4000 110","Государственная пошлина за совершение действий, связанных с лицензированием, с проведением аттестации в случаях, если такая аттестация предусмотрена законодательством Российской Федерации, зачисляемая в бюджеты муниципальных районов"]
[917,"1 16 90050 05 0000 140","Прочие поступления от денежных взысканий (штрафов) и иных сумм в возмещение ущерба, зачисляемые в бюджеты муниципальных районов"]
[917,"1 17 01050 05 0000 180","Невыясненные поступления, зачисляемые в бюджеты муниципальных районов"]
[917,"1 17 05050 05 0000 180","Прочие неналоговые доходы бюджетов муниципальных районов"]
[917,"2 02 01999 05 0000 151","Прочие дотации бюджетам муниципальных районов"]
[917,"2 02 02008 05 0000 151","Субсидии бюджетам муниципальных районов на обеспечение жильем молодых семей"]
[917,"2 02 02105 05 0000 151","Субсидии бюджетам муниципальных районов на проведение противоаварийных мероприятий в зданиях государственных и муниципальных общеобразовательных учреждений"]
[917,"2 02 02999 05 0000 151","Прочие субсидии бюджетам муниципальных районов"]
[917,"2 02 03002 05 0000 151","Субвенции бюджетам муниципальных районов на осуществление полномочий по подготовке проведения статистических переписей"]
["917","2 02 03007 05 0000 151","Субвенции бюджетам  муниципальных районов на составление списков кандидатов в присяжные заседатели федеральных судов общей юрисдикции в Российской Федерации"]
[917,"2 02 03024 05 0000 151","Субвенции бюджетам муниципальных районов на выполнение передаваемых полномочий субъектов РФ"]
[917,"2 02 03999 05 0000 151","Прочие субвенции бюджетам муниципальных районов"]
[917,"2 02 04014 05 0000 151","Межбюджетные трансферты, передаваемые бюджетам муниципальных районов из бюджетов поселений на осуществление части полномочий по решению вопросов местного значения в соответствии с заключенными соглашениями"]
[917,"2 02 04999 05 0000 151","Прочие межбюджетные трансферты, передаваемые бюджетам муниципальных районов"]
[917,"2 07 05030 05 0000 180","Прочие безвозмездные поступления в бюджеты муниципальных районов"]
[917,"2 18 05010 05 0000 180","Доходы бюджетов муниципальных районов от возврата бюджетными учреждениями остатков субсидий прошлых лет"]
[918,null,"Управление жилищно-коммунального хозяйства, строительства, транспорта, связи и экологии администрации Черемховского районного муниципального образования"]
[918,"1 16 90050 05 0000 140","Прочие поступления от денежных взысканий (штрафов) и иных сумм в возмещение ущерба, зачисляемые в бюджеты муниципальных районов"]
[918,"1 17 01050 05 0000 180","Невыясненные поступления, зачисляемые в бюджеты муниципальных районов"]
[918,"1 17 05050 05 0000 180","Прочие неналоговые доходы бюджетов муниципальных районов"]
[918,"2 02 02999 05 0000 151","Прочие субсидии бюджетам муниципальных районов"]
["918","2 02 03022 05 0000 151","Субвенции бюджетам муниципальных образований на предоставление гражданам субсидий на оплату жилого помещения и коммунальных услуг"]
["918","2 02 04014 05 0000 151","Межбюджетные трансферты, передаваемые бюджетам муниципальных районов из бюджетов поселений на осуществление части полномочий по решению вопросов местного значения в соответствии с заключенными соглашениями "]
[918,"2 07 05030 05 0000 180","Прочие безвозмездные поступления в бюджеты муниципальных районов"]
[923,null,"Контрольно-счетная палата Черемховского районного муниципального образования"]
[923,"1 17 01050 05 0000 180","Невыясненные поступления, зачисляемые в бюджеты муниципальных районов"]
[923,"1 17 05050 05 0000 180","Прочие неналоговые доходы бюджетов муниципальных районов"]
["923","2 02 04014 05 0000 151","Межбюджетные трансферты, передаваемые бюджетам муниципальных районов из бюджетов поселений на осуществление части полномочий по решению вопросов местного значения в соответствии с заключенными соглашениями "]
[]
["И.о. начальника финансового управления",null,null,"С.М. Татина"]

{"sheet":"прил4","index":2,"n_rows":359,"n_cols":6,"rows_kept":359,"cut":false,"hidden":false,"merged":[[353,0,353,4],[15,0,15,5],[18,0,19,0],[18,1,18,4],[18,5,19,5]]}
{"$rows_empty":15}
["Распределение  бюджетных ассигнований   по разделам, подразделам, целевым статьям и видам расходов классификации расходов бюджетов на  2013 год"]
[]
[]
["Наименование показателя","Код",null,null,null,"Сумма , тыс. руб. "]
[null,"раздела","подраздела","целевой статьи","вида расходов"]
[1,2,3,4,5,6]
["Обеспечение проведения выборов и референдумов",1,7,0,0,0]
["Проведение выборов и референдумов",1,7,200000,0,0]
["Проведение выборов и референдумов",1,7,200000,0,0]
["Проведение выборов в представительные органы муниципального образования",1,7,200002,0,0]
["Выполнение функций органами местного самоуправления",1,7,200002,"500",0]
["ОБЩЕГОСУДАРСТВЕННЫЕ ВОПРОСЫ",1,0,0,0,72222.232000000004]
["Функционирование высшего должностного лица субъекта Российской Федерации и муниципального образования",1,2,0,0,2412]
["Руководство и управление в сфере установленных функций органов государственной власти субъектов Российской Федерации  и органов местного самоуправления",1,2,20000,0,2412]
["Глава муниципального образования",1,2,20300,0,2412]
["Выполнение функций органами местного самоуправления",1,2,20300,"500",2412]
["Функционирование законодательных (представительных) органов государственной власти и представительных органов муниципальных образований",1,3,0,0,1350.16]
["Руководство и управление в сфере установленных функций органов государственной власти субъектов Российской Федерации  и органов местного самоуправления",1,3,20000,0,1350.16]
["Центральный аппарат",1,3,20400,0,401.13400000000001]
["Выполнение функций органами местного самоуправления",1,3,20400,"500",401.13400000000001]
["Председатель представительного органа муниципального образования",1,3,21100,0,949.02599999999995]
["Выполнение функций органами местного самоуправления",1,3,21100,"500",949.02599999999995]
["Функционирование Правительства Российской Федерации, высших исполнительных органов государственной власти субъектов Российской Федерации, местных администраций",1,4,0,0,26064.188999999998]
["Руководство и управление в сфере установленных функций органов государственной власти субъектов Российской Федерации  и органов местного самоуправления",1,4,20000,0,26003.258999999998]
["Центральный аппарат",1,4,20400,0,26003.258999999998]
["Выполнение функций органами местного самоуправления",1,4,20400,"500",26003.258999999998]
["Региональные целевые программы",1,4,5220000,0,42.65]
["Долгосрочная целевая программа «Энергосбережение и повышение энергетической эффективности на территории Иркутской области на 2011-2015 годы и на период до 2020 года»",1,4,5225400,0,42.65]
["Выполнение функций органами местного самоуправления",1,4,5225400,"500",42.65]
["Целевые программы муниципальных образований",1,4,7950000,0,18.28]
["Долгосрочная целевая программа энергосбережения и повышения энергетической эффективности Черемховского районного муниципального образования на 2010-2015 годы",1,4,7951100,0,18.28]
["Мероприятия по повышению энергетической эффективности",1,4,7951100,"451",18.28]
["Обеспечение деятельности финансовых, налоговых и таможенных органов и органов финансового (финансово-бюджетного) надзора",1,6,0,0,11159.075000000001]
["Руководство и управление в сфере установленных функций органов государственной власти субъектов Российской Федерации  и органов местного самоуправления",1,6,20000,0,8282.1849999999995]
["Центральный аппарат",1,6,20400,0,8282.1849999999995]
["Выполнение функций органами местного самоуправления",1,6,20400,"500",8282.1849999999995]
[" Целевые программы муниципальных образований",1,6,7950000,0,200]
["Долгосрочная целевая программа Черемховского районного муниципального образования \"Повышение эффективности бюджетных расходов Черемховского районного муниципального образования на 2012-2013 годы\"",1,6,7950200,0,200]
["Выполнение функций органами местного самоуправления",1,6,7950200,"500",200]
["Руководство и управление в сфере установленных функций органов государственной власти субъектов Российской Федерации  и органов местного самоуправления",1,6,20000,0,2676.89]
["Центральный аппарат",1,6,20400,0,1561.6189999999999]
["Выполнение функций органами местного самоуправления",1,6,20400,"500",1561.6189999999999]
["Руководитель контрольно-счетной палаты муниципального образования и его заместители",1,6,22500,0,1115.271]
["Выполнение функций органами местного самоуправления",1,6,22500,"500",1115.271]
["Резервные фонды",1,11,0,0,300]
["Резервные фонды",1,11,700000,0,300]
["Резервные фонды местных администраций",1,11,700500,0,300]
["Выполнение функций органами местного самоуправления",1,11,700500,"500",300]
["Другие общегосударственные вопросы",1,13,0,0,30936.808000000001]
["Руководство и управление в сфере установленных функций органов государственной власти субъектов Российской Федерации  и органов местного самоуправления",1,13,20000,0,15304.529]
["Обеспечение деятельности подведомственных учреждений",1,13,29900,0,15304.529]
["Выполнение функций казенными учреждениями",1,13,29900,"001",15304.529]
["Руководство и управление в сфере установленных функций органов государственной власти субъектов Российской Федерации  и органов местного самоуправления",1,13,20000,0,4007.1080000000002]
["Центральный аппарат",1,13,20400,0,3107.1080000000002]
["Выполнение функций органами местного самоуправления",1,13,20400,"500",3107.1080000000002]
["Обеспечение деятельности подведомственных учреждений",1,13,29900,0,900]
["Субсидии бюджетным учреждениям на финансовое обеспечение муниципального задания на оказание муниципальных услуг (выполнение работ)",1,13,29900,"611",900]
["Реализация государственных функций, связанных с общегосударственным управлением",1,13,920000,0,607.005]
["Выполнение других обязательств государства",1,13,920300,0,607.005]
["Выполнение функций органами местного самоуправления",1,13,920300,"500",607.005]
["Учреждения по обеспечению хозяйственного обслуживания",1,13,930000,0,6500]
["Субсидии бюджетным учреждениям на финансовое обеспечение муниципального задания на оказание муниципальных услуг (выполнение работ)",1,13,930000,"611",6500]
[" Целевые программы муниципальных образований",1,13,7950000,0,648.60199999999998]
["Долгосрочная целевая программа \"Инвентаризация муниципальных объектов недвижимости Черемховского районного муниципального образования на 2012-2014 годы\"",1,13,7951900,0,648.60199999999998]
["Выполнение функций органами местного самоуправления",1,13,7951900,"500",648.60199999999998]
["Руководство и управление в сфере установленных функций органов государственной власти субъектов Российской Федерации  и органов местного самоуправления",1,13,20000,0,2785]
["Осуществление областных государственных полномочий по хранению, комплектованию, учету и использованию архивных документов, относящихся к государственной собственности Иркутской области",1,13,24000,0,1174]
["Выполнение функций органами местного самоуправления",1,13,24000,"500",1174]
["Осуществление областных государственных полномочий по определению персонального состава и обеспечению деятельности административных комиссий",1,13,24300,0,604.1]
["Выполнение функций органами местного самоуправления",1,13,24300,"500",604.1]
["Осуществление отдельных государственных полномочий в области производства и оборота этилового спирта, алкогольной и спиртосодержащей продукции",1,13,24400,0,402.8]
["Выполнение функций органами местного самоуправления",1,13,24400,"500",402.8]
["Осуществление отдельных областных государственных полномочий в области охраны труда",1,13,24500,0,604.1]
["Выполнение функций органами местного самоуправления",1,13,24500,"500",604.1]
["Реализация государственных функций, связанных с общегосударственным управлением",1,13,920000,0,181]
["Выполнение других обязательств государства",1,13,920300,0,181]
["Выполнение функций органами местного самоуправления",1,13,920300,"500",181]
[" Целевые программы муниципальных образований",1,13,7950000,0,155]
["Долгосрочная целевая программа \"Улучшение условий и охраны труда в Черемховском районе на 2011-2013гг.\"",1,13,7951400,0,15]
["Выполнение функций органами местного самоуправления",1,13,7951400,"500",15]
["Комплексная программа \"Профилактика правонарушений в Черемховском районном муниципальном образовании на 2013-2016 годы\"",1,13,7952600,0,40]
["Выполнение функций органами местного самоуправления",1,13,7952600,"500",40]
["Долгосрочная целевая программа \"Поддержка молодых педагогов на территории Черемховского районного муниципального образования\" на 2012-2013 годы",1,13,7952700,0,100]
["Выполнение функций органами местного самоуправления",1,13,7952700,"500",100]
["Реализация государственных функций, связанных с общегосударственным управлением",1,13,920000,0,748.56399999999996]
["Выполнение других обязательств государства",1,13,920300,0,748.56399999999996]
["Выполнение функций органами местного самоуправления",1,13,920300,"500",748.56399999999996]
["НАЦИОНАЛЬНАЯ ЭКОНОМИКА",4,0,0,0,5981.71]
["Дорожное хозяйство(дорожные фонды)",4,9,0,0,5351.51]
[" Целевые программы муниципальных образований",4,9,7950000,0,1320]
["Долгосрочная целевая программа \"Инвентаризация муниципальных объектов недвижимости Черемховского районного муниципального образования на 2012-2014 годы\"",4,9,7951900,0,1320]
["Выполнение функций органами местного самоуправления",4,9,7951900,"500",1320]
["Региональные целевые программы",4,9,5220000,0,3829]
["Долгосрочная целевая программа \"Развитие автомобильных дорог общего пользования регионального или межмуниципального значения и местного значения в Иркутской области на 2011 - 2014 годы\"",4,9,5224700,0,3829]
["Выполнение функций органами местного самоуправления",4,9,5224700,"500",3829]
[" Целевые программы муниципальных образований",4,9,7950000,0,202.51]
["Долгосрочная целевая программа \"Развитие автомобильных дорог Черемховского районного муниципального образования на 2013-2015 годы\"",4,9,7952300,0,202.51]
["Выполнение функций органами местного самоуправления",4,9,7952300,"500",202.51]
["Другие вопросы в области национальной экономики",4,12,0,0,630.20000000000005]
["Целевые программы муниципальных образований",4,12,7950000,0,500]
["Долгосрочная целевая программа \"Инвентаризация муниципальных объектов недвижимости Черемховского районного муниципального образования на 2012-2014 годы\"",4,12,7951900,0,500]
["Выполнение функций органами местного самоуправления",4,12,7951900,"500",500]
["Целевые программы муниципальных образований",4,12,7950000,0,100]
["Долгосрочная целевая программа \"Поддержка и развитие малого и среднего предпринимательства в Черемховском районе\" на 2013-2014 годы",4,12,7952200,0,100]
["Выполнение функций органами местного самоуправления",4,12,7952200,"500",100]
["Мероприятия в области строительства, архитектуры и градостроительства",4,12,3380000,0,30.2]
["Подготовка проектов правил землепользования и застройки муниципальных образований Черемховского районного муниципального образования",4,12,3380200,0,30.2]
["Выполнение функций органами местного самоуправления",4,12,3380200,"500",30.2]
["ЖИЛИЩНО-КОММУНАЛЬНОЕ ХОЗЯЙСТВО",5,0,0,0,7765.8909999999996]
["Жилищное хозяйство",5,1,0,0,2399.944]
["Поддержка жилищного хозяйства",5,1,3500000,0,1100.127]
["Капитальный ремонт государственного жилищного фонда субъектов Российской Федерации и муниципального жилищного фонда",5,1,3500200,0,1046.114]
["Субсидии юридическим лицам",5,1,3500200,"006",1046.114]
["Мероприятия в области жилищного хозяйства",5,1,3500300,0,54.012999999999998]
["Выполнение функций органами местного самоуправления",5,1,3500300,"500",54.012999999999998]
["Поддержка жилищного хозяйства",5,1,3500000,0,1299.817]
["Мероприятия в области жилищного хозяйства",5,1,3500300,0,1299.817]
["Выполнение функций органами местного самоуправления",5,1,3500300,"500",1299.817]
["Коммунальное хозяйство",5,2,0,0,70]
["Региональные целевые программы",5,2,5220000,0,70]
["Долгосрочная целевая программа «Энергосбережение и повышение энергетической эффективности на территории Иркутской области на 2011-2015 годы и на период до 2020 года»",5,2,5225400,0,70]
["Иные межбюджетные трансферты",5,2,5225400,"017",70]
["Другие вопросы в области жилищно-коммунального хозяйства",5,5,0,0,5295.9470000000001]
["Руководство и управление в сфере установленных функций органов государственной власти субъектов Российской Федерации  и органов местного самоуправления",5,5,20000,0,5295.9470000000001]
["Центральный аппарат",5,5,20400,0,5295.9470000000001]
["Выполнение функций органами местного самоуправления",5,5,20400,"500",5295.9470000000001]
["ОХРАНА ОКРУЖАЮЩЕЙ СРЕДЫ",6,0,0,0,5150]
["Другие вопросы в области охраны окружающей среды",6,5,0,0,5150]
["Состояние окружающей среды и природопользования",6,5,4100000,0,150]
["Природоохранные мероприятия",6,5,4100100,0,150]
["Выполнение функций органами местного самоуправления",6,5,4100100,"500",150]
["Региональные целевые программы",6,5,5220000,0,5000]
["Долгосрочная целевая программа Иркутской области «Защита окружающей среды в Иркутской области на 2011-2015 годы»",6,5,5222500,0,5000]
["Подпрограмма «Отходы производства и потребления в Иркутской области на 2011-2015 годы»",6,5,5222502,0,5000]
["Выполнение функций органами местного самоуправления",6,5,5222502,"500",5000]
["ОБРАЗОВАНИЕ",7,0,0,0,478334.94500000001]
["Дошкольное образование",7,1,0,0,106629.85799999999]
["Детские дошкольные учреждения",7,1,4200000,0,65953.713000000003]
["Обеспечение деятельности подведомственных учреждений",7,1,4209900,0,65953.713000000003]
["Выполнение функций казенными учреждениями",7,1,4209900,"001",65953.713000000003]
["Региональные целевые программы",7,1,5220000,0,3335.7660000000001]
["Областная государственная целевая программа поддержки и развития учреждений дошкольного образования в Иркутской области на 2009-2014 годы",7,1,5223700,0,3027.5059999999999]
["Выполнение функций казенными учреждениями",7,1,5223700,"001",3027.5059999999999]
["Долгосрочная целевая программа «Энергосбережение и повышение энергетической эффективности на территории Иркутской области на 2011-2015 годы и на период до 2020 года»",7,1,5225400,0,308.26]
["Выполнение функций казенными учреждениями",7,1,5225400,"001",308.26]
["Выплата заработной платы с начислениями на нее педагогическим работникам муниципальных дошкольных образовательных учреждений и муниципальных учреждений дополнительного образования",7,1,5890000,0,29973.348999999998]
["Выполнение функций казенными учреждениями",7,1,5890000,"001",29973.348999999998]
[" Целевые программы муниципальных образований",7,1,7950000,0,7367.03]
["Долгосрочная целевая программа Черемховского районного муниципального образования \"Повышение эффективности бюджетных расходов Черемховского районного муниципального образования на 2012-2013 годы\"",7,1,7950200,0,5211]
["Выполнение функций казенными учреждениями",7,1,7950200,"001",5211]
["Долгосрочная целевая программа \"Безопасность образовательных учреждений на 2010-2014 гг.\"",7,1,7951000,0,572]
["Мероприятия по обеспечению пожарной безопасности",7,1,7951000,"450",572]
["Долгосрочная целевая программа энергосбережения и повышения энергетической эффективности Черемховского районного муниципального образования на 2010-2015 годы",7,1,7951100,0,132.03]
["Мероприятия по повышению энергетической эффективности",7,1,7951100,"451",132.03]
["Долгосрочная целевая программа \"Развитие дошкольного образования на 2011-2014 гг.\"",7,1,7951700,0,1102]
["Мероприятия в сфере образования",7,1,7951700,"022",1102]
["Долгосрочная целевая программа \"Совершенствование дошкольного образования Черемховского района на 2011-2014 гг.\"",7,1,7951800,0,350]
["Мероприятия в сфере образования",7,1,7951800,"022",350]
["Общее образование",7,2,0,0,360420.446]
["Учреждения по внешкольной работе с детьми",7,2,4230000,0,5390.9179999999997]
["Обеспечение деятельности подведомственных учреждений",7,2,4239900,0,5390.9179999999997]
["Выполнение функций казенными учреждениями",7,2,4239900,"001",5390.9179999999997]
[" Целевые программы муниципальных образований",7,2,7950000,0,803.8]
["Долгосрочная целевая программа Черемховского районного муниципального образования \"Повышение эффективности бюджетных расходов Черемховского районного муниципального образования на 2012-2013 годы\"",7,2,7950200,0,711]
["Выполнение функций казенными учреждениями",7,2,7950200,"001",711]
["Долгосрочная целевая программа \"Развитие культуры в Черемховском районном муниципальном образовании на период 2012-2016 гг.\"",7,2,7952000,0,92.8]
["Мероприятия по поддержке и развитию культуры, искусства, кинематографии",7,2,7952000,"023",92.8]
["Руководство и управление в сфере установленных функций органов государственной власти субъектов Российской Федерации  и органов местного самоуправления",7,2,20000,0,281204.44900000002]
["Обеспечение государственных гарантий прав граждан на получение общедоступного и бесплатного дошкольного, начального общего, основного общего, среднего (полного) общего образования, а также дополнительного образования в общеобразовательных учреждениях",7,2,25000,0,281204.44900000002]
["Выполнение функций казенными учреждениями",7,2,25000,"001",281204.44900000002]
["Школы - детские сады, школы начальные, неполные средние и средние",7,2,4210000,0,22043.404999999999]
["Обеспечение деятельности подведомственных учреждений",7,2,4219900,0,22043.404999999999]
["Выполнение функций казенными учреждениями",7,2,4219900,"001",22043.404999999999]
["Учреждения по внешкольной работе с детьми",7,2,4230000,0,23454.874]
["Обеспечение деятельности подведомственных учреждений",7,2,4239900,0,23454.874]
["Выполнение функций казенными учреждениями",7,2,4239900,"001",23454.874]
["Мероприятия в области образования",7,2,4360000,0,1600]
["Модернизация региональных систем образования",7,2,4362100,0,1600]
["Модернизация региональных систем образования за счет средств федерального бюджета",7,2,4362101,0,1600]
["Выполнение функций казенными учреждениями",7,2,4362101,"001",1600]
["Иные безвозмездные и безвозвратные перечисления",7,2,5200000,0,5000.1000000000004]
["Ежемесячное денежное вознаграждение за классное руководство",7,2,5200900,0,5000.1000000000004]
["Выполнение функций казенными учреждениями",7,2,5200900,"001",5000.1000000000004]
["Региональные целевые программы",7,2,5220000,0,2040.09]
["Долгосрочная целевая программа «Модернизация объектов коммунальной инфраструктуры Иркутской области на 2011-2013 годы»",7,2,5222000,0,1700]
["Подпрограмма «Подготовка объектов коммунальной инфраструктуры Иркутской области к отопительному сезону в 2011-2013 годах»",7,2,5222001,0,1700]
["Выполнение функций казенными учреждениями",7,2,5222001,"001",1700]
["Долгосрочная целевая программа «Энергосбережение и повышение энергетической эффективности на территории Иркутской области на 2011-2015 годы и на период до 2020 года»",7,2,5225400,0,340.09]
["Выполнение функций казенными учреждениями",7,2,5225400,"001",340.09]
["Выплата заработной платы с начислениями на нее педагогическим работникам муниципальных дошкольных образовательных учреждений и муниципальных учреждений дополнительного образования",7,2,5890000,0,2201.951]
["Выполнение функций казенными учреждениями",7,2,5890000,"001",2201.951]
[" Целевые программы муниципальных образований",7,2,7950000,0,16680.859]
["Долгосрочная целевая программа Черемховского районного муниципального образования \"Повышение эффективности бюджетных расходов Черемховского районного муниципального образования на 2012-2013 годы\"",7,2,7950200,0,13184.888999999999]
["Выполнение функций казенными учреждениями",7,2,7950200,"001",13184.888999999999]
["Долгосрочная целевая программа \"Безопасность образовательных учреждений на 2010-2014 гг.\"",7,2,7951000,0,1128]
["Мероприятия по обеспечению пожарной безопасности",7,2,7951000,"450",1128]
["Долгосрочная целевая программа энергосбережения и повышения энергетической эффективности Черемховского районного муниципального образования на 2010-2015 годы",7,2,7951100,0,467.97]
["Мероприятия по повышению энергетической эффективности",7,2,7951100,"451",467.97]
["Долгосрочная целевая программа \"Ветхие школы Черемховского района\" на 2011-2013 гг.",7,2,7951500,0,900]
["Мероприятия в сфере образования",7,2,7951500,"022",900]
["Долгосрочная целевая программа \"Совершенствование организации питания в образовательных учреждениях Черемховского района на 2011-2013гг.\"",7,2,7951600,0,1000]
["Мероприятия в сфере образования",7,2,7951600,"022",1000]
["Профессиональная подготовка, переподготовка и повышение квалификации",7,5,0,0,215.46]
["Мероприятия по переподготовке и повышению квалификации",7,5,4340000,0,108.06]
["Выполнение функций казенными учреждениями",7,5,4340000,"001",108.06]
["Мероприятия по переподготовке и повышению квалификации",7,5,4340000,0,100]
["Выполнение функций казенными учреждениями",7,5,4340000,"001",100]
["Мероприятия по переподготовке и повышению квалификации",7,5,4340000,0,107.4]
["Выполнение функций органами местного самоуправления",7,5,4340000,"500",107.4]
["Мероприятия по переподготовке и повышению квалификации",7,5,4340000,0,11.4]
["Выполнение функций органами местного самоуправления",7,5,4340000,"500",11.4]
["Мероприятия по переподготовке и повышению квалификации",7,5,4340000,0,24]
["Выполнение функций органами местного самоуправления",7,5,4340000,"500",24]
["Мероприятия по переподготовке и повышению квалификации",7,5,4340000,0,10]
["Выполнение функций органами местного самоуправления",7,5,4340000,"500",10]
["Мероприятия по переподготовке и повышению квалификации",7,5,4340000,0,2]
["Выполнение функций органами местного самоуправления",7,5,4340000,"500",2]
["Молодежная политика и оздоровление детей",7,7,0,0,2571.9]
["Мероприятия по проведению оздоровительной кампании детей",7,7,4320000,0,123.8]
["Оплата стоимости набора продуктов питания для детей в организованных органами местного самоуправления оздоровительных лагерях с дневным пребыванием детей за счет средств областного бюджета",7,7,4320300,0,123.8]
["Оплата стоимости набора продуктов питания для детей в организованных органами местного самоуправления оздоровительных лагерях с дневным пребыванием детей за счет средств местного бюджета \n",7,7,4320302,0,123.8]
["Выполнение функций казенными учреждениями",7,7,4320302,"001",123.8]
["Региональные целевые программы",7,7,5220000,0,2352.1]
["Долгосрочная целевая программа Иркутской области \"Организация и обеспечение отдыха и оздоровления детей в Иркутской области на 2012-2014гг.\"",7,7,5226200,0,2352.1]
["Выполнение функций казенными учреждениями",7,7,5226200,"001",2352.1]
["Организационно-воспитательная работа с молодежью",7,7,4310000,0,46]
["Проведение мероприятий для детей и молодежи",7,7,4310100,0,46]
["Проведение мероприятия для детей и молодежи",7,7,4310100,"447",46]
["Целевые программы муниципальных образований",7,7,7950000,0,50]
["Долгосрочная целевая программа \"Комплексные меры профилактики злоупотребления наркотическими средствами и психотропными веществами в Черемховском районном муниципальном образовании на 2011-2013 гг.\"",7,7,7951300,0,10]
["Выполнение функций органами местного самоуправления",7,7,7951300,"500",10]
["Долгосрочная целевая программа \"Молодежная политика в Черемховском районном муниципальном образовании\" на 2013-2015 гг.",7,7,7952500,0,40]
["Проведение мероприятия для детей и молодежи",7,7,7952500,"447",40]
["Другие вопросы в области образования",7,9,0,0,8497.2810000000009]
["Руководство и управление в сфере установленных функций органов государственной власти субъектов Российской Федерации  и органов местного самоуправления",7,9,20000,0,2997.2809999999999]
["Центральный аппарат",7,9,20400,0,2997.2809999999999]
["Выполнение функций органами местного самоуправления",7,9,20400,"500",2997.2809999999999]
["Учебно-методические кабинеты, централизованные бухгалтерии, группы хозяйственного обслуживания, учебные фильмотеки, межшкольные учебно-производственные комбинаты, логопедические пункты",7,9,4520000,0,5500]
["Субсидии бюджетным учреждениям на финансовое обеспечение муниципального задания на оказание муниципальных услуг (выполнение работ)",7,9,4520000,"611",5500]
["КУЛЬТУРА И КИНЕМАТОГРАФИЯ",8,0,0,0,21830.501]
["Культура",8,1,0,0,20508.774000000001]
["Учреждения культуры и мероприятия в сфере культуры и кинематографии",8,1,4400000,0,6951.4570000000003]
["Комплектование книжных фондов библиотек муниципальных образований и государственных библиотек городов Москвы и Санкт-Петербурга",8,1,4400200,0,466.3]
["Комплектование книжных фондов библиотек муниципальных образований и государственных библиотек городов Москвы и Санкт-Петербурга за счет средств федерального бюджета",8,1,4400201,0,303.60000000000002]
["Выполнение функций казенными учреждениями",8,1,4400201,"001",303.60000000000002]
["Комплектование книжных фондов библиотек муниципальных образований и государственных библиотек городов Москвы и Санкт-Петербурга за счет областного бюджета",8,1,4400202,0,162.69999999999999]
["Выполнение функций казенными учреждениями",8,1,4400202,"001",162.69999999999999]
["Обеспечение деятельности подведомственных учреждений",8,1,4409900,0,6485.1570000000002]
["Выполнение функций казенными учреждениями",8,1,4409900,"001",6485.1570000000002]
["Музеи и постоянные выставки",8,1,4410000,0,1338.6179999999999]
["Обеспечение деятельности подведомственных учреждений",8,1,4419900,0,1338.6179999999999]
["Выполнение функций казенными учреждениями",8,1,4419900,"001",1338.6179999999999]
["Библиотеки",8,1,4420000,0,8758.6990000000005]
["Обеспечение деятельности подведомственных учреждений",8,1,4429900,0,8758.6990000000005]
["Выполнение функций казенными учреждениями",8,1,4429900,"001",8758.6990000000005]
["Региональные целевые программы",8,1,5220000,0,1500]
["Долгосрочная целевая программа Иркутской области «100 модельных домов культуры Приангарью» на 2011-2013 годы",8,1,5225500,0,1000]
["Выполнение функций казенными учреждениями",8,1,5225500,"001",1000]
["Долгосрочная целевая программа \"Публичные центры правовой, деловой и социально-значимой информации центральных районных  библиотек Иркутской области\" (2013-2014 годы)",8,1,5227600,0,500]
["Выполнение функций казенными учреждениями",8,1,5227600,"001",500]
[" Целевые программы муниципальных образований",8,1,7950000,0,1960]
["Долгосрочная целевая программа Черемховского районного муниципального образования \"Повышение эффективности бюджетных расходов Черемховского районного муниципального образования на 2012-2013 годы\"",8,1,7950200,0,747]
["Выполнение функций казенными учреждениями",8,1,7950200,"001",747]
["Долгосрочная целевая программа энергосбережения и повышения энергетической эффективности Черемховского районного муниципального образования на 2010-2015 годы",8,1,7951100,0,282]
["Мероприятия по повышению энергетической эффективности",8,1,7951100,"451",282]
["Долгосрочная целевая программа \"Развитие культуры в Черемховском районном муниципальном образовании на период 2012-2016 гг.\"",8,1,7952000,0,931]
["Мероприятия по поддержке и развитию культуры, искусства, кинематографии",8,1,7952000,"023",931]
["Другие вопросы в области культуры, кинематографии",8,4,0,0,1321.7270000000001]
["Руководство и управление в сфере установленных функций органов государственной власти субъектов Российской Федерации  и органов местного самоуправления",8,4,20000,0,1321.7270000000001]
["Центральный аппарат",8,4,20400,0,1321.7270000000001]
["Выполнение функций органами местного самоуправления",8,4,20400,"500",1321.7270000000001]
["ЗДРАВООХРАНЕНИЕ",9,0,0,0,200]
["Другие вопросы в области здравоохранения",9,9,0,0,200]
["Целевые программы муниципальных образований",9,9,7950000,0,200]
["Ведомственная целевая программа \"Обеспечение учреждений здравоохранения Черемховского районного муниципального образования квалифицированными медицинскими кадрами\" на 2013 год",9,9,7952800,0,200]
["Выполнение функций органами местного самоуправления",9,9,7952800,"500",200]
["Социальная политика",10,0,0,0,24388.235000000001]
["Пенсионное обеспечение",10,1,0,0,2980.0149999999999]
["Доплаты к пенсиям, дополнительное пенсионное обеспечение ",10,1,4910000,0,2980.0149999999999]
["Доплаты к пенсиям государственных служащих субъектов Российской Федерации и муниципальных служащих \n",10,1,4910100,0,2980.0149999999999]
["Социальные выплаты",10,1,4910100,"005",2980.0149999999999]
["Социальное обеспечение населения",10,3,0,0,15400.42]
["Руководство и управление в сфере установленных функций органов государственной власти субъектов Российской Федерации  и органов местного самоуправления",10,3,20000,0,6361.8]
["Осуществление отдельных областных государственных полномочий по предоставлению мер социальной поддержки многодетным и малоимущим семьям",10,3,24600,0,6361.8]
["Социальные выплаты",10,3,24600,"005",6361.8]
["Реализация государственных функций в области социальной политики",10,3,5140000,0,854.05600000000004]
["Мероприятия в области социальной политики",10,3,5140100,0,854.05600000000004]
["Социальные выплаты",10,3,5140100,"005",854.05600000000004]
["Региональные целевые программы",10,3,5220000,0,234.864]
["Областная государственная социальная программа \"Молодым семьям - доступное жилье\" на 2005-2019 годы",10,3,5222200,0,234.864]
["Социальные выплаты",10,3,5222200,"005",234.864]
[" Целевые программы муниципальных образований",10,3,7950000,0,360]
["Долгосрочная целевая программа \"Молодым семьям-доступное жилье\" на 2012-2019 гг.",10,3,7952100,0,360]
["Социальные выплаты",10,3,7952100,"005",360]
["Руководство и управление в сфере установленных функций органов государственной власти субъектов Российской Федерации  и органов местного самоуправления",10,3,20000,0,7589.7]
["Осуществление областных государственных полномочий по предоставлению гражданам субсидий на оплату жилых помещений и коммунальных услуг",10,3,24700,0,7589.7]
["Содержание и обеспечение деятельности муниципальных служащих, осуществляющих областные государственные полномочия по предоставлению гражданам субсидий на оплату жилых помещений и коммунальных услуг",10,3,24701,0,827.4]
["Выполнение функций органами местного самоуправления",10,3,24701,"500",827.4]
["Предоставление гражданам субсидий на оплату жилых помещений и коммунальных услуг",10,3,24702,0,6762.3]
["Социальные выплаты",10,3,24702,"005",6762.3]
["Охрана семьи и детства",10,4,0,0,4752]
["Исполнение судебных актов по обеспечению жилыми помещениями детей-сирот и детей, оставшихся без попечения родителей, лиц из числа детей-сирот и детей, оставшихся без попечения родителей, вынесенных в соответствии с Законом Иркутской области от 22.06.2010 № 50-ОЗ «О дополнительных гарантиях прав детей-сирот и детей, оставшихся без попечения родителей, на жилое помещение в Иркутской области» и Законом Иркутской области от 29.06.2010 № 52-ОЗ «О наделении органов местного самоуправления областными государственными полномочиями по обеспечению детей-сирот и детей, оставшихся без попечения родителей, лиц из числа детей-сирот и детей, оставшихся без попечения родителей, жилыми помещениями по договорам социального найма в Иркутской области",10,4,6040000,0,4752]
["Бюджетные инвестиции",10,4,6040000,"003",4752]
["Другие вопросы в области социальной политики",10,6,0,0,1255.8]
["Руководство и управление в сфере установленных функций органов государственной власти субъектов Российской Федерации  и органов местного самоуправления",10,6,20000,0,1155.8]
["Осуществление областных государственных полномочий по определению персонального состава и обеспечению деятельности районных (городских), районных в городах комиссий по делам несовершеннолетних и защите их прав",10,6,24100,0,1155.8]
["Выполнение функций органами местного самоуправления",10,6,24100,"500",1155.8]
[" Целевые программы муниципальных образований",10,6,7950000,0,100]
["Муниципальная целевая программа \"Поддержка, проводимых мероприятий, посвященных Дням воинской славы, памятным датам России и работе с ветеранами и инвалидами в Черемховском районе на 2013-2015 гг.\"",10,6,7952400,0,100]
["Выполнение функций органами местного самоуправления",10,6,7952400,"500",100]
["ФИЗИЧЕСКАЯ КУЛЬТУРА И СПОРТ",11,0,0,0,182.4]
["Физическая культура",11,1,0,0,182.4]
["Физкультурно-оздоровительная работа и спортивные мероприятия",11,1,5120000,0,82.4]
["Мероприятия в области спорта, физической культуры и туризма",11,1,5129700,0,82.4]
["Выполнение функций органами местного самоуправления",11,1,5129700,"500",82.4]
[" Целевые программы муниципальных образований",11,1,7950000,0,100]
["Долгосрочная целевая программа \"Развитие физической культуры, спорта и туризма в Черемховском районном муниципальном образовании на 2011-2013 гг.\"",11,1,7951200,0,100]
["Выполнение функций органами местного самоуправления",11,1,7951200,"500",100]
["СРЕДСТВА МАССОВОЙ ИНФОРМАЦИИ",12,0,0,0,2000]
["Периодическая печать и издательства",12,2,0,0,2000]
["Периодические издания, учрежденные органами законодательной и исполнительной власти",12,2,4570000,0,2000]
["Государственная поддержка в сфере культуры, кинематографии и средств массовой информации",12,2,4578500,0,2000]
["Субсидии юридическим лицам",12,2,4578500,"006",2000]
["ОБСЛУЖИВАНИЕ ГОСУДАРСТВЕННОГО И МУНИЦИПАЛЬНОГО ДОЛГА",13,0,0,0,60]
["Обслуживание внутреннего государственного и муниципального долга",13,1,0,0,60]
["Процентные платежи по долговым обязательствам",13,1,650000,0,60]
["Процентные платежи по муниципальному долгу",13,1,650300,0,60]
["Прочие расходы",13,1,650300,"013",60]
["МЕЖБЮДЖЕТНЫЕ ТРАНСФЕРТЫ ОБЩЕГО ХАРАКТЕРА БЮДЖЕТАМ СУБЪЕКТОВ РОССИЙСКОЙ ФЕДЕРАЦИИ И МУНИЦИПАЛЬНЫХ ОБРАЗОВАНИЙ ",14,0,0,0,8391]
["Дотации на выравнивание бюджетной обеспеченности субъектов Российской Федерации и муниципальных образований",14,1,0,0,3500]
["Выравнивание бюджетной обеспечености",14,1,5160000,0,3500]
["Выравнивание бюджетной обеспеченности",14,1,5160100,0,3500]
["Выравнивание бюджетной обеспеченности поселений из районного фонда финансовой поддержки",14,1,5160130,0,3500]
["Фонд финансовой поддержки",14,1,5160130,"008",3500]
["Прочие межбюджетные трансферты общего характера бюджетам субъектов Российской Федерации и муниципальных образований ",14,3,0,0,4891]
[" Целевые программы муниципальных образований",14,3,7950000,0,4891]
["Долгосрочная целевая программа Черемховского районного муниципального образования \"Повышение эффективности бюджетных расходов Черемховского районного муниципального образования на 2012-2013 годы\"",14,3,7950200,0,4891]
["Иные межбюджетные трансферты",14,3,7950200,"017",4891]
["ИТОГО",{"$nulls":4},626506.91399999999]
[]
[]
[]
[]
["И.о. начальника финуправления",null,null,null,"С.М. Татина"]

{"sheet":"прил5","index":3,"n_rows":315,"n_cols":7,"rows_kept":315,"cut":false,"hidden":true,"merged":[[314,5,314,6],[14,0,14,6],[16,0,17,0],[16,1,16,4],[16,5,16,6],[311,0,311,4]]}
{"$rows_empty":14}
["Распределение  бюджетных ассигнований   по разделам, подразделам, целевым статьям и видам расходов классификации расходов бюджетов на  плановый период 2014 и 2015 годов"]
[]
["Наименование показателя","Код",null,null,null,"Сумма, тыс.руб."]
[null,"раздела","подраздела","целевой статьи","вида расходов",2014,2015]
[1,2,3,4,5,6,7]
["ОБЩЕГОСУДАРСТВЕННЫЕ ВОПРОСЫ",1,0,0,0,57173.4,56134.3]
["Функционирование высшего должностного лица субъекта Российской Федерации и муниципального образования",1,2,0,0,1403,1472.1]
["Руководство и управление в сфере установленных функций органов государственной власти субъектов Российской Федерации  и органов местного самоуправления",1,2,20000,0,1403,1472.1]
["Глава муниципального образования",1,2,20300,0,1403,1472.1]
["Выполнение функций органами местного самоуправления",1,2,20300,"500",1403,1472.1]
["Функционирование законодательных (представительных) органов государственной власти и представительных органов муниципальных образований",1,3,0,0,940.5,986.3]
["Руководство и управление в сфере установленных функций органов государственной власти субъектов Российской Федерации  и органов местного самоуправления",1,3,20000,0,940.5,986.3]
["Центральный аппарат",1,3,20400,0,289,302]
["Выполнение функций органами местного самоуправления",1,3,20400,"500",289,302]
["Председатель представительного органа муниципального образования",1,3,21100,0,651.5,684.3]
["Выполнение функций органами местного самоуправления",1,3,21100,"500",651.5,684.3]
["Функционирование Правительства Российской Федерации, высших исполнительных органов государственной власти субъектов Российской Федерации, местных администраций",1,4,0,0,20490.599999999999,21389.4]
["Руководство и управление в сфере установленных функций органов государственной власти субъектов Российской Федерации  и органов местного самоуправления",1,4,20000,0,20490.599999999999,21389.4]
["Центральный аппарат",1,4,20400,0,20490.599999999999,21389.4]
["Выполнение функций органами местного самоуправления",1,4,20400,"500",20490.599999999999,21389.4]
["Региональные целевые программы",1,4,5220000,0,0,0]
["Долгосрочная целевая программа «Энергосбережение и повышение энергетической эффективности на территории Иркутской области на 2011-2015 годы и на период до 2020 года»",1,4,5225400,0,0,0]
["Выполнение функций органами местного самоуправления",1,4,5225400,"500",0,0]
["Целевые программы муниципальных образований",1,4,7950000,0,0,0]
["Долгосрочная целевая программа энергосбережения и повышения энергетической эффективности Черемховского районного муниципального образования на 2010-2015 годы",1,4,7951100,0,0,0]
["Мероприятия по повышению энергетической эффективности",1,4,7951100,"451",0,0]
["Обеспечение деятельности финансовых, налоговых и таможенных органов и органов финансового (финансово-бюджетного) надзора",1,6,0,0,7459.3,7789.5]
["Руководство и управление в сфере установленных функций органов государственной власти субъектов Российской Федерации  и органов местного самоуправления",1,6,20000,0,7459.3,7789.5]
["Центральный аппарат",1,6,20400,0,6674.1,6964.3]
["Выполнение функций органами местного самоуправления",1,6,20400,"500",6674.1,6964.3]
["Руководитель контрольно-счетной палаты муниципального образования и его заместители",1,6,22500,0,785.2,825.2]
["Выполнение функций органами местного самоуправления",1,6,22500,"500",785.2,825.2]
["Целевые программы муниципальных образований",1,6,7950000,0,0,0]
["Долгосрочная целевая программа Черемховского районного муниципального образования \"Повышение эффективности бюджетных расходов Черемховского районного муниципального образования на 2012-2013 годы\"",1,6,7950200,0,0,0]
["Выполнение функций органами местного самоуправления",1,6,7950200,"500",0,0]
["Обеспечение проведения выборов и референдумов",1,7,0,0,2500,0]
["Проведение выборов и референдумов",1,7,200000,0,2500,0]
["Проведение выборов и референдумов",1,7,200000,0,2500,0]
["Проведение выборов в представительные органы муниципального образования",1,7,200002,0,2500,0]
["Выполнение функций органами местного самоуправления",1,7,200002,"500",2500,0]
["Резервные фонды",1,11,0,0,300,300]
["Резервные фонды",1,11,700000,0,300,300]
["Резервные фонды местных администраций",1,11,700500,0,300,300]
["Выполнение функций органами местного самоуправления",1,11,700500,"500",300,300]
["Другие общегосударственные вопросы",1,13,0,0,24080,24197]
["Руководство и управление в сфере установленных функций органов государственной власти субъектов Российской Федерации  и органов местного самоуправления",1,13,20000,0,16869.2,17486.2]
["Центральный аппарат",1,13,20400,0,2262.4,2351.6999999999998]
["Выполнение функций органами местного самоуправления",1,13,20400,"500",2262.4,2351.6999999999998]
["Осуществление областных государственных полномочий по хранению, комплектованию, учету и использованию архивных документов, относящихся к государственной собственности Иркутской области",1,13,24000,0,1086,1086]
["Выполнение функций органами местного самоуправления",1,13,24000,"500",1086,1086]
["Осуществление областных государственных полномочий по определению персонального состава и обеспечению деятельности административных комиссий",1,13,24300,0,563.6,563.6]
["Выполнение функций органами местного самоуправления",1,13,24300,"500",563.6,563.6]
["Осуществление отдельных государственных полномочий в области производства и оборота этилового спирта, алкогольной и спиртосодержащей продукции",1,13,24400,0,404.3,430.2]
["Выполнение функций органами местного самоуправления",1,13,24400,"500",404.3,430.2]
["Осуществление отдельных областных государственных полномочий в области охраны труда",1,13,24500,0,563.6,563.6]
["Выполнение функций органами местного самоуправления",1,13,24500,"500",563.6,563.6]
["Обеспечение деятельности подведомственных учреждений",1,13,29900,0,11989.3,12491.1]
["Выполнение функций казенными учреждениями",1,13,29900,"001",11089.3,11591.1]
["Субсидии бюджетным учреждениям на финансовое обеспечение муниципального задания на оказание муниципальных услуг (выполнение работ)",1,13,29900,"611",900,900]
["Реализация государственных функций, связанных с общегосударственным управлением",1,13,920000,0,170.8,170.8]
["Выполнение других обязательств государства",1,13,920300,0,170.8,170.8]
["Выполнение функций органами местного самоуправления",1,13,920300,"500",170.8,170.8]
["Учреждения по обеспечению хозяйственного обслуживания",1,13,930000,0,6500,6500]
["Субсидии бюджетным учреждениям на финансовое обеспечение муниципального задания на оказание муниципальных услуг (выполнение работ)",1,13,930000,"611",6500,6500]
["Целевые программы муниципальных образований",1,13,7950000,0,540,40]
["Долгосрочная целевая программа \"Улучшение условий и охраны труда в Черемховском районе на 2011-2013гг.\"",1,13,7951400,0,0,0]
["Выполнение функций органами местного самоуправления",1,13,7951400,"500",0,0]
["Долгосрочная целевая программа \"Инвентаризация муниципальных объектов недвижимости Черемховского районного муниципального образования на 2012-2014 годы\"",1,13,7951900,0,500,0]
["Выполнение функций органами местного самоуправления",1,13,7951900,"500",500,0]
["Комплексная программа \"Профилактика правонарушений в Черемховском районном муниципальном образовании на 2013-2016 годы\"",1,13,7952600,0,40,40]
["Выполнение функций органами местного самоуправления",1,13,7952600,"500",40,40]
["Долгосрочная целевая программа \"Поддержка молодых педагогов на территории Черемховского районного муниципального образования\" на 2012-2013 годы",1,13,7952700,0,0,0]
["Выполнение функций органами местного самоуправления",1,13,7952700,"500",0,0]
["НАЦИОНАЛЬНАЯ ЭКОНОМИКА",4,0,0,0,3698.1,2406.5]
["Дорожное хозяйство(дорожные фонды)",4,9,0,0,3048.1,2406.5]
["Региональные целевые программы",4,9,5220000,0,0,0]
["Долгосрочная целевая программа \"Развитие автомобильных дорог общего пользования регионального или межмуниципального значения и местного значения в Иркутской области на 2011 - 2014 годы\"",4,9,5224700,0,0,0]
["Выполнение функций органами местного самоуправления",4,9,5224700,"500",0,0]
["Целевые программы муниципальных образований",4,9,7950000,0,3048.1,2406.5]
["Долгосрочная целевая программа \"Инвентаризация муниципальных объектов недвижимости Черемховского районного муниципального образования на 2012-2014 годы\"",4,9,7951900,0,0,0]
["Выполнение функций органами местного самоуправления",4,9,7951900,"500",0,0]
["Долгосрочная целевая программа \"Развитие автомобильных дорог Черемховского районного муниципального образования на 2013-2015 годы\"",4,9,7952300,0,3048.1,2406.5]
["Выполнение функций органами местного самоуправления",4,9,7952300,"500",3048.1,2406.5]
["Другие вопросы в области национальной экономики",4,12,0,0,650,0]
["Мероприятия в области строительства, архитектуры и градостроительства",4,12,3380000,0,0,0]
["Подготовка проектов правил землепользования и застройки муниципальных образований Черемховского районного муниципального образования",4,12,3380200,0,0,0]
["Выполнение функций органами местного самоуправления",4,12,3380200,"500",0,0]
["Целевые программы муниципальных образований",4,12,7950000,0,650,0]
["Долгосрочная целевая программа \"Инвентаризация муниципальных объектов недвижимости Черемховского районного муниципального образования на 2012-2014 годы\"",4,12,7951900,0,500,0]
["Выполнение функций органами местного самоуправления",4,12,7951900,"500",500,0]
["Долгосрочная целевая программа \"Поддержка и развитие малого и среднего предпринимательства в Черемховском районе\" на 2013-2014 годы",4,12,7952200,0,150,0]
["Выполнение функций органами местного самоуправления",4,12,7952200,"500",150,0]
["ЖИЛИЩНО-КОММУНАЛЬНОЕ ХОЗЯЙСТВО",5,0,0,0,4258,4464.7]
["Жилищное хозяйство",5,1,0,0,0,0]
["Поддержка жилищного хозяйства",5,1,3500000,0,0,0]
["Мероприятия в области жилищного хозяйства",5,1,3500300,0,0,0]
["Выполнение функций органами местного самоуправления",5,1,3500300,"500",0,0]
["Коммунальное хозяйство",5,2,0,0,0,0]
["Региональные целевые программы",5,2,5220000,0,0,0]
["Долгосрочная целевая программа «Энергосбережение и повышение энергетической эффективности на территории Иркутской области на 2011-2015 годы и на период до 2020 года»",5,2,5225400,0,0,0]
["Иные межбюджетные трансферты",5,2,5225400,"017",0,0]
["Другие вопросы в области жилищно-коммунального хозяйства",5,5,0,0,4258,4464.7]
["Руководство и управление в сфере установленных функций органов государственной власти субъектов Российской Федерации  и органов местного самоуправления",5,5,20000,0,4258,4464.7]
["Центральный аппарат",5,5,20400,0,4258,4464.7]
["Выполнение функций органами местного самоуправления",5,5,20400,"500",4258,4464.7]
["ОХРАНА ОКРУЖАЮЩЕЙ СРЕДЫ",6,0,0,0,0,0]
["Другие вопросы в области охраны окружающей среды",6,5,0,0,0,0]
["Состояние окружающей среды и природопользования",6,5,4100000,0,0,0]
["Природоохранные мероприятия",6,5,4100100,0,0,0]
["Выполнение функций органами местного самоуправления",6,5,4100100,"500",0,0]
["Региональные целевые программы",6,5,5220000,0,0,0]
["Долгосрочная целевая программа Иркутской области «Защита окружающей среды в Иркутской области на 2011-2015 годы»",6,5,5222500,0,0,0]
["Подпрограмма «Отходы производства и потребления в Иркутской области на 2011-2015 годы»",6,5,5222502,0,0,0]
["Выполнение функций органами местного самоуправления",6,5,5222502,"500",0,0]
["ОБРАЗОВАНИЕ",7,0,0,0,348970.3,346703.1]
["Дошкольное образование",7,1,0,0,64603.4,62906.1]
["Детские дошкольные учреждения",7,1,4200000,0,61308.4,61441.1]
["Обеспечение деятельности подведомственных учреждений",7,1,4209900,0,61308.4,61441.1]
["Выполнение функций казенными учреждениями",7,1,4209900,"001",61308.4,61441.1]
["Региональные целевые программы",7,1,5220000,0,0,0]
["Областная государственная целевая программа поддержки и развития учреждений дошкольного образования в Иркутской области на 2009-2014 годы",7,1,5223700,0,0,0]
["Выполнение функций казенными учреждениями",7,1,5223700,"001",0,0]
["Долгосрочная целевая программа «Энергосбережение и повышение энергетической эффективности на территории Иркутской области на 2011-2015 годы и на период до 2020 года»",7,1,5225400,0,0,0]
["Выполнение функций казенными учреждениями",7,1,5225400,"001",0,0]
["Выплата заработной платы с начислениями на нее педагогическим работникам муниципальных дошкольных образовательных учреждений и муниципальных учреждений дополнительного образования",7,1,5890000,0,1465,1465]
["Выполнение функций казенными учреждениями",7,1,5890000,"001",1465,1465]
["Целевые программы муниципальных образований",7,1,7950000,0,1830,0]
["Долгосрочная целевая программа Черемховского районного муниципального образования \"Повышение эффективности бюджетных расходов Черемховского районного муниципального образования на 2012-2013 годы\"",7,1,7950200,0,0,0]
["Выполнение функций казенными учреждениями",7,1,7950200,"001",0,0]
["Долгосрочная целевая программа \"Безопасность образовательных учреждений на 2010-2014 гг.\"",7,1,7951000,0,830,0]
["Мероприятия по обеспечению пожарной безопасности",7,1,7951000,"450",830,0]
["Долгосрочная целевая программа энергосбережения и повышения энергетической эффективности Черемховского районного муниципального образования на 2010-2015 годы",7,1,7951100,0,600,0]
["Мероприятия по повышению энергетической эффективности",7,1,7951100,"451",600,0]
["Долгосрочная целевая программа \"Развитие дошкольного образования на 2011-2014 гг.\"",7,1,7951700,0,0,0]
["Мероприятия в сфере образования",7,1,7951700,"022",0,0]
["Долгосрочная целевая программа \"Совершенствование дошкольного образования Черемховского района на 2011-2014 гг.\"",7,1,7951800,0,400,0]
["Мероприятия в сфере образования",7,1,7951800,"022",400,0]
["Общее образование",7,2,0,0,276921.3,276261.59999999998]
["Руководство и управление в сфере установленных функций органов государственной власти субъектов Российской Федерации  и органов местного самоуправления",7,2,20000,0,238581.5,238581.5]
["Обеспечение государственных гарантий прав граждан на получение общедоступного и бесплатного дошкольного, начального общего, основного общего, среднего (полного) общего образования, а также дополнительного образования в общеобразовательных учреждениях",7,2,25000,0,238581.5,238581.5]
["Выполнение функций казенными учреждениями",7,2,25000,"001",238581.5,238581.5]
["Школы - детские сады, школы начальные, неполные средние и средние",7,2,4210000,0,15782.6,15808.4]
["Обеспечение деятельности подведомственных учреждений",7,2,4219900,0,15782.6,15808.4]
["Выполнение функций казенными учреждениями",7,2,4219900,"001",15782.6,15808.4]
["Учреждения по внешкольной работе с детьми",7,2,4230000,0,20340.099999999999,21257.8]
["Обеспечение деятельности подведомственных учреждений",7,2,4239900,0,20340.099999999999,21257.8]
["Выполнение функций казенными учреждениями",7,2,4239900,"001",20340.099999999999,21257.8]
["Мероприятия в области образования",7,2,4360000,0,0,0]
["Модернизация региональных систем образования",7,2,4362100,0,0,0]
["Модернизация региональных систем образования за счет средств федерального бюджета",7,2,4362101,0,0,0]
["Выполнение функций казенными учреждениями",7,2,4362101,"001",0,0]
["Иные безвозмездные и безвозвратные перечисления",7,2,5200000,0,0,0]
["Ежемесячное денежное вознаграждение за классное руководство",7,2,5200900,0,0,0]
["Выполнение функций казенными учреждениями",7,2,5200900,"001",0,0]
["Региональные целевые программы",7,2,5220000,0,0,0]
["Долгосрочная целевая программа «Модернизация объектов коммунальной инфраструктуры Иркутской области на 2011-2013 годы»",7,2,5222000,0,0,0]
["Подпрограмма «Подготовка объектов коммунальной инфраструктуры Иркутской области к отопительному сезону в 2011-2013 годах»",7,2,5222001,0,0,0]
["Выполнение функций казенными учреждениями",7,2,5222001,"001",0,0]
["Долгосрочная целевая программа «Энергосбережение и повышение энергетической эффективности на территории Иркутской области на 2011-2015 годы и на период до 2020 года»",7,2,5225400,0,0,0]
["Выполнение функций казенными учреждениями",7,2,5225400,"001",0,0]
["Выплата заработной платы с начислениями на нее педагогическим работникам муниципальных дошкольных образовательных учреждений и муниципальных учреждений дополнительного образования",7,2,5890000,0,540.1,540.1]
["Выполнение функций казенными учреждениями",7,2,5890000,"001",540.1,540.1]
["Целевые программы муниципальных образований",7,2,7950000,0,1677,73.8]
["Долгосрочная целевая программа Черемховского районного муниципального образования \"Повышение эффективности бюджетных расходов Черемховского районного муниципального образования на 2012-2013 годы\"",7,2,7950200,0,0,0]
["Выполнение функций казенными учреждениями",7,2,7950200,"001",0,0]
["Долгосрочная целевая программа \"Безопасность образовательных учреждений на 2010-2014 гг.\"",7,2,7951000,0,970,0]
["Мероприятия по обеспечению пожарной безопасности",7,2,7951000,"450",970,0]
["Долгосрочная целевая программа энергосбережения и повышения энергетической эффективности Черемховского районного муниципального образования на 2010-2015 годы",7,2,7951100,0,0,0]
["Мероприятия по повышению энергетической эффективности",7,2,7951100,"451",0,0]
["Долгосрочная целевая программа \"Ветхие школы Черемховского района\" на 2011-2013 гг.",7,2,7951500,0,0,0]
["Мероприятия в сфере образования",7,2,7951500,"022",0,0]
["Долгосрочная целевая программа \"Совершенствование организации питания в образовательных учреждениях Черемховского района на 2011-2013гг.\"",7,2,7951600,0,600,0]
["Мероприятия в сфере образования",7,2,7951600,"022",600,0]
["Долгосрочная целевая программа \"Развитие культуры в Черемховском районном муниципальном образовании на период 2012-2016 гг.\"",7,2,7952000,0,107,73.8]
["Мероприятия по поддержке и развитию культуры, искусства, кинематографии",7,2,7952000,"023",107,73.8]
["Профессиональная подготовка, переподготовка и повышение квалификации",7,5,0,0,127,127]
["Мероприятия по переподготовке и повышению квалификации",7,5,4340000,0,127,127]
["Выполнение функций казенными учреждениями",7,5,4340000,"001",127,127]
["Выполнение функций органами местного самоуправления",7,5,4340000,"500",0,0]
["Молодежная политика и оздоровление детей",7,7,0,0,212,212]
["Организационно-воспитательная работа с молодежью",7,7,4310000,0,46,46]
["Проведение мероприятий для детей и молодежи",7,7,4310100,0,46,46]
["Проведение мероприятия для детей и молодежи",7,7,4310100,"447",46,46]
["Мероприятия по проведению оздоровительной кампании детей",7,7,4320000,0,126,126]
["Оплата стоимости набора продуктов питания для детей в организованных органами местного самоуправления оздоровительных лагерях с дневным пребыванием детей за счет средств областного бюджета",7,7,4320300,0,126,126]
["Оплата стоимости набора продуктов питания для детей в организованных органами местного самоуправления оздоровительных лагерях с дневным пребыванием детей за счет средств местного бюджета ",7,7,4320302,0,126,126]
["Выполнение функций казенными учреждениями",7,7,4320302,"001",126,126]
["Региональные целевые программы",7,7,5220000,0,0,0]
["Долгосрочная целевая программа Иркутской области \"Организация и обеспечение отдыха и оздоровления детей в Иркутской области на 2012-2014гг.\"",7,7,5226200,0,0,0]
["Выполнение функций казенными учреждениями",7,7,5226200,"001",0,0]
["Целевые программы муниципальных образований",7,7,7950000,0,40,40]
["Долгосрочная целевая программа \"Комплексные меры профилактики злоупотребления наркотическими средствами и психотропными веществами в Черемховском районном муниципальном образовании на 2011-2013 гг.\"",7,7,7951300,0,0,0]
["Выполнение функций органами местного самоуправления",7,7,7951300,"500",0,0]
["Долгосрочная целевая программа \"Молодежная политика в Черемховском районном муниципальном образовании\" на 2013-2015 гг.",7,7,7952500,0,40,40]
["Проведение мероприятия для детей и молодежи",7,7,7952500,"447",40,40]
["Другие вопросы в области образования",7,9,0,0,7106.6,7196.4]
["Руководство и управление в сфере установленных функций органов государственной власти субъектов Российской Федерации  и органов местного самоуправления",7,9,20000,0,2106.6,2196.4]
["Центральный аппарат",7,9,20400,0,2106.6,2196.4]
["Выполнение функций органами местного самоуправления",7,9,20400,"500",2106.6,2196.4]
["Учебно-методические кабинеты, централизованные бухгалтерии, группы хозяйственного обслуживания, учебные фильмотеки, межшкольные учебно-производственные комбинаты, логопедические пункты",7,9,4520000,0,5000,5000]
["Субсидии бюджетным учреждениям на финансовое обеспечение муниципального задания на оказание муниципальных услуг (выполнение работ)",7,9,4520000,"611",5000,5000]
["КУЛЬТУРА И КИНЕМАТОГРАФИЯ",8,0,0,0,13119.4,12743.1]
["Культура",8,1,0,0,12183.5,11762]
["Учреждения культуры и мероприятия в сфере культуры и кинематографии",8,1,4400000,0,3856.1,4010.2]
["Комплектование книжных фондов библиотек муниципальных образований и государственных библиотек городов Москвы и Санкт-Петербурга",8,1,4400200,0,466.3,466.3]
["Комплектование книжных фондов библиотек муниципальных образований и государственных библиотек городов Москвы и Санкт-Петербурга за счет средств федерального бюджета",8,1,4400201,0,303.60000000000002,303.60000000000002]
["Выполнение функций казенными учреждениями",8,1,4400201,"001",303.60000000000002,303.60000000000002]
["Комплектование книжных фондов библиотек муниципальных образований и государственных библиотек городов Москвы и Санкт-Петербурга за счет областного бюджета",8,1,4400202,0,162.69999999999999,162.69999999999999]
["Выполнение функций казенными учреждениями",8,1,4400202,"001",162.69999999999999,162.69999999999999]
["Обеспечение деятельности подведомственных учреждений",8,1,4409900,0,3389.8,3543.9]
["Выполнение функций казенными учреждениями",8,1,4409900,"001",3389.8,3543.9]
["Музеи и постоянные выставки",8,1,4410000,0,899.1,935.8]
["Обеспечение деятельности подведомственных учреждений",8,1,4419900,0,899.1,935.8]
["Выполнение функций казенными учреждениями",8,1,4419900,"001",899.1,935.8]
["Библиотеки",8,1,4420000,0,5424.3,5676.8]
["Обеспечение деятельности подведомственных учреждений",8,1,4429900,0,5424.3,5676.8]
["Выполнение функций казенными учреждениями",8,1,4429900,"001",5424.3,5676.8]
["Региональные целевые программы",8,1,5220000,0,1000,0]
["Долгосрочная целевая программа Иркутской области «100 модельных домов культуры Приангарью» на 2011-2013 годы",8,1,5225500,0,1000,0]
["Выполнение функций казенными учреждениями",8,1,5225500,"001",1000,0]
["Целевые программы муниципальных образований",8,1,7950000,0,1004,1139.2]
["Долгосрочная целевая программа Черемховского районного муниципального образования \"Повышение эффективности бюджетных расходов Черемховского районного муниципального образования на 2012-2013 годы\"",8,1,7950200,0,0,0]
["Выполнение функций казенными учреждениями",8,1,7950200,"001",0,0]
["Долгосрочная целевая программа энергосбережения и повышения энергетической эффективности Черемховского районного муниципального образования на 2010-2015 годы",8,1,7951100,0,100,200]
["Мероприятия по повышению энергетической эффективности",8,1,7951100,"451",100,200]
["Долгосрочная целевая программа \"Развитие культуры в Черемховском районном муниципальном образовании на период 2012-2016 гг.\"",8,1,7952000,0,904,939.2]
["Мероприятия по поддержке и развитию культуры, искусства, кинематографии",8,1,7952000,"023",904,939.2]
["Другие вопросы в области культуры, кинематографии",8,4,0,0,935.9,981.1]
["Руководство и управление в сфере установленных функций органов государственной власти субъектов Российской Федерации  и органов местного самоуправления",8,4,20000,0,935.9,981.1]
["Центральный аппарат",8,4,20400,0,935.9,981.1]
["Выполнение функций органами местного самоуправления",8,4,20400,"500",935.9,981.1]
["ЗДРАВООХРАНЕНИЕ",9,0,0,0,0,0]
["Другие вопросы в области здравоохранения",9,9,0,0,0,0]
["Целевые программы муниципальных образований",9,9,7950000,0,0,0]
["Ведомственная целевая программа \"Обеспечение учреждений здравоохранения Черемховского районного муниципального образования квалифицированными медицинскими кадрами\" на 2013 год",9,9,7952800,0,0,0]
["Выполнение функций органами местного самоуправления",9,9,7952800,"500",0,0]
["Социальная политика",10,0,0,0,19563.2,19960.400000000001]
["Пенсионное обеспечение",10,1,0,0,2980,2980]
["Доплаты к пенсиям, дополнительное пенсионное обеспечение ",10,1,4910000,0,2980,2980]
["Доплаты к пенсиям государственных служащих субъектов Российской Федерации и муниципальных служащих ",10,1,4910100,0,2980,2980]
["Социальные выплаты",10,1,4910100,"005",2980,2980]
["Социальное обеспечение населения",10,3,0,0,15405.1,15802.3]
["Руководство и управление в сфере установленных функций органов государственной власти субъектов Российской Федерации  и органов местного самоуправления",10,3,20000,0,14247.6,14596.2]
["Осуществление отдельных областных государственных полномочий по предоставлению мер социальной поддержки многодетным и малоимущим семьям",10,3,24600,0,6361.8,6361.8]
["Социальные выплаты",10,3,24600,"005",6361.8,6361.8]
["Осуществление областных государственных полномочий по предоставлению гражданам субсидий на оплату жилых помещений и коммунальных услуг",10,3,24700,0,7885.8,8234.4]
["Содержание и обеспечение деятельности муниципальных служащих, осуществляющих областные государственные полномочия по предоставлению гражданам субсидий на оплату жилых помещений и коммунальных услуг",10,3,24701,0,771.9,771.9]
["Выполнение функций органами местного самоуправления",10,3,24701,"500",771.9,771.9]
["Предоставление гражданам субсидий на оплату жилых помещений и коммунальных услуг",10,3,24702,0,7113.9,7462.5]
["Социальные выплаты",10,3,24702,"005",7113.9,7462.5]
["Реализация государственных функций в области социальной политики",10,3,5140000,0,882.1,910]
["Мероприятия в области социальной политики",10,3,5140100,0,882.1,910]
["Социальные выплаты",10,3,5140100,"005",882.1,910]
["Региональные целевые программы",10,3,5220000,0,0,0]
["Областная государственная социальная программа \"Молодым семьям - доступное жилье\" на 2005-2019 годы",10,3,5222200,0,0,0]
["Социальные выплаты",10,3,5222200,"005",0,0]
["Целевые программы муниципальных образований",10,3,7950000,0,275.39999999999998,296.10000000000002]
["Долгосрочная целевая программа \"Молодым семьям-доступное жилье\" на 2012-2019 гг.",10,3,7952100,0,275.39999999999998,296.10000000000002]
["Социальные выплаты",10,3,7952100,"005",275.39999999999998,296.10000000000002]
["Охрана семьи и детства",10,4,0,0,0,0]
["Исполнение судебных актов по обеспечению жилыми помещениями детей-сирот и детей, оставшихся без попечения родителей, лиц из числа детей-сирот и детей, оставшихся без попечения родителей, вынесенных в соответствии с Законом Иркутской области от 22.06.2010 № 50-ОЗ «О дополнительных гарантиях прав детей-сирот и детей, оставшихся без попечения родителей, на жилое помещение в Иркутской области» и Законом Иркутской области от 29.06.2010 № 52-ОЗ «О наделении органов местного самоуправления областными государственными полномочиями по обеспечению детей-сирот и детей, оставшихся без попечения родителей, лиц из числа детей-сирот и детей, оставшихся без попечения родителей, жилыми помещениями по договорам социального найма в Иркутской области",10,4,6040000,0,0,0]
["Бюджетные инвестиции",10,4,6040000,"003",0,0]
["Другие вопросы в области социальной политики",10,6,0,0,1178.0999999999999,1178.0999999999999]
["Руководство и управление в сфере установленных функций органов государственной власти субъектов Российской Федерации  и органов местного самоуправления",10,6,20000,0,1078.0999999999999,1078.0999999999999]
["Осуществление областных государственных полномочий по определению персонального состава и обеспечению деятельности районных (городских), районных в городах комиссий по делам несовершеннолетних и защите их прав",10,6,24100,0,1078.0999999999999,1078.0999999999999]
["Выполнение функций органами местного самоуправления",10,6,24100,"500",1078.0999999999999,1078.0999999999999]
["Целевые программы муниципальных образований",10,6,7950000,0,100,100]
["Муниципальная целевая программа \"Поддержка, проводимых мероприятий, посвященных Дням воинской славы, памятным датам России и работе с ветеранами и инвалидами в Черемховском районе на 2013-2015 гг.\"",10,6,7952400,0,100,100]
["Выполнение функций органами местного самоуправления",10,6,7952400,"500",100,100]
["ФИЗИЧЕСКАЯ КУЛЬТУРА И СПОРТ",11,0,0,0,82.4,82.4]
["Физическая культура",11,1,0,0,82.4,82.4]
["Физкультурно-оздоровительная работа и спортивные мероприятия",11,1,5120000,0,82.4,82.4]
["Мероприятия в области спорта, физической культуры и туризма",11,1,5129700,0,82.4,82.4]
["Выполнение функций органами местного самоуправления",11,1,5129700,"500",82.4,82.4]
["Целевые программы муниципальных образований",11,1,7950000,0,0,0]
["Долгосрочная целевая программа \"Развитие физической культуры, спорта и туризма в Черемховском районном муниципальном образовании на 2011-2013 гг.\"",11,1,7951200,0,0,0]
["Выполнение функций органами местного самоуправления",11,1,7951200,"500",0,0]
["СРЕДСТВА МАССОВОЙ ИНФОРМАЦИИ",12,0,0,0,2000,2000]
["Периодическая печать и издательства",12,2,0,0,2000,2000]
["Периодические издания, учрежденные органами законодательной и исполнительной власти",12,2,4570000,0,2000,2000]
["Государственная поддержка в сфере культуры, кинематографии и средств массовой информации",12,2,4578500,0,2000,2000]
["Субсидии юридическим лицам",12,2,4578500,"006",2000,2000]
["ОБСЛУЖИВАНИЕ ГОСУДАРСТВЕННОГО И МУНИЦИПАЛЬНОГО ДОЛГА",13,0,0,0,61.2,63.5]
["Обслуживание внутреннего государственного и муниципального долга",13,1,0,0,61.2,63.5]
["Процентные платежи по долговым обязательствам",13,1,650000,0,61.2,63.5]
["Процентные платежи по муниципальному долгу",13,1,650300,0,61.2,63.5]
["Прочие расходы",13,1,650300,"013",61.2,63.5]
["МЕЖБЮДЖЕТНЫЕ ТРАНСФЕРТЫ ОБЩЕГО ХАРАКТЕРА БЮДЖЕТАМ СУБЪЕКТОВ РОССИЙСКОЙ ФЕДЕРАЦИИ И МУНИЦИПАЛЬНЫХ ОБРАЗОВАНИЙ ",14,0,0,0,3400,3500]
["Дотации на выравнивание бюджетной обеспеченности субъектов Российской Федерации и муниципальных образований",14,1,0,0,3400,3500]
["Выравнивание бюджетной обеспечености",14,1,5160000,0,3400,3500]
["Выравнивание бюджетной обеспеченности",14,1,5160100,0,3400,3500]
["Выравнивание бюджетной обеспеченности поселений из районного фонда финансовой поддержки",14,1,5160130,0,3400,3500]
["Фонд финансовой поддержки",14,1,5160130,"008",3400,3500]
["Прочие межбюджетные трансферты общего характера бюджетам субъектов Российской Федерации и муниципальных образований ",14,3,0,0,0,0]
["Целевые программы муниципальных образований",14,3,7950000,0,0,0]
["Долгосрочная целевая программа Черемховского районного муниципального образования \"Повышение эффективности бюджетных расходов Черемховского районного муниципального образования на 2012-2013 годы\"",14,3,7950200,0,0,0]
["Иные межбюджетные трансферты",14,3,7950200,"017",0,0]
["ИТОГО",{"$nulls":4},452326,448058]
[]
[]
["И.о. начальника финуправления",{"$nulls":4},"С.М. Татина"]

{"sheet":"прил6","index":4,"n_rows":318,"n_cols":4,"rows_kept":318,"cut":false,"hidden":false,"merged":[[312,0,312,2],[15,0,15,3],[18,0,19,0],[18,1,18,2],[18,3,19,3]]}
{"$rows_empty":15}
["Распределение бюджетных ассигнований  по  разделам и подразделам классификации расходов бюджетов Черемховского районного муниципального образования на 2013 год"]
[]
[]
["Наименование показателя","Код",null,"Сумма, тыс. руб."]
[null,"раздела","подраздела"]
[1,2,3,4]
["Руководство и управление в сфере установленных функций органов государственной власти субъектов Российской Федерации  и органов местного самоуправления",1,2,20000]
["Глава муниципального образования",1,2,20300]
["Выполнение функций органами местного самоуправления",1,2,20300]
["Руководство и управление в сфере установленных функций органов государственной власти субъектов Российской Федерации  и органов местного самоуправления",1,3,20000]
["Центральный аппарат",1,3,20400]
["Выполнение функций органами местного самоуправления",1,3,20400]
["Председатель представительного органа муниципального образования",1,3,21100]
["Выполнение функций органами местного самоуправления",1,3,21100]
["Руководство и управление в сфере установленных функций органов государственной власти субъектов Российской Федерации  и органов местного самоуправления",1,4,20000]
["Центральный аппарат",1,4,20400]
["Выполнение функций органами местного самоуправления",1,4,20400]
["Региональные целевые программы",1,4,5220000]
["Долгосрочная целевая программа «Энергосбережение и повышение энергетической эффективности на территории Иркутской области на 2011-2015 годы и на период до 2020 года»",1,4,5225400]
["Выполнение функций органами местного самоуправления",1,4,5225400]
["Целевые программы муниципальных образований",1,4,7950000]
["Долгосрочная целевая программа энергосбережения и повышения энергетической эффективности Черемховского районного муниципального образования на 2010-2015 годы",1,4,7951100]
["Мероприятия по повышению энергетической эффективности",1,4,7951100]
["Руководство и управление в сфере установленных функций органов государственной власти субъектов Российской Федерации  и органов местного самоуправления",1,6,20000]
["Центральный аппарат",1,6,20400]
["Выполнение функций органами местного самоуправления",1,6,20400]
["Руководитель контрольно-счетной палаты муниципального образования и его заместители",1,6,22500]
["Выполнение функций органами местного самоуправления",1,6,22500]
["Целевые программы муниципальных образований",1,6,7950000]
["Долгосрочная целевая программа Черемховского районного муниципального образования \"Повышение эффективности бюджетных расходов Черемховского районного муниципального образования на 2012-2013 годы\"",1,6,7950200]
["Выполнение функций органами местного самоуправления",1,6,7950200]
["Проведение выборов и референдумов",1,7,200000]
["Проведение выборов и референдумов",1,7,200000]
["Проведение выборов в представительные органы муниципального образования",1,7,200002]
["Выполнение функций органами местного самоуправления",1,7,200002]
["Резервные фонды",1,11,700000]
["Резервные фонды местных администраций",1,11,700500]
["Выполнение функций органами местного самоуправления",1,11,700500]
["Руководство и управление в сфере установленных функций органов государственной власти субъектов Российской Федерации  и органов местного самоуправления",1,13,20000]
["Центральный аппарат",1,13,20400]
["Выполнение функций органами местного самоуправления",1,13,20400]
["Осуществление областных государственных полномочий по хранению, комплектованию, учету и использованию архивных документов, относящихся к государственной собственности Иркутской области",1,13,24000]
["Выполнение функций органами местного самоуправления",1,13,24000]
["Осуществление областных государственных полномочий по определению персонального состава и обеспечению деятельности административных комиссий",1,13,24300]
["Выполнение функций органами местного самоуправления",1,13,24300]
["Осуществление отдельных государственных полномочий в области производства и оборота этилового спирта, алкогольной и спиртосодержащей продукции",1,13,24400]
["Выполнение функций органами местного самоуправления",1,13,24400]
["Осуществление отдельных областных государственных полномочий в области охраны труда",1,13,24500]
["Выполнение функций органами местного самоуправления",1,13,24500]
["Обеспечение деятельности подведомственных учреждений",1,13,29900]
["Выполнение функций казенными учреждениями",1,13,29900]
["Субсидии бюджетным учреждениям на финансовое обеспечение муниципального задания на оказание муниципальных услуг (выполнение работ)",1,13,29900]
["Реализация государственных функций, связанных с общегосударственным управлением",1,13,920000]
["Выполнение других обязательств государства",1,13,920300]
["Выполнение функций органами местного самоуправления",1,13,920300]
["Учреждения по обеспечению хозяйственного обслуживания",1,13,930000]
["Субсидии бюджетным учреждениям на финансовое обеспечение муниципального задания на оказание муниципальных услуг (выполнение работ)",1,13,930000]
["Целевые программы муниципальных образований",1,13,7950000]
["Долгосрочная целевая программа \"Улучшение условий и охраны труда в Черемховском районе на 2011-2013гг.\"",1,13,7951400]
["Выполнение функций органами местного самоуправления",1,13,7951400]
["Долгосрочная целевая программа \"Инвентаризация муниципальных объектов недвижимости Черемховского районного муниципального образования на 2012-2014 годы\"",1,13,7951900]
["Выполнение функций органами местного самоуправления",1,13,7951900]
["Комплексная программа \"Профилактика правонарушений в Черемховском районном муниципальном образовании на 2013-2016 годы\"",1,13,7952600]
["Выполнение функций органами местного самоуправления",1,13,7952600]
["Долгосрочная целевая программа \"Поддержка молодых педагогов на территории Черемховского районного муниципального образования\" на 2012-2013 годы",1,13,7952700]
["Выполнение функций органами местного самоуправления",1,13,7952700]
["Региональные целевые программы",4,9,5220000]
["Долгосрочная целевая программа \"Развитие автомобильных дорог общего пользования регионального или межмуниципального значения и местного значения в Иркутской области на 2011 - 2014 годы\"",4,9,5224700]
["Выполнение функций органами местного самоуправления",4,9,5224700]
["Целевые программы муниципальных образований",4,9,7950000]
["Долгосрочная целевая программа \"Инвентаризация муниципальных объектов недвижимости Черемховского районного муниципального образования на 2012-2014 годы\"",4,9,7951900]
["Выполнение функций органами местного самоуправления",4,9,7951900]
["Долгосрочная целевая программа \"Развитие автомобильных дорог Черемховского районного муниципального образования на 2013-2015 годы\"",4,9,7952300]
["Выполнение функций органами местного самоуправления",4,9,7952300]
["Мероприятия в области строительства, архитектуры и градостроительства",4,12,3380000]
["Подготовка проектов правил землепользования и застройки муниципальных образований Черемховского районного муниципального образования",4,12,3380200]
["Выполнение функций органами местного самоуправления",4,12,3380200]
["Целевые программы муниципальных образований",4,12,7950000]
["Долгосрочная целевая программа \"Инвентаризация муниципальных объектов недвижимости Черемховского районного муниципального образования на 2012-2014 годы\"",4,12,7951900]
["Выполнение функций органами местного самоуправления",4,12,7951900]
["Долгосрочная целевая программа \"Поддержка и развитие малого и среднего предпринимательства в Черемховском районе\" на 2013-2014 годы",4,12,7952200]
["Выполнение функций органами местного самоуправления",4,12,7952200]
["Поддержка жилищного хозяйства",5,1,3500000]
["Мероприятия в области жилищного хозяйства",5,1,3500300]
["Выполнение функций органами местного самоуправления",5,1,3500300]
["Региональные целевые программы",5,2,5220000]
["Долгосрочная целевая программа «Энергосбережение и повышение энергетической эффективности на территории Иркутской области на 2011-2015 годы и на период до 2020 года»",5,2,5225400]
["Иные межбюджетные трансферты",5,2,5225400]
["Руководство и управление в сфере установленных функций органов государственной власти субъектов Российской Федерации  и органов местного самоуправления",5,5,20000]
["Центральный аппарат",5,5,20400]
["Выполнение функций органами местного самоуправления",5,5,20400]
["Состояние окружающей среды и природопользования",6,5,4100000]
["Природоохранные мероприятия",6,5,4100100]
["Выполнение функций органами местного самоуправления",6,5,4100100]
["Региональные целевые программы",6,5,5220000]
["Долгосрочная целевая программа Иркутской области «Защита окружающей среды в Иркутской области на 2011-2015 годы»",6,5,5222500]
["Подпрограмма «Отходы производства и потребления в Иркутской области на 2011-2015 годы»",6,5,5222502]
["Выполнение функций органами местного самоуправления",6,5,5222502]
["Детские дошкольные учреждения",7,1,4200000]
["Обеспечение деятельности подведомственных учреждений",7,1,4209900]
["Выполнение функций казенными учреждениями",7,1,4209900]
["Региональные целевые программы",7,1,5220000]
["Областная государственная целевая программа поддержки и развития учреждений дошкольного образования в Иркутской области на 2009-2014 годы",7,1,5223700]
["Выполнение функций казенными учреждениями",7,1,5223700]
["Долгосрочная целевая программа «Энергосбережение и повышение энергетической эффективности на территории Иркутской области на 2011-2015 годы и на период до 2020 года»",7,1,5225400]
["Выполнение функций казенными учреждениями",7,1,5225400]
["Выплата заработной платы с начислениями на нее педагогическим работникам муниципальных дошкольных образовательных учреждений и муниципальных учреждений дополнительного образования",7,1,5890000]
["Выполнение функций казенными учреждениями",7,1,5890000]
["Целевые программы муниципальных образований",7,1,7950000]
["Долгосрочная целевая программа Черемховского районного муниципального образования \"Повышение эффективности бюджетных расходов Черемховского районного муниципального образования на 2012-2013 годы\"",7,1,7950200]
["Выполнение функций казенными учреждениями",7,1,7950200]
["Долгосрочная целевая программа \"Безопасность образовательных учреждений на 2010-2014 гг.\"",7,1,7951000]
["Мероприятия по обеспечению пожарной безопасности",7,1,7951000]
["Долгосрочная целевая программа энергосбережения и повышения энергетической эффективности Черемховского районного муниципального образования на 2010-2015 годы",7,1,7951100]
["Мероприятия по повышению энергетической эффективности",7,1,7951100]
["Долгосрочная целевая программа \"Развитие дошкольного образования на 2011-2014 гг.\"",7,1,7951700]
["Мероприятия в сфере образования",7,1,7951700]
["Долгосрочная целевая программа \"Совершенствование дошкольного образования Черемховского района на 2011-2014 гг.\"",7,1,7951800]
["Мероприятия в сфере образования",7,1,7951800]
["Руководство и управление в сфере установленных функций органов государственной власти субъектов Российской Федерации  и органов местного самоуправления",7,2,20000]
["Обеспечение государственных гарантий прав граждан на получение общедоступного и бесплатного дошкольного, начального общего, основного общего, среднего (полного) общего образования, а также дополнительного образования в общеобразовательных учреждениях",7,2,25000]
["Выполнение функций казенными учреждениями",7,2,25000]
["Школы - детские сады, школы начальные, неполные средние и средние",7,2,4210000]
["Обеспечение деятельности подведомственных учреждений",7,2,4219900]
["Выполнение функций казенными учреждениями",7,2,4219900]
["Учреждения по внешкольной работе с детьми",7,2,4230000]
["Обеспечение деятельности подведомственных учреждений",7,2,4239900]
["Выполнение функций казенными учреждениями",7,2,4239900]
["Мероприятия в области образования",7,2,4360000]
["Модернизация региональных систем образования",7,2,4362100]
["Модернизация региональных систем образования за счет средств федерального бюджета",7,2,4362101]
["Выполнение функций казенными учреждениями",7,2,4362101]
["Иные безвозмездные и безвозвратные перечисления",7,2,5200000]
["Ежемесячное денежное вознаграждение за классное руководство",7,2,5200900]
["Выполнение функций казенными учреждениями",7,2,5200900]
["Региональные целевые программы",7,2,5220000]
["Долгосрочная целевая программа «Модернизация объектов коммунальной инфраструктуры Иркутской области на 2011-2013 годы»",7,2,5222000]
["Подпрограмма «Подготовка объектов коммунальной инфраструктуры Иркутской области к отопительному сезону в 2011-2013 годах»",7,2,5222001]
["Выполнение функций казенными учреждениями",7,2,5222001]
["Долгосрочная целевая программа «Энергосбережение и повышение энергетической эффективности на территории Иркутской области на 2011-2015 годы и на период до 2020 года»",7,2,5225400]
["Выполнение функций казенными учреждениями",7,2,5225400]
["Выплата заработной платы с начислениями на нее педагогическим работникам муниципальных дошкольных образовательных учреждений и муниципальных учреждений дополнительного образования",7,2,5890000]
["Выполнение функций казенными учреждениями",7,2,5890000]
["Целевые программы муниципальных образований",7,2,7950000]
["Долгосрочная целевая программа Черемховского районного муниципального образования \"Повышение эффективности бюджетных расходов Черемховского районного муниципального образования на 2012-2013 годы\"",7,2,7950200]
["Выполнение функций казенными учреждениями",7,2,7950200]
["Долгосрочная целевая программа \"Безопасность образовательных учреждений на 2010-2014 гг.\"",7,2,7951000]
["Мероприятия по обеспечению пожарной безопасности",7,2,7951000]
["Долгосрочная целевая программа энергосбережения и повышения энергетической эффективности Черемховского районного муниципального образования на 2010-2015 годы",7,2,7951100]
["Мероприятия по повышению энергетической эффективности",7,2,7951100]
["Долгосрочная целевая программа \"Ветхие школы Черемховского района\" на 2011-2013 гг.",7,2,7951500]
["Мероприятия в сфере образования",7,2,7951500]
["Долгосрочная целевая программа \"Совершенствование организации питания в образовательных учреждениях Черемховского района на 2011-2013гг.\"",7,2,7951600]
["Мероприятия в сфере образования",7,2,7951600]
["Долгосрочная целевая программа \"Развитие культуры в Черемховском районном муниципальном образовании на период 2012-2016 гг.\"",7,2,7952000]
["Мероприятия по поддержке и развитию культуры, искусства, кинематографии",7,2,7952000]
["Мероприятия по переподготовке и повышению квалификации",7,5,4340000]
["Выполнение функций казенными учреждениями",7,5,4340000]
["Выполнение функций органами местного самоуправления",7,5,4340000]
["Организационно-воспитательная работа с молодежью",7,7,4310000]
["Проведение мероприятий для детей и молодежи",7,7,4310100]
["Проведение мероприятия для детей и молодежи",7,7,4310100]
["Мероприятия по проведению оздоровительной кампании детей",7,7,4320000]
["Оплата стоимости набора продуктов питания для детей в организованных органами местного самоуправления оздоровительных лагерях с дневным пребыванием детей за счет средств областного бюджета",7,7,4320300]
["Оплата стоимости набора продуктов питания для детей в организованных органами местного самоуправления оздоровительных лагерях с дневным пребыванием детей за счет средств местного бюджета",7,7,4320302]
["Выполнение функций казенными учреждениями",7,7,4320302]
["Региональные целевые программы",7,7,5220000]
["Долгосрочная целевая программа Иркутской области \"Организация и обеспечение отдыха и оздоровления детей в Иркутской области на 2012-2014гг.\"",7,7,5226200]
["Выполнение функций казенными учреждениями",7,7,5226200]
["Целевые программы муниципальных образований",7,7,7950000]
["Долгосрочная целевая программа \"Комплексные меры профилактики злоупотребления наркотическими средствами и психотропными веществами в Черемховском районном муниципальном образовании на 2011-2013 гг.\"",7,7,7951300]
["Выполнение функций органами местного самоуправления",7,7,7951300]
["Долгосрочная целевая программа \"Молодежная политика в Черемховском районном муниципальном образовании\" на 2013-2015 гг.",7,7,7952500]
["Проведение мероприятия для детей и молодежи",7,7,7952500]
["Руководство и управление в сфере установленных функций органов государственной власти субъектов Российской Федерации  и органов местного самоуправления",7,9,20000]
["Центральный аппарат",7,9,20400]
["Выполнение функций органами местного самоуправления",7,9,20400]
["Учебно-методические кабинеты, централизованные бухгалтерии, группы хозяйственного обслуживания, учебные фильмотеки, межшкольные учебно-производственные комбинаты, логопедические пункты",7,9,4520000]
["Субсидии бюджетным учреждениям на финансовое обеспечение муниципального задания на оказание муниципальных услуг (выполнение работ)",7,9,4520000]
["Учреждения культуры и мероприятия в сфере культуры и кинематографии",8,1,4400000]
["Комплектование книжных фондов библиотек муниципальных образований и государственных библиотек городов Москвы и Санкт-Петербурга",8,1,4400200]
["Комплектование книжных фондов библиотек муниципальных образований и государственных библиотек городов Москвы и Санкт-Петербурга за счет средств федерального бюджета",8,1,4400201]
["Выполнение функций казенными учреждениями",8,1,4400201]
["Комплектование книжных фондов библиотек муниципальных образований и государственных библиотек городов Москвы и Санкт-Петербурга за счет областного бюджета",8,1,4400202]
["Выполнение функций казенными учреждениями",8,1,4400202]
["Обеспечение деятельности подведомственных учреждений",8,1,4409900]
["Выполнение функций казенными учреждениями",8,1,4409900]
["Музеи и постоянные выставки",8,1,4410000]
["Обеспечение деятельности подведомственных учреждений",8,1,4419900]
["Выполнение функций казенными учреждениями",8,1,4419900]
["Библиотеки",8,1,4420000]
["Обеспечение деятельности подведомственных учреждений",8,1,4429900]
["Выполнение функций казенными учреждениями",8,1,4429900]
["Региональные целевые программы",8,1,5220000]
["Долгосрочная целевая программа Иркутской области «100 модельных домов культуры Приангарью» на 2011-2013 годы",8,1,5225500]
["Выполнение функций казенными учреждениями",8,1,5225500]
["Целевые программы муниципальных образований",8,1,7950000]
["Долгосрочная целевая программа Черемховского районного муниципального образования \"Повышение эффективности бюджетных расходов Черемховского районного муниципального образования на 2012-2013 годы\"",8,1,7950200]
["Выполнение функций казенными учреждениями",8,1,7950200]
["Долгосрочная целевая программа энергосбережения и повышения энергетической эффективности Черемховского районного муниципального образования на 2010-2015 годы",8,1,7951100]
["Мероприятия по повышению энергетической эффективности",8,1,7951100]
["Долгосрочная целевая программа \"Развитие культуры в Черемховском районном муниципальном образовании на период 2012-2016 гг.\"",8,1,7952000]
["Мероприятия по поддержке и развитию культуры, искусства, кинематографии",8,1,7952000]
["Руководство и управление в сфере установленных функций органов государственной власти субъектов Российской Федерации  и органов местного самоуправления",8,4,20000]
["Центральный аппарат",8,4,20400]
["Выполнение функций органами местного самоуправления",8,4,20400]
["Целевые программы муниципальных образований",9,9,7950000]
["Ведомственная целевая программа \"Обеспечение учреждений здравоохранения Черемховского районного муниципального образования квалифицированными медицинскими кадрами\" на 2013 год",9,9,7952800]
["Выполнение функций органами местного самоуправления",9,9,7952800]
["Доплаты к пенсиям, дополнительное пенсионное обеспечение ",10,1,4910000]
["Доплаты к пенсиям государственных служащих субъектов Российской Федерации и муниципальных служащих ",10,1,4910100]
["Социальные выплаты",10,1,4910100]
["Руководство и управление в сфере установленных функций органов государственной власти субъектов Российской Федерации  и органов местного самоуправления",10,3,20000]
["Осуществление отдельных областных государственных полномочий по предоставлению мер социальной поддержки многодетным и малоимущим семьям",10,3,24600]
["Социальные выплаты",10,3,24600]
["Осуществление областных государственных полномочий по предоставлению гражданам субсидий на оплату жилых помещений и коммунальных услуг",10,3,24700]
["Содержание и обеспечение деятельности муниципальных служащих, осуществляющих областные государственные полномочия по предоставлению гражданам субсидий на оплату жилых помещений и коммунальных услуг",10,3,24701]
["Выполнение функций органами местного самоуправления",10,3,24701]
["Предоставление гражданам субсидий на оплату жилых помещений и коммунальных услуг",10,3,24702]
["Социальные выплаты",10,3,24702]
["Реализация государственных функций в области социальной политики",10,3,5140000]
["Мероприятия в области социальной политики",10,3,5140100]
["Социальные выплаты",10,3,5140100]
["Региональные целевые программы",10,3,5220000]
["Областная государственная социальная программа \"Молодым семьям - доступное жилье\" на 2005-2019 годы",10,3,5222200]
["Социальные выплаты",10,3,5222200]
["Целевые программы муниципальных образований",10,3,7950000]
["Долгосрочная целевая программа \"Молодым семьям-доступное жилье\" на 2012-2019 гг.",10,3,7952100]
["Социальные выплаты",10,3,7952100]
["Исполнение судебных актов по обеспечению жилыми помещениями детей-сирот и детей, оставшихся без попечения родителей, лиц из числа детей-сирот и детей, оставшихся без попечения родителей, вынесенных в соответствии с Законом Иркутской области от 22.06.2010 № 50-ОЗ «О дополнительных гарантиях прав детей-сирот и детей, оставшихся без попечения родителей, на жилое помещение в Иркутской области» и Законом Иркутской области от 29.06.2010 № 52-ОЗ «О наделении органов местного самоуправления областными государственными полномочиями по обеспечению детей-сирот и детей, оставшихся без попечения родителей, лиц из числа детей-сирот и детей, оставшихся без попечения родителей, жилыми помещениями по договорам социального найма в Иркутской области",10,4,6040000]
["Бюджетные инвестиции",10,4,6040000]
["Руководство и управление в сфере установленных функций органов государственной власти субъектов Российской Федерации  и органов местного самоуправления",10,6,20000]
["Осуществление областных государственных полномочий по определению персонального состава и обеспечению деятельности районных (городских), районных в городах комиссий по делам несовершеннолетних и защите их прав",10,6,24100]
["Выполнение функций органами местного самоуправления",10,6,24100]
["Целевые программы муниципальных образований",10,6,7950000]
["Муниципальная целевая программа \"Поддержка, проводимых мероприятий, посвященных Дням воинской славы, памятным датам России и работе с ветеранами и инвалидами в Черемховском районе на 2013-2015 гг.\"",10,6,7952400]
["Выполнение функций органами местного самоуправления",10,6,7952400]
["Физкультурно-оздоровительная работа и спортивные мероприятия",11,1,5120000]
["Мероприятия в области спорта, физической культуры и туризма",11,1,5129700]
["Выполнение функций органами местного самоуправления",11,1,5129700]
["Целевые программы муниципальных образований",11,1,7950000]
["Долгосрочная целевая программа \"Развитие физической культуры, спорта и туризма в Черемховском районном муниципальном образовании на 2011-2013 гг.\"",11,1,7951200]
["Выполнение функций органами местного самоуправления",11,1,7951200]
["Периодические издания, учрежденные органами законодательной и исполнительной власти",12,2,4570000]
["Государственная поддержка в сфере культуры, кинематографии и средств массовой информации",12,2,4578500]
["Субсидии юридическим лицам",12,2,4578500]
["Процентные платежи по долговым обязательствам",13,1,650000]
["Процентные платежи по муниципальному долгу",13,1,650300]
["Прочие расходы",13,1,650300]
["Выравнивание бюджетной обеспечености",14,1,5160000]
["Выравнивание бюджетной обеспеченности",14,1,5160100]
["Выравнивание бюджетной обеспеченности поселений из районного фонда финансовой поддержки",14,1,5160130]
["Фонд финансовой поддержки",14,1,5160130]
["Целевые программы муниципальных образований",14,3,7950000]
["Долгосрочная целевая программа Черемховского районного муниципального образования \"Повышение эффективности бюджетных расходов Черемховского районного муниципального образования на 2012-2013 годы\"",14,3,7950200]
["Иные межбюджетные трансферты",14,3,7950200]
["ОБЩЕГОСУДАРСТВЕННЫЕ ВОПРОСЫ",1,0,72222.232000000004]
["Функционирование высшего должностного лица субъекта Российской Федерации и муниципального образования",1,2,2412]
["Функционирование законодательных (представительных) органов государственной власти и представительных органов муниципальных образований",1,3,1350.16]
["Функционирование Правительства Российской Федерации, высших исполнительных органов государственной власти субъектов Российской Федерации, местных администраций",1,4,26064.188999999998]
["Обеспечение деятельности финансовых, налоговых и таможенных органов и органов финансового (финансово-бюджетного) надзора",1,6,11159.075000000001]
["Резервные фонды",1,11,300]
["Другие общегосударственные вопросы",1,13,30936.808000000001]
["НАЦИОНАЛЬНАЯ ЭКОНОМИКА",4,0,5981.71]
["Дорожное хозяйство(дорожные фонды)",4,9,5351.51]
["Другие вопросы в области национальной экономики",4,12,630.20000000000005]
["ЖИЛИЩНО-КОММУНАЛЬНОЕ ХОЗЯЙСТВО",5,0,7765.8909999999996]
["Жилищное хозяйство",5,1,2399.944]
["Коммунальное хозяйство",5,2,70]
["Другие вопросы в области жилищно-коммунального хозяйства",5,5,5295.9470000000001]
["ОХРАНА ОКРУЖАЮЩЕЙ СРЕДЫ",6,0,5150]
["Другие вопросы в области охраны окружающей среды",6,5,5150]
["ОБРАЗОВАНИЕ",7,0,478334.94500000001]
["Дошкольное образование",7,1,106629.85799999999]
["Общее образование",7,2,360420.446]
["Профессиональная подготовка, переподготовка и повышение квалификации",7,5,215.46]
["Молодежная политика и оздоровление детей",7,7,2571.9]
["Другие вопросы в области образования",7,9,8497.2810000000009]
["КУЛЬТУРА И КИНЕМАТОГРАФИЯ",8,0,21830.501]
["Культура",8,1,20508.774000000001]
["Другие вопросы в области культуры, кинематографии",8,4,1321.7270000000001]
["ЗДРАВООХРАНЕНИЕ",9,0,200]
["Другие вопросы в области здравоохранения",9,9,200]
["Социальная политика",10,0,24388.235000000001]
["Пенсионное обеспечение",10,1,2980.0149999999999]
["Социальное обеспечение населения",10,3,15400.42]
["Охрана семьи и детства",10,4,4752]
["Другие вопросы в области социальной политики",10,6,1255.8]
["ФИЗИЧЕСКАЯ КУЛЬТУРА И СПОРТ",11,0,182.4]
["Физическая культура",11,1,182.4]
["СРЕДСТВА МАССОВОЙ ИНФОРМАЦИИ",12,0,2000]
["Периодическая печать и издательства",12,2,2000]
["ОБСЛУЖИВАНИЕ ГОСУДАРСТВЕННОГО И МУНИЦИПАЛЬНОГО ДОЛГА",13,0,60]
["Обслуживание внутреннего государственного и муниципального долга",13,1,60]
["МЕЖБЮДЖЕТНЫЕ ТРАНСФЕРТЫ ОБЩЕГО ХАРАКТЕРА БЮДЖЕТАМ СУБЪЕКТОВ РОССИЙСКОЙ ФЕДЕРАЦИИ И МУНИЦИПАЛЬНЫХ ОБРАЗОВАНИЙ ",14,0,8391]
["Дотации на выравнивание бюджетной обеспеченности субъектов Российской Федерации и муниципальных образований",14,1,3500]
["Прочие межбюджетные трансферты общего характера бюджетам субъектов Российской Федерации и муниципальных образований ",14,3,4891]
["ИТОГО",null,null,626506.91399999999]
[]
[]
[]
[]
["И.о. начальника финуправления",null,null,"С.М. Татина"]

{"sheet":"прил7","index":5,"n_rows":314,"n_cols":7,"rows_kept":314,"cut":false,"hidden":true,"merged":[[313,5,313,6],[13,0,13,6],[16,0,17,0],[16,1,16,4],[16,5,16,6],[311,0,311,4]]}
{"$rows_empty":13}
["Распределение  бюджетных ассигнований   по разделам, подразделам классификации расходов бюджетов на  плановый период 2014 и 2015 годов"]
[]
[]
["Наименование показателя","Код",null,null,null,"Сумма, тыс.руб."]
[null,"раздела","подраздела","целевой статьи","вида расходов",2014,2015]
[1,2,3,4,5,6,7]
["ОБЩЕГОСУДАРСТВЕННЫЕ ВОПРОСЫ",1,0,0,0,57173.4,56134.3]
["Функционирование высшего должностного лица субъекта Российской Федерации и муниципального образования",1,2,0,0,1403,1472.1]
["Руководство и управление в сфере установленных функций органов государственной власти субъектов Российской Федерации  и органов местного самоуправления",1,2,20000,0,1403,1472.1]
["Глава муниципального образования",1,2,20300,0,1403,1472.1]
["Выполнение функций органами местного самоуправления",1,2,20300,"500",1403,1472.1]
["Функционирование законодательных (представительных) органов государственной власти и представительных органов муниципальных образований",1,3,0,0,940.5,986.3]
["Руководство и управление в сфере установленных функций органов государственной власти субъектов Российской Федерации  и органов местного самоуправления",1,3,20000,0,940.5,986.3]
["Центральный аппарат",1,3,20400,0,289,302]
["Выполнение функций органами местного самоуправления",1,3,20400,"500",289,302]
["Председатель представительного органа муниципального образования",1,3,21100,0,651.5,684.3]
["Выполнение функций органами местного самоуправления",1,3,21100,"500",651.5,684.3]
["Функционирование Правительства Российской Федерации, высших исполнительных органов государственной власти субъектов Российской Федерации, местных администраций",1,4,0,0,20490.599999999999,21389.4]
["Руководство и управление в сфере установленных функций органов государственной власти субъектов Российской Федерации  и органов местного самоуправления",1,4,20000,0,20490.599999999999,21389.4]
["Центральный аппарат",1,4,20400,0,20490.599999999999,21389.4]
["Выполнение функций органами местного самоуправления",1,4,20400,"500",20490.599999999999,21389.4]
["Региональные целевые программы",1,4,5220000,0,0,0]
["Долгосрочная целевая программа «Энергосбережение и повышение энергетической эффективности на территории Иркутской области на 2011-2015 годы и на период до 2020 года»",1,4,5225400,0,0,0]
["Выполнение функций органами местного самоуправления",1,4,5225400,"500",0,0]
["Целевые программы муниципальных образований",1,4,7950000,0,0,0]
["Долгосрочная целевая программа энергосбережения и повышения энергетической эффективности Черемховского районного муниципального образования на 2010-2015 годы",1,4,7951100,0,0,0]
["Мероприятия по повышению энергетической эффективности",1,4,7951100,"451",0,0]
["Обеспечение деятельности финансовых, налоговых и таможенных органов и органов финансового (финансово-бюджетного) надзора",1,6,0,0,7459.3,7789.5]
["Руководство и управление в сфере установленных функций органов государственной власти субъектов Российской Федерации  и органов местного самоуправления",1,6,20000,0,7459.3,7789.5]
["Центральный аппарат",1,6,20400,0,6674.1,6964.3]
["Выполнение функций органами местного самоуправления",1,6,20400,"500",6674.1,6964.3]
["Руководитель контрольно-счетной палаты муниципального образования и его заместители",1,6,22500,0,785.2,825.2]
["Выполнение функций органами местного самоуправления",1,6,22500,"500",785.2,825.2]
["Целевые программы муниципальных образований",1,6,7950000,0,0,0]
["Долгосрочная целевая программа Черемховского районного муниципального образования \"Повышение эффективности бюджетных расходов Черемховского районного муниципального образования на 2012-2013 годы\"",1,6,7950200,0,0,0]
["Выполнение функций органами местного самоуправления",1,6,7950200,"500",0,0]
["Обеспечение проведения выборов и референдумов",1,7,0,0,2500,0]
["Проведение выборов и референдумов",1,7,200000,0,2500,0]
["Проведение выборов и референдумов",1,7,200000,0,2500,0]
["Проведение выборов в представительные органы муниципального образования",1,7,200002,0,2500,0]
["Выполнение функций органами местного самоуправления",1,7,200002,"500",2500,0]
["Резервные фонды",1,11,0,0,300,300]
["Резервные фонды",1,11,700000,0,300,300]
["Резервные фонды местных администраций",1,11,700500,0,300,300]
["Выполнение функций органами местного самоуправления",1,11,700500,"500",300,300]
["Другие общегосударственные вопросы",1,13,0,0,24080,24197]
["Руководство и управление в сфере установленных функций органов государственной власти субъектов Российской Федерации  и органов местного самоуправления",1,13,20000,0,16869.2,17486.2]
["Центральный аппарат",1,13,20400,0,2262.4,2351.6999999999998]
["Выполнение функций органами местного самоуправления",1,13,20400,"500",2262.4,2351.6999999999998]
["Осуществление областных государственных полномочий по хранению, комплектованию, учету и использованию архивных документов, относящихся к государственной собственности Иркутской области",1,13,24000,0,1086,1086]
["Выполнение функций органами местного самоуправления",1,13,24000,"500",1086,1086]
["Осуществление областных государственных полномочий по определению персонального состава и обеспечению деятельности административных комиссий",1,13,24300,0,563.6,563.6]
["Выполнение функций органами местного самоуправления",1,13,24300,"500",563.6,563.6]
["Осуществление отдельных государственных полномочий в области производства и оборота этилового спирта, алкогольной и спиртосодержащей продукции",1,13,24400,0,404.3,430.2]
["Выполнение функций органами местного самоуправления",1,13,24400,"500",404.3,430.2]
["Осуществление отдельных областных государственных полномочий в области охраны труда",1,13,24500,0,563.6,563.6]
["Выполнение функций органами местного самоуправления",1,13,24500,"500",563.6,563.6]
["Обеспечение деятельности подведомственных учреждений",1,13,29900,0,11989.3,12491.1]
["Выполнение функций казенными учреждениями",1,13,29900,"001",11089.3,11591.1]
["Субсидии бюджетным учреждениям на финансовое обеспечение муниципального задания на оказание муниципальных услуг (выполнение работ)",1,13,29900,"611",900,900]
["Реализация государственных функций, связанных с общегосударственным управлением",1,13,920000,0,170.8,170.8]
["Выполнение других обязательств государства",1,13,920300,0,170.8,170.8]
["Выполнение функций органами местного самоуправления",1,13,920300,"500",170.8,170.8]
["Учреждения по обеспечению хозяйственного обслуживания",1,13,930000,0,6500,6500]
["Субсидии бюджетным учреждениям на финансовое обеспечение муниципального задания на оказание муниципальных услуг (выполнение работ)",1,13,930000,"611",6500,6500]
["Целевые программы муниципальных образований",1,13,7950000,0,540,40]
["Долгосрочная целевая программа \"Улучшение условий и охраны труда в Черемховском районе на 2011-2013гг.\"",1,13,7951400,0,0,0]
["Выполнение функций органами местного самоуправления",1,13,7951400,"500",0,0]
["Долгосрочная целевая программа \"Инвентаризация муниципальных объектов недвижимости Черемховского районного муниципального образования на 2012-2014 годы\"",1,13,7951900,0,500,0]
["Выполнение функций органами местного самоуправления",1,13,7951900,"500",500,0]
["Комплексная программа \"Профилактика правонарушений в Черемховском районном муниципальном образовании на 2013-2016 годы\"",1,13,7952600,0,40,40]
["Выполнение функций органами местного самоуправления",1,13,7952600,"500",40,40]
["Долгосрочная целевая программа \"Поддержка молодых педагогов на территории Черемховского районного муниципального образования\" на 2012-2013 годы",1,13,7952700,0,0,0]
["Выполнение функций органами местного самоуправления",1,13,7952700,"500",0,0]
["НАЦИОНАЛЬНАЯ ЭКОНОМИКА",4,0,0,0,3698.1,2406.5]
["Дорожное хозяйство(дорожные фонды)",4,9,0,0,3048.1,2406.5]
["Региональные целевые программы",4,9,5220000,0,0,0]
["Долгосрочная целевая программа \"Развитие автомобильных дорог общего пользования регионального или межмуниципального значения и местного значения в Иркутской области на 2011 - 2014 годы\"",4,9,5224700,0,0,0]
["Выполнение функций органами местного самоуправления",4,9,5224700,"500",0,0]
["Целевые программы муниципальных образований",4,9,7950000,0,3048.1,2406.5]
["Долгосрочная целевая программа \"Инвентаризация муниципальных объектов недвижимости Черемховского районного муниципального образования на 2012-2014 годы\"",4,9,7951900,0,0,0]
["Выполнение функций органами местного самоуправления",4,9,7951900,"500",0,0]
["Долгосрочная целевая программа \"Развитие автомобильных дорог Черемховского районного муниципального образования на 2013-2015 годы\"",4,9,7952300,0,3048.1,2406.5]
["Выполнение функций органами местного самоуправления",4,9,7952300,"500",3048.1,2406.5]
["Другие вопросы в области национальной экономики",4,12,0,0,650,0]
["Мероприятия в области строительства, архитектуры и градостроительства",4,12,3380000,0,0,0]
["Подготовка проектов правил землепользования и застройки муниципальных образований Черемховского районного муниципального образования",4,12,3380200,0,0,0]
["Выполнение функций органами местного самоуправления",4,12,3380200,"500",0,0]
["Целевые программы муниципальных образований",4,12,7950000,0,650,0]
["Долгосрочная целевая программа \"Инвентаризация муниципальных объектов недвижимости Черемховского районного муниципального образования на 2012-2014 годы\"",4,12,7951900,0,500,0]
["Выполнение функций органами местного самоуправления",4,12,7951900,"500",500,0]
["Долгосрочная целевая программа \"Поддержка и развитие малого и среднего предпринимательства в Черемховском районе\" на 2013-2014 годы",4,12,7952200,0,150,0]
["Выполнение функций органами местного самоуправления",4,12,7952200,"500",150,0]
["ЖИЛИЩНО-КОММУНАЛЬНОЕ ХОЗЯЙСТВО",5,0,0,0,4258,4464.7]
["Жилищное хозяйство",5,1,0,0,0,0]
["Поддержка жилищного хозяйства",5,1,3500000,0,0,0]
["Мероприятия в области жилищного хозяйства",5,1,3500300,0,0,0]
["Выполнение функций органами местного самоуправления",5,1,3500300,"500",0,0]
["Коммунальное хозяйство",5,2,0,0,0,0]
["Региональные целевые программы",5,2,5220000,0,0,0]
["Долгосрочная целевая программа «Энергосбережение и повышение энергетической эффективности на территории Иркутской области на 2011-2015 годы и на период до 2020 года»",5,2,5225400,0,0,0]
["Иные межбюджетные трансферты",5,2,5225400,"017",0,0]
["Другие вопросы в области жилищно-коммунального хозяйства",5,5,0,0,4258,4464.7]
["Руководство и управление в сфере установленных функций органов государственной власти субъектов Российской Федерации  и органов местного самоуправления",5,5,20000,0,4258,4464.7]
["Центральный аппарат",5,5,20400,0,4258,4464.7]
["Выполнение функций органами местного самоуправления",5,5,20400,"500",4258,4464.7]
["ОХРАНА ОКРУЖАЮЩЕЙ СРЕДЫ",6,0,0,0,0,0]
["Другие вопросы в области охраны окружающей среды",6,5,0,0,0,0]
["Состояние окружающей среды и природопользования",6,5,4100000,0,0,0]
["Природоохранные мероприятия",6,5,4100100,0,0,0]
["Выполнение функций органами местного самоуправления",6,5,4100100,"500",0,0]
["Региональные целевые программы",6,5,5220000,0,0,0]
["Долгосрочная целевая программа Иркутской области «Защита окружающей среды в Иркутской области на 2011-2015 годы»",6,5,5222500,0,0,0]
["Подпрограмма «Отходы производства и потребления в Иркутской области на 2011-2015 годы»",6,5,5222502,0,0,0]
["Выполнение функций органами местного самоуправления",6,5,5222502,"500",0,0]
["ОБРАЗОВАНИЕ",7,0,0,0,348970.3,346703.1]
["Дошкольное образование",7,1,0,0,64603.4,62906.1]
["Детские дошкольные учреждения",7,1,4200000,0,61308.4,61441.1]
["Обеспечение деятельности подведомственных учреждений",7,1,4209900,0,61308.4,61441.1]
["Выполнение функций казенными учреждениями",7,1,4209900,"001",61308.4,61441.1]
["Региональные целевые программы",7,1,5220000,0,0,0]
["Областная государственная целевая программа поддержки и развития учреждений дошкольного образования в Иркутской области на 2009-2014 годы",7,1,5223700,0,0,0]
["Выполнение функций казенными учреждениями",7,1,5223700,"001",0,0]
["Долгосрочная целевая программа «Энергосбережение и повышение энергетической эффективности на территории Иркутской области на 2011-2015 годы и на период до 2020 года»",7,1,5225400,0,0,0]
["Выполнение функций казенными учреждениями",7,1,5225400,"001",0,0]
["Выплата заработной платы с начислениями на нее педагогическим работникам муниципальных дошкольных образовательных учреждений и муниципальных учреждений дополнительного образования",7,1,5890000,0,1465,1465]
["Выполнение функций казенными учреждениями",7,1,5890000,"001",1465,1465]
["Целевые программы муниципальных образований",7,1,7950000,0,1830,0]
["Долгосрочная целевая программа Черемховского районного муниципального образования \"Повышение эффективности бюджетных расходов Черемховского районного муниципального образования на 2012-2013 годы\"",7,1,7950200,0,0,0]
["Выполнение функций казенными учреждениями",7,1,7950200,"001",0,0]
["Долгосрочная целевая программа \"Безопасность образовательных учреждений на 2010-2014 гг.\"",7,1,7951000,0,830,0]
["Мероприятия по обеспечению пожарной безопасности",7,1,7951000,"450",830,0]
["Долгосрочная целевая программа энергосбережения и повышения энергетической эффективности Черемховского районного муниципального образования на 2010-2015 годы",7,1,7951100,0,600,0]
["Мероприятия по повышению энергетической эффективности",7,1,7951100,"451",600,0]
["Долгосрочная целевая программа \"Развитие дошкольного образования на 2011-2014 гг.\"",7,1,7951700,0,0,0]
["Мероприятия в сфере образования",7,1,7951700,"022",0,0]
["Долгосрочная целевая программа \"Совершенствование дошкольного образования Черемховского района на 2011-2014 гг.\"",7,1,7951800,0,400,0]
["Мероприятия в сфере образования",7,1,7951800,"022",400,0]
["Общее образование",7,2,0,0,276921.3,276261.59999999998]
["Руководство и управление в сфере установленных функций органов государственной власти субъектов Российской Федерации  и органов местного самоуправления",7,2,20000,0,238581.5,238581.5]
["Обеспечение государственных гарантий прав граждан на получение общедоступного и бесплатного дошкольного, начального общего, основного общего, среднего (полного) общего образования, а также дополнительного образования в общеобразовательных учреждениях",7,2,25000,0,238581.5,238581.5]
["Выполнение функций казенными учреждениями",7,2,25000,"001",238581.5,238581.5]
["Школы - детские сады, школы начальные, неполные средние и средние",7,2,4210000,0,15782.6,15808.4]
["Обеспечение деятельности подведомственных учреждений",7,2,4219900,0,15782.6,15808.4]
["Выполнение функций казенными учреждениями",7,2,4219900,"001",15782.6,15808.4]
["Учреждения по внешкольной работе с детьми",7,2,4230000,0,20340.099999999999,21257.8]
["Обеспечение деятельности подведомственных учреждений",7,2,4239900,0,20340.099999999999,21257.8]
["Выполнение функций казенными учреждениями",7,2,4239900,"001",20340.099999999999,21257.8]
["Мероприятия в области образования",7,2,4360000,0,0,0]
["Модернизация региональных систем образования",7,2,4362100,0,0,0]
["Модернизация региональных систем образования за счет средств федерального бюджета",7,2,4362101,0,0,0]
["Выполнение функций казенными учреждениями",7,2,4362101,"001",0,0]
["Иные безвозмездные и безвозвратные перечисления",7,2,5200000,0,0,0]
["Ежемесячное денежное вознаграждение за классное руководство",7,2,5200900,0,0,0]
["Выполнение функций казенными учреждениями",7,2,5200900,"001",0,0]
["Региональные целевые программы",7,2,5220000,0,0,0]
["Долгосрочная целевая программа «Модернизация объектов коммунальной инфраструктуры Иркутской области на 2011-2013 годы»",7,2,5222000,0,0,0]
["Подпрограмма «Подготовка объектов коммунальной инфраструктуры Иркутской области к отопительному сезону в 2011-2013 годах»",7,2,5222001,0,0,0]
["Выполнение функций казенными учреждениями",7,2,5222001,"001",0,0]
["Долгосрочная целевая программа «Энергосбережение и повышение энергетической эффективности на территории Иркутской области на 2011-2015 годы и на период до 2020 года»",7,2,5225400,0,0,0]
["Выполнение функций казенными учреждениями",7,2,5225400,"001",0,0]
["Выплата заработной платы с начислениями на нее педагогическим работникам муниципальных дошкольных образовательных учреждений и муниципальных учреждений дополнительного образования",7,2,5890000,0,540.1,540.1]
["Выполнение функций казенными учреждениями",7,2,5890000,"001",540.1,540.1]
["Целевые программы муниципальных образований",7,2,7950000,0,1677,73.8]
["Долгосрочная целевая программа Черемховского районного муниципального образования \"Повышение эффективности бюджетных расходов Черемховского районного муниципального образования на 2012-2013 годы\"",7,2,7950200,0,0,0]
["Выполнение функций казенными учреждениями",7,2,7950200,"001",0,0]
["Долгосрочная целевая программа \"Безопасность образовательных учреждений на 2010-2014 гг.\"",7,2,7951000,0,970,0]
["Мероприятия по обеспечению пожарной безопасности",7,2,7951000,"450",970,0]
["Долгосрочная целевая программа энергосбережения и повышения энергетической эффективности Черемховского районного муниципального образования на 2010-2015 годы",7,2,7951100,0,0,0]
["Мероприятия по повышению энергетической эффективности",7,2,7951100,"451",0,0]
["Долгосрочная целевая программа \"Ветхие школы Черемховского района\" на 2011-2013 гг.",7,2,7951500,0,0,0]
["Мероприятия в сфере образования",7,2,7951500,"022",0,0]
["Долгосрочная целевая программа \"Совершенствование организации питания в образовательных учреждениях Черемховского района на 2011-2013гг.\"",7,2,7951600,0,600,0]
["Мероприятия в сфере образования",7,2,7951600,"022",600,0]
["Долгосрочная целевая программа \"Развитие культуры в Черемховском районном муниципальном образовании на период 2012-2016 гг.\"",7,2,7952000,0,107,73.8]
["Мероприятия по поддержке и развитию культуры, искусства, кинематографии",7,2,7952000,"023",107,73.8]
["Профессиональная подготовка, переподготовка и повышение квалификации",7,5,0,0,127,127]
["Мероприятия по переподготовке и повышению квалификации",7,5,4340000,0,127,127]
["Выполнение функций казенными учреждениями",7,5,4340000,"001",127,127]
["Выполнение функций органами местного самоуправления",7,5,4340000,"500",0,0]
["Молодежная политика и оздоровление детей",7,7,0,0,212,212]
["Организационно-воспитательная работа с молодежью",7,7,4310000,0,46,46]
["Проведение мероприятий для детей и молодежи",7,7,4310100,0,46,46]
["Проведение мероприятия для детей и молодежи",7,7,4310100,"447",46,46]
["Мероприятия по проведению оздоровительной кампании детей",7,7,4320000,0,126,126]
["Оплата стоимости набора продуктов питания для детей в организованных органами местного самоуправления оздоровительных лагерях с дневным пребыванием детей за счет средств областного бюджета",7,7,4320300,0,126,126]
["Оплата стоимости набора продуктов питания для детей в организованных органами местного самоуправления оздоровительных лагерях с дневным пребыванием детей за счет средств местного бюджета ",7,7,4320302,0,126,126]
["Выполнение функций казенными учреждениями",7,7,4320302,"001",126,126]
["Региональные целевые программы",7,7,5220000,0,0,0]
["Долгосрочная целевая программа Иркутской области \"Организация и обеспечение отдыха и оздоровления детей в Иркутской области на 2012-2014гг.\"",7,7,5226200,0,0,0]
["Выполнение функций казенными учреждениями",7,7,5226200,"001",0,0]
["Целевые программы муниципальных образований",7,7,7950000,0,40,40]
["Долгосрочная целевая программа \"Комплексные меры профилактики злоупотребления наркотическими средствами и психотропными веществами в Черемховском районном муниципальном образовании на 2011-2013 гг.\"",7,7,7951300,0,0,0]
["Выполнение функций органами местного самоуправления",7,7,7951300,"500",0,0]
["Долгосрочная целевая программа \"Молодежная политика в Черемховском районном муниципальном образовании\" на 2013-2015 гг.",7,7,7952500,0,40,40]
["Проведение мероприятия для детей и молодежи",7,7,7952500,"447",40,40]
["Другие вопросы в области образования",7,9,0,0,7106.6,7196.4]
["Руководство и управление в сфере установленных функций органов государственной власти субъектов Российской Федерации  и органов местного самоуправления",7,9,20000,0,2106.6,2196.4]
["Центральный аппарат",7,9,20400,0,2106.6,2196.4]
["Выполнение функций органами местного самоуправления",7,9,20400,"500",2106.6,2196.4]
["Учебно-методические кабинеты, централизованные бухгалтерии, группы хозяйственного обслуживания, учебные фильмотеки, межшкольные учебно-производственные комбинаты, логопедические пункты",7,9,4520000,0,5000,5000]
["Субсидии бюджетным учреждениям на финансовое обеспечение муниципального задания на оказание муниципальных услуг (выполнение работ)",7,9,4520000,"611",5000,5000]
["КУЛЬТУРА И КИНЕМАТОГРАФИЯ",8,0,0,0,13119.4,12743.1]
["Культура",8,1,0,0,12183.5,11762]
["Учреждения культуры и мероприятия в сфере культуры и кинематографии",8,1,4400000,0,3856.1,4010.2]
["Комплектование книжных фондов библиотек муниципальных образований и государственных библиотек городов Москвы и Санкт-Петербурга",8,1,4400200,0,466.3,466.3]
["Комплектование книжных фондов библиотек муниципальных образований и государственных библиотек городов Москвы и Санкт-Петербурга за счет средств федерального бюджета",8,1,4400201,0,303.60000000000002,303.60000000000002]
["Выполнение функций казенными учреждениями",8,1,4400201,"001",303.60000000000002,303.60000000000002]
["Комплектование книжных фондов библиотек муниципальных образований и государственных библиотек городов Москвы и Санкт-Петербурга за счет областного бюджета",8,1,4400202,0,162.69999999999999,162.69999999999999]
["Выполнение функций казенными учреждениями",8,1,4400202,"001",162.69999999999999,162.69999999999999]
["Обеспечение деятельности подведомственных учреждений",8,1,4409900,0,3389.8,3543.9]
["Выполнение функций казенными учреждениями",8,1,4409900,"001",3389.8,3543.9]
["Музеи и постоянные выставки",8,1,4410000,0,899.1,935.8]
["Обеспечение деятельности подведомственных учреждений",8,1,4419900,0,899.1,935.8]
["Выполнение функций казенными учреждениями",8,1,4419900,"001",899.1,935.8]
["Библиотеки",8,1,4420000,0,5424.3,5676.8]
["Обеспечение деятельности подведомственных учреждений",8,1,4429900,0,5424.3,5676.8]
["Выполнение функций казенными учреждениями",8,1,4429900,"001",5424.3,5676.8]
["Региональные целевые программы",8,1,5220000,0,1000,0]
["Долгосрочная целевая программа Иркутской области «100 модельных домов культуры Приангарью» на 2011-2013 годы",8,1,5225500,0,1000,0]
["Выполнение функций казенными учреждениями",8,1,5225500,"001",1000,0]
["Целевые программы муниципальных образований",8,1,7950000,0,1004,1139.2]
["Долгосрочная целевая программа Черемховского районного муниципального образования \"Повышение эффективности бюджетных расходов Черемховского районного муниципального образования на 2012-2013 годы\"",8,1,7950200,0,0,0]
["Выполнение функций казенными учреждениями",8,1,7950200,"001",0,0]
["Долгосрочная целевая программа энергосбережения и повышения энергетической эффективности Черемховского районного муниципального образования на 2010-2015 годы",8,1,7951100,0,100,200]
["Мероприятия по повышению энергетической эффективности",8,1,7951100,"451",100,200]
["Долгосрочная целевая программа \"Развитие культуры в Черемховском районном муниципальном образовании на период 2012-2016 гг.\"",8,1,7952000,0,904,939.2]
["Мероприятия по поддержке и развитию культуры, искусства, кинематографии",8,1,7952000,"023",904,939.2]
["Другие вопросы в области культуры, кинематографии",8,4,0,0,935.9,981.1]
["Руководство и управление в сфере установленных функций органов государственной власти субъектов Российской Федерации  и органов местного самоуправления",8,4,20000,0,935.9,981.1]
["Центральный аппарат",8,4,20400,0,935.9,981.1]
["Выполнение функций органами местного самоуправления",8,4,20400,"500",935.9,981.1]
["ЗДРАВООХРАНЕНИЕ",9,0,0,0,0,0]
["Другие вопросы в области здравоохранения",9,9,0,0,0,0]
["Целевые программы муниципальных образований",9,9,7950000,0,0,0]
["Ведомственная целевая программа \"Обеспечение учреждений здравоохранения Черемховского районного муниципального образования квалифицированными медицинскими кадрами\" на 2013 год",9,9,7952800,0,0,0]
["Выполнение функций органами местного самоуправления",9,9,7952800,"500",0,0]
["Социальная политика",10,0,0,0,19563.2,19960.400000000001]
["Пенсионное обеспечение",10,1,0,0,2980,2980]
["Доплаты к пенсиям, дополнительное пенсионное обеспечение ",10,1,4910000,0,2980,2980]
["Доплаты к пенсиям государственных служащих субъектов Российской Федерации и муниципальных служащих ",10,1,4910100,0,2980,2980]
["Социальные выплаты",10,1,4910100,"005",2980,2980]
["Социальное обеспечение населения",10,3,0,0,15405.1,15802.3]
["Руководство и управление в сфере установленных функций органов государственной власти субъектов Российской Федерации  и органов местного самоуправления",10,3,20000,0,14247.6,14596.2]
["Осуществление отдельных областных государственных полномочий по предоставлению мер социальной поддержки многодетным и малоимущим семьям",10,3,24600,0,6361.8,6361.8]
["Социальные выплаты",10,3,24600,"005",6361.8,6361.8]
["Осуществление областных государственных полномочий по предоставлению гражданам субсидий на оплату жилых помещений и коммунальных услуг",10,3,24700,0,7885.8,8234.4]
["Содержание и обеспечение деятельности муниципальных служащих, осуществляющих областные государственные полномочия по предоставлению гражданам субсидий на оплату жилых помещений и коммунальных услуг",10,3,24701,0,771.9,771.9]
["Выполнение функций органами местного самоуправления",10,3,24701,"500",771.9,771.9]
["Предоставление гражданам субсидий на оплату жилых помещений и коммунальных услуг",10,3,24702,0,7113.9,7462.5]
["Социальные выплаты",10,3,24702,"005",7113.9,7462.5]
["Реализация государственных функций в области социальной политики",10,3,5140000,0,882.1,910]
["Мероприятия в области социальной политики",10,3,5140100,0,882.1,910]
["Социальные выплаты",10,3,5140100,"005",882.1,910]
["Региональные целевые программы",10,3,5220000,0,0,0]
["Областная государственная социальная программа \"Молодым семьям - доступное жилье\" на 2005-2019 годы",10,3,5222200,0,0,0]
["Социальные выплаты",10,3,5222200,"005",0,0]
["Целевые программы муниципальных образований",10,3,7950000,0,275.39999999999998,296.10000000000002]
["Долгосрочная целевая программа \"Молодым семьям-доступное жилье\" на 2012-2019 гг.",10,3,7952100,0,275.39999999999998,296.10000000000002]
["Социальные выплаты",10,3,7952100,"005",275.39999999999998,296.10000000000002]
["Охрана семьи и детства",10,4,0,0,0,0]
["Исполнение судебных актов по обеспечению жилыми помещениями детей-сирот и детей, оставшихся без попечения родителей, лиц из числа детей-сирот и детей, оставшихся без попечения родителей, вынесенных в соответствии с Законом Иркутской области от 22.06.2010 № 50-ОЗ «О дополнительных гарантиях прав детей-сирот и детей, оставшихся без попечения родителей, на жилое помещение в Иркутской области» и Законом Иркутской области от 29.06.2010 № 52-ОЗ «О наделении органов местного самоуправления областными государственными полномочиями по обеспечению детей-сирот и детей, оставшихся без попечения родителей, лиц из числа детей-сирот и детей, оставшихся без попечения родителей, жилыми помещениями по договорам социального найма в Иркутской области",10,4,6040000,0,0,0]
["Бюджетные инвестиции",10,4,6040000,"003",0,0]
["Другие вопросы в области социальной политики",10,6,0,0,1178.0999999999999,1178.0999999999999]
["Руководство и управление в сфере установленных функций органов государственной власти субъектов Российской Федерации  и органов местного самоуправления",10,6,20000,0,1078.0999999999999,1078.0999999999999]
["Осуществление областных государственных полномочий по определению персонального состава и обеспечению деятельности районных (городских), районных в городах комиссий по делам несовершеннолетних и защите их прав",10,6,24100,0,1078.0999999999999,1078.0999999999999]
["Выполнение функций органами местного самоуправления",10,6,24100,"500",1078.0999999999999,1078.0999999999999]
["Целевые программы муниципальных образований",10,6,7950000,0,100,100]
["Муниципальная целевая программа \"Поддержка, проводимых мероприятий, посвященных Дням воинской славы, памятным датам России и работе с ветеранами и инвалидами в Черемховском районе на 2013-2015 гг.\"",10,6,7952400,0,100,100]
["Выполнение функций органами местного самоуправления",10,6,7952400,"500",100,100]
["ФИЗИЧЕСКАЯ КУЛЬТУРА И СПОРТ",11,0,0,0,82.4,82.4]
["Физическая культура",11,1,0,0,82.4,82.4]
["Физкультурно-оздоровительная работа и спортивные мероприятия",11,1,5120000,0,82.4,82.4]
["Мероприятия в области спорта, физической культуры и туризма",11,1,5129700,0,82.4,82.4]
["Выполнение функций органами местного самоуправления",11,1,5129700,"500",82.4,82.4]
["Целевые программы муниципальных образований",11,1,7950000,0,0,0]
["Долгосрочная целевая программа \"Развитие физической культуры, спорта и туризма в Черемховском районном муниципальном образовании на 2011-2013 гг.\"",11,1,7951200,0,0,0]
["Выполнение функций органами местного самоуправления",11,1,7951200,"500",0,0]
["СРЕДСТВА МАССОВОЙ ИНФОРМАЦИИ",12,0,0,0,2000,2000]
["Периодическая печать и издательства",12,2,0,0,2000,2000]
["Периодические издания, учрежденные органами законодательной и исполнительной власти",12,2,4570000,0,2000,2000]
["Государственная поддержка в сфере культуры, кинематографии и средств массовой информации",12,2,4578500,0,2000,2000]
["Субсидии юридическим лицам",12,2,4578500,"006",2000,2000]
["ОБСЛУЖИВАНИЕ ГОСУДАРСТВЕННОГО И МУНИЦИПАЛЬНОГО ДОЛГА",13,0,0,0,61.2,63.5]
["Обслуживание внутреннего государственного и муниципального долга",13,1,0,0,61.2,63.5]
["Процентные платежи по долговым обязательствам",13,1,650000,0,61.2,63.5]
["Процентные платежи по муниципальному долгу",13,1,650300,0,61.2,63.5]
["Прочие расходы",13,1,650300,"013",61.2,63.5]
["МЕЖБЮДЖЕТНЫЕ ТРАНСФЕРТЫ ОБЩЕГО ХАРАКТЕРА БЮДЖЕТАМ СУБЪЕКТОВ РОССИЙСКОЙ ФЕДЕРАЦИИ И МУНИЦИПАЛЬНЫХ ОБРАЗОВАНИЙ ",14,0,0,0,3400,3500]
["Дотации на выравнивание бюджетной обеспеченности субъектов Российской Федерации и муниципальных образований",14,1,0,0,3400,3500]
["Выравнивание бюджетной обеспечености",14,1,5160000,0,3400,3500]
["Выравнивание бюджетной обеспеченности",14,1,5160100,0,3400,3500]
["Выравнивание бюджетной обеспеченности поселений из районного фонда финансовой поддержки",14,1,5160130,0,3400,3500]
["Фонд финансовой поддержки",14,1,5160130,"008",3400,3500]
["Прочие межбюджетные трансферты общего характера бюджетам субъектов Российской Федерации и муниципальных образований ",14,3,0,0,0,0]
["Целевые программы муниципальных образований",14,3,7950000,0,0,0]
["Долгосрочная целевая программа Черемховского районного муниципального образования \"Повышение эффективности бюджетных расходов Черемховского районного муниципального образования на 2012-2013 годы\"",14,3,7950200,0,0,0]
["Иные межбюджетные трансферты",14,3,7950200,"017",0,0]
["ИТОГО",{"$nulls":4},452326,448058]
[]
["И.о. начальника финуправления",{"$nulls":4},"С.М. Татина"]

{"sheet":"прил8","index":6,"n_rows":407,"n_cols":7,"rows_kept":407,"cut":false,"hidden":false,"merged":[[401,0,401,5],[17,0,17,6],[20,0,21,0],[20,1,20,5],[20,6,21,6],[28,0,28,5]]}
{"$rows_empty":17}
["Распределение  бюджетных ассигнований по разделам, подразделам, целевым статьям и видам расходов классификации расходов бюджетов в ведомственной структуре расходов бюджета Черемховского районного муниципального образования на 2013 год"]
[]
[]
["Наименование показателя","Код",{"$nulls":4},"Сумма , тыс. руб. "]
[null,"ГРБС","раздела","подраздела","целевой статьи","вида расходов"]
[1,2,3,4,5,6,7]
["Обеспечение проведения выборов и референдумов",917,1,7,0,0,0]
["Проведение выборов и референдумов",917,1,7,200000,0,0]
["Проведение выборов и референдумов",917,1,7,200000,0,0]
["Проведение выборов в представительные органы муниципального образования",917,1,7,200002,0,0]
["Выполнение функций органами местного самоуправления",917,1,7,200002,"500",0]
["ИТОГО",{"$nulls":5},616524.80000000005]
["Отдел по культуре и библиотечному обслуживанию АЧРМО",904,0,0,0,0,28033.279999999999]
["ОБРАЗОВАНИЕ",904,7,0,0,0,6202.7790000000005]
["Общее образование",904,7,2,0,0,6194.7190000000001]
["Учреждения по внешкольной работе с детьми",904,7,2,4230000,0,5390.9189999999999]
["Обеспечение деятельности подведомственных учреждений",904,7,2,4239900,0,5390.9189999999999]
["Выполнение функций казенными учреждениями",904,7,2,4239900,"001",5390.9189999999999]
["Целевые программы муниципальных образований",904,7,2,7950000,0,803.8]
["Долгосрочная целевая программа Черемховского районного муниципального образования \"Повышение эффективности бюджетных расходов Черемховского районного муниципального образования на 2012-2013 годы\"",904,7,2,7950200,0,711]
["Выполнение функций казенными учреждениями",904,7,2,7950200,"001",711]
["Долгосрочная целевая программа \"Развитие культуры в Черемховском районном муниципальном образовании на период 2012-2016 гг.\"",904,7,2,7952000,0,92.8]
["Мероприятия по поддержке и развитию культуры, искусства, кинематографии",904,7,2,7952000,"023",92.8]
["Профессиональная подготовка, переподготовка и повышение квалификации",904,7,5,0,0,8.06]
["Мероприятия по переподготовке и повышению квалификации",904,7,5,4340000,0,8.06]
["Выполнение функций казенными учреждениями",904,7,5,4340000,"001",8.06]
["КУЛЬТУРА И КИНЕМАТОГРАФИЯ",904,8,0,0,0,21830.501]
["Культура",904,8,1,0,0,20508.774000000001]
["Учреждения культуры и мероприятия в сфере культуры и кинематографии",904,8,1,4400000,0,6951.4570000000003]
["Комплектование книжных фондов библиотек муниципальных образований и государственных библиотек городов Москвы и Санкт-Петербурга",904,8,1,4400200,0,466.3]
["Комплектование книжных фондов библиотек муниципальных образований и государственных библиотек городов Москвы и Санкт-Петербурга за счет средств федерального бюджета",904,8,1,4400201,0,303.60000000000002]
["Выполнение функций казенными учреждениями",904,8,1,4400201,"001",303.60000000000002]
["Комплектование книжных фондов библиотек муниципальных образований и государственных библиотек городов Москвы и Санкт-Петербурга за счет областного бюджета",904,8,1,4400202,0,162.69999999999999]
["Выполнение функций казенными учреждениями",904,8,1,4400202,"001",162.69999999999999]
["Обеспечение деятельности подведомственных учреждений",904,8,1,4409900,0,6485.1570000000002]
["Выполнение функций казенными учреждениями",904,8,1,4409900,"001",6485.1570000000002]
["Музеи и постоянные выставки",904,8,1,4410000,0,1338.6179999999999]
["Обеспечение деятельности подведомственных учреждений",904,8,1,4419900,0,1338.6179999999999]
["Выполнение функций казенными учреждениями",904,8,1,4419900,"001",1338.6179999999999]
["Библиотеки",904,8,1,4420000,0,8758.6990000000005]
["Обеспечение деятельности подведомственных учреждений",904,8,1,4429900,0,8758.6990000000005]
["Выполнение функций казенными учреждениями",904,8,1,4429900,"001",8758.6990000000005]
["Региональные целевые программы",904,8,1,5220000,0,1500]
["Долгосрочная целевая программа Иркутской области «100 модельных домов культуры Приангарью» на 2011-2013 годы",904,8,1,5225500,0,1000]
["Выполнение функций казенными учреждениями",904,8,1,5225500,"001",1000]
["Долгосрочная целевая программа \"Публичные центры правовой, деловой и социально-значимой информации центральных районных  библиотек Иркутской области\" (2013-2014 годы)",904,8,1,5227600,0,500]
["Выполнение функций казенными учреждениями",904,8,1,5227600,"001",500]
["Целевые программы муниципальных образований",904,8,1,7950000,0,1960]
["Долгосрочная целевая программа Черемховского районного муниципального образования \"Повышение эффективности бюджетных расходов Черемховского районного муниципального образования на 2012-2013 годы\"",904,8,1,7950200,0,747]
["Выполнение функций казенными учреждениями",904,8,1,7950200,"001",747]
["Долгосрочная целевая программа энергосбережения и повышения энергетической эффективности Черемховского районного муниципального образования на 2010-2015 годы",904,8,1,7951100,0,282]
["Мероприятия по повышению энергетической эффективности",904,8,1,7951100,"451",282]
["Долгосрочная целевая программа \"Развитие культуры в Черемховском районном муниципальном образовании на период 2012-2016 гг.\"",904,8,1,7952000,0,931]
["Мероприятия по поддержке и развитию культуры, искусства, кинематографии",904,8,1,7952000,"023",931]
["Другие вопросы в области культуры, кинематографии",904,8,4,0,0,1321.7270000000001]
["Руководство и управление в сфере установленных функций органов государственной власти субъектов Российской Федерации  и органов местного самоуправления",904,8,4,20000,0,1321.7270000000001]
["Центральный аппарат",904,8,4,20400,0,1321.7270000000001]
["Выполнение функций органами местного самоуправления",904,8,4,20400,"500",1321.7270000000001]
["Отдел образования АЧРМО",907,0,0,0,0,478290.56699999998]
["ОБРАЗОВАНИЕ",907,7,0,0,0,471928.76699999999]
["Дошкольное образование",907,7,1,0,0,106629.85799999999]
["Детские дошкольные учреждения",907,7,1,4200000,0,65953.713000000003]
["Обеспечение деятельности подведомственных учреждений",907,7,1,4209900,0,65953.713000000003]
["Выполнение функций казенными учреждениями",907,7,1,4209900,"001",65953.713000000003]
["Региональные целевые программы",907,7,1,5220000,0,3335.7660000000001]
["Областная государственная целевая программа поддержки и развития учреждений дошкольного образования в Иркутской области на 2009-2014 годы",907,7,1,5223700,0,3027.5059999999999]
["Выполнение функций казенными учреждениями",907,7,1,5223700,"001",3027.5059999999999]
["Долгосрочная целевая программа «Энергосбережение и повышение энергетической эффективности на территории Иркутской области на 2011-2015 годы и на период до 2020 года»",907,7,1,5225400,0,308.26]
["Выполнение функций казенными учреждениями",907,7,1,5225400,"001",308.26]
["Выплата заработной платы с начислениями на нее педагогическим работникам муниципальных дошкольных образовательных учреждений и муниципальных учреждений дополнительного образования",907,7,1,5890000,0,29973.348999999998]
["Выполнение функций казенными учреждениями",907,7,1,5890000,"001",29973.348999999998]
["Целевые программы муниципальных образований",907,7,1,7950000,0,7367.03]
["Долгосрочная целевая программа Черемховского районного муниципального образования \"Повышение эффективности бюджетных расходов Черемховского районного муниципального образования на 2012-2013 годы\"",907,7,1,7950200,0,5211]
["Выполнение функций казенными учреждениями",907,7,1,7950200,"001",5211]
["Долгосрочная целевая программа \"Безопасность образовательных учреждений на 2010-2014 гг.\"",907,7,1,7951000,0,572]
["Мероприятия по обеспечению пожарной безопасности",907,7,1,7951000,"450",572]
["Долгосрочная целевая программа энергосбережения и повышения энергетической эффективности Черемховского районного муниципального образования на 2010-2015 годы",907,7,1,7951100,0,132.03]
["Мероприятия по повышению энергетической эффективности",907,7,1,7951100,"451",132.03]
["Долгосрочная целевая программа \"Развитие дошкольного образования на 2011-2014 гг.\"",907,7,1,7951700,0,1102]
["Мероприятия в сфере образования",907,7,1,7951700,"022",1102]
["Долгосрочная целевая программа \"Совершенствование дошкольного образования Черемховского района на 2011-2014 гг.\"",907,7,1,7951800,0,350]
["Мероприятия в сфере образования",907,7,1,7951800,"022",350]
["Общее образование",907,7,2,0,0,354225.728]
["Руководство и управление в сфере установленных функций органов государственной власти субъектов Российской Федерации  и органов местного самоуправления",907,7,2,20000,0,281204.44900000002]
["Обеспечение государственных гарантий прав граждан на получение общедоступного и бесплатного дошкольного, начального общего, основного общего, среднего (полного) общего образования, а также дополнительного образования в общеобразовательных учреждениях",907,7,2,25000,0,281204.44900000002]
["Выполнение функций казенными учреждениями",907,7,2,25000,"001",281204.44900000002]
["Школы - детские сады, школы начальные, неполные средние и средние",907,7,2,4210000,0,22043.404999999999]
["Обеспечение деятельности подведомственных учреждений",907,7,2,4219900,0,22043.404999999999]
["Выполнение функций казенными учреждениями",907,7,2,4219900,"001",22043.404999999999]
["Учреждения по внешкольной работе с детьми",907,7,2,4230000,0,23454.874]
["Обеспечение деятельности подведомственных учреждений",907,7,2,4239900,0,23454.874]
["Выполнение функций казенными учреждениями",907,7,2,4239900,"001",23454.874]
["Мероприятия в области образования",907,7,2,4360000,0,1600]
["Модернизация региональных систем образования",907,7,2,4362100,0,1600]
["Модернизация региональных систем образования за счет средств федерального бюджета",907,7,2,4362101,0,1600]
["Выполнение функций казенными учреждениями",907,7,2,4362101,"001",1600]
["Иные безвозмездные и безвозвратные перечисления",907,7,2,5200000,0,5000.1000000000004]
["Ежемесячное денежное вознаграждение за классное руководство",907,7,2,5200900,0,5000.1000000000004]
["Выполнение функций казенными учреждениями",907,7,2,5200900,"001",5000.1000000000004]
["Региональные целевые программы",907,7,2,5220000,0,2040.09]
["Долгосрочная целевая программа «Модернизация объектов коммунальной инфраструктуры Иркутской области на 2011-2013 годы»",907,7,2,5222000,0,1700]
["Подпрограмма «Подготовка объектов коммунальной инфраструктуры Иркутской области к отопительному сезону в 2011-2013 годах»",907,7,2,5222001,0,1700]
["Выполнение функций казенными учреждениями",907,7,2,5222001,"001",1700]
["Долгосрочная целевая программа «Энергосбережение и повышение энергетической эффективности на территории Иркутской области на 2011-2015 годы и на период до 2020 года»",907,7,2,5225400,0,340.09]
["Выполнение функций казенными учреждениями",907,7,2,5225400,"001",340.09]
["Выплата заработной платы с начислениями на нее педагогическим работникам муниципальных дошкольных образовательных учреждений и муниципальных учреждений дополнительного образования",907,7,2,5890000,0,2201.951]
["Выполнение функций казенными учреждениями",907,7,2,5890000,"001",2201.951]
["Целевые программы муниципальных образований",907,7,2,7950000,0,16680.859]
["Долгосрочная целевая программа Черемховского районного муниципального образования \"Повышение эффективности бюджетных расходов Черемховского районного муниципального образования на 2012-2013 годы\"",907,7,2,7950200,0,13184.888999999999]
["Выполнение функций казенными учреждениями",907,7,2,7950200,"001",13184.888999999999]
["Долгосрочная целевая программа \"Безопасность образовательных учреждений на 2010-2014 гг.\"",907,7,2,7951000,0,1128]
["Мероприятия по обеспечению пожарной безопасности",907,7,2,7951000,"450",1128]
["Долгосрочная целевая программа энергосбережения и повышения энергетической эффективности Черемховского районного муниципального образования на 2010-2015 годы",907,7,2,7951100,0,467.97]
["Мероприятия по повышению энергетической эффективности",907,7,2,7951100,"451",467.97]
["Долгосрочная целевая программа \"Ветхие школы Черемховского района\" на 2011-2013 гг.",907,7,2,7951500,0,900]
["Мероприятия в сфере образования",907,7,2,7951500,"022",900]
["Долгосрочная целевая программа \"Совершенствование организации питания в образовательных учреждениях Черемховского района на 2011-2013гг.\"",907,7,2,7951600,0,1000]
["Мероприятия в сфере образования",907,7,2,7951600,"022",1000]
["Профессиональная подготовка, переподготовка и повышение квалификации",907,7,5,0,0,100]
["Мероприятия по переподготовке и повышению квалификации",907,7,5,4340000,0,100]
["Выполнение функций казенными учреждениями",907,7,5,4340000,"001",100]
["Молодежная политика и оздоровление детей",907,7,7,0,0,2475.9]
["Мероприятия по проведению оздоровительной кампании детей",907,7,7,4320000,0,123.8]
["Оплата стоимости набора продуктов питания для детей в организованных органами местного самоуправления оздоровительных лагерях с дневным пребыванием детей за счет средств областного бюджета",907,7,7,4320300,0,123.8]
["Оплата стоимости набора продуктов питания для детей в организованных органами местного самоуправления оздоровительных лагерях с дневным пребыванием детей за счет средств местного бюджета \n",907,7,7,4320302,0,123.8]
["Выполнение функций казенными учреждениями",907,7,7,4320302,"001",123.8]
["Региональные целевые программы",907,7,7,5220000,0,2352.1]
["Долгосрочная целевая программа Иркутской области \"Организация и обеспечение отдыха и оздоровления детей в Иркутской области на 2012-2014гг.\"",907,7,7,5226200,0,2352.1]
["Выполнение функций казенными учреждениями",907,7,7,5226200,"001",2352.1]
["Другие вопросы в области образования",907,7,9,0,0,8497.2810000000009]
["Руководство и управление в сфере установленных функций органов государственной власти субъектов Российской Федерации  и органов местного самоуправления",907,7,9,20000,0,2997.2809999999999]
["Центральный аппарат",907,7,9,20400,0,2997.2809999999999]
["Выполнение функций органами местного самоуправления",907,7,9,20400,"500",2997.2809999999999]
["Учебно-методические кабинеты, централизованные бухгалтерии, группы хозяйственного обслуживания, учебные фильмотеки, межшкольные учебно-производственные комбинаты, логопедические пункты",907,7,9,4520000,0,5500]
["Субсидии бюджетным учреждениям на финансовое обеспечение муниципального задания на оказание муниципальных услуг (выполнение работ)",907,7,9,4520000,"611",5500]
["Социальная политика",907,10,0,0,0,6361.8]
["Социальное обеспечение населения",907,10,3,0,0,6361.8]
["Руководство и управление в сфере установленных функций органов государственной власти субъектов Российской Федерации  и органов местного самоуправления",907,10,3,20000,0,6361.8]
["Осуществление отдельных областных государственных полномочий по предоставлению мер социальной поддержки многодетным и малоимущим семьям",907,10,3,24600,0,6361.8]
["Социальные выплаты",907,10,3,24600,"005",6361.8]
["Финансовое управление администрации ЧРМО",910,0,0,0,0,32367.714]
["ОБЩЕГОСУДАРСТВЕННЫЕ ВОПРОСЫ",910,1,0,0,0,23786.714]
["Обеспечение деятельности финансовых, налоговых и таможенных органов и органов финансового (финансово-бюджетного) надзора",910,1,6,0,0,8482.1849999999995]
["Руководство и управление в сфере установленных функций органов государственной власти субъектов Российской Федерации  и органов местного самоуправления",910,1,6,20000,0,8282.1849999999995]
["Центральный аппарат",910,1,6,20400,0,8282.1849999999995]
["Выполнение функций органами местного самоуправления",910,1,6,20400,"500",8282.1849999999995]
["Целевые программы муниципальных образований",910,1,6,7950000,0,200]
["Долгосрочная целевая программа Черемховского районного муниципального образования \"Повышение эффективности бюджетных расходов Черемховского районного муниципального образования на 2012-2013 годы\"",910,1,6,7950200,0,200]
["Выполнение функций органами местного самоуправления",910,1,6,7950200,"500",200]
["Другие общегосударственные вопросы",910,1,13,0,0,15304.529]
["Руководство и управление в сфере установленных функций органов государственной власти субъектов Российской Федерации  и органов местного самоуправления",910,1,13,20000,0,15304.529]
["Обеспечение деятельности подведомственных учреждений",910,1,13,29900,0,15304.529]
["Выполнение функций казенными учреждениями",910,1,13,29900,"001",15304.529]
["ЖИЛИЩНО-КОММУНАЛЬНОЕ ХОЗЯЙСТВО",910,5,0,0,0,70]
["Коммунальное хозяйство",910,5,2,0,0,70]
["Региональные целевые программы",910,5,2,5220000,0,70]
["Долгосрочная целевая программа «Энергосбережение и повышение энергетической эффективности на территории Иркутской области на 2011-2015 годы и на период до 2020 года»",910,5,2,5225400,0,70]
["Иные межбюджетные трансферты",910,5,2,5225400,"017",70]
["ОБРАЗОВАНИЕ",910,7,0,0,0,60]
["Профессиональная подготовка, переподготовка и повышение квалификации",910,7,5,0,0,60]
["Мероприятия по переподготовке и повышению квалификации",910,7,5,4340000,0,60]
["Выполнение функций органами местного самоуправления",910,7,5,4340000,"500",60]
["ОБСЛУЖИВАНИЕ ГОСУДАРСТВЕННОГО И МУНИЦИПАЛЬНОГО ДОЛГА",910,13,0,0,0,60]
["Обслуживание внутреннего государственного и муниципального долга",910,13,1,0,0,60]
["Процентные платежи по долговым обязательствам",910,13,1,650000,0,60]
["Процентные платежи по муниципальному долгу",910,13,1,650300,0,60]
["Прочие расходы",910,13,1,650300,"013",60]
["МЕЖБЮДЖЕТНЫЕ ТРАНСФЕРТЫ ОБЩЕГО ХАРАКТЕРА БЮДЖЕТАМ СУБЪЕКТОВ РОССИЙСКОЙ ФЕДЕРАЦИИ И МУНИЦИПАЛЬНЫХ ОБРАЗОВАНИЙ ",910,14,0,0,0,8391]
["Дотации на выравнивание бюджетной обеспеченности субъектов Российской Федерации и муниципальных образований",910,14,1,0,0,3500]
["Выравнивание бюджетной обеспечености",910,14,1,5160000,0,3500]
["Выравнивание бюджетной обеспеченности",910,14,1,5160100,0,3500]
["Выравнивание бюджетной обеспеченности поселений из районного фонда финансовой поддержки",910,14,1,5160130,0,3500]
["Фонд финансовой поддержки",910,14,1,5160130,"008",3500]
["Прочие межбюджетные трансферты общего характера бюджетам субъектов Российской Федерации и муниципальных образований ",910,14,3,0,0,4891]
["Целевые программы муниципальных образований",910,14,3,7950000,0,4891]
["Долгосрочная целевая программа Черемховского районного муниципального образования \"Повышение эффективности бюджетных расходов Черемховского районного муниципального образования на 2012-2013 годы\"",910,14,3,7950200,0,4891]
["Иные межбюджетные трансферты",910,14,3,7950200,"017",4891]
["Комитет по управлению муниципальным имуществом ЧРМО",913,0,0,0,0,21446.241000000002]
["ОБЩЕГОСУДАРСТВЕННЫЕ ВОПРОСЫ",913,1,0,0,0,11762.714]
["Другие общегосударственные вопросы",913,1,13,0,0,11762.714]
["Руководство и управление в сфере установленных функций органов государственной власти субъектов Российской Федерации  и органов местного самоуправления",913,1,13,20000,0,4007.1080000000002]
["Центральный аппарат",913,1,13,20400,0,3107.1080000000002]
["Выполнение функций органами местного самоуправления",913,1,13,20400,"500",3107.1080000000002]
["Обеспечение деятельности подведомственных учреждений",913,1,13,29900,0,900]
["Субсидии бюджетным учреждениям на финансовое обеспечение муниципального задания на оказание муниципальных услуг (выполнение работ)",913,1,13,29900,"611",900]
["Реализация государственных функций, связанных с общегосударственным управлением",913,1,13,920000,0,607.00400000000002]
["Выполнение других обязательств государства",913,1,13,920300,0,607.00400000000002]
["Выполнение функций органами местного самоуправления",913,1,13,920300,"500",607.00400000000002]
["Учреждения по обеспечению хозяйственного обслуживания",913,1,13,930000,0,6500]
["Субсидии бюджетным учреждениям на финансовое обеспечение муниципального задания на оказание муниципальных услуг (выполнение работ)",913,1,13,930000,"611",6500]
["Целевые программы муниципальных образований",913,1,13,7950000,0,648.60199999999998]
["Долгосрочная целевая программа \"Инвентаризация муниципальных объектов недвижимости Черемховского районного муниципального образования на 2012-2014 годы\"",913,1,13,7951900,0,648.60199999999998]
["Выполнение функций органами местного самоуправления",913,1,13,7951900,"500",648.60199999999998]
["НАЦИОНАЛЬНАЯ ЭКОНОМИКА",913,4,0,0,0,1820]
["Дорожное хозяйство(дорожные фонды)",913,4,9,0,0,1320]
["Целевые программы муниципальных образований",913,4,9,7950000,0,1320]
["Долгосрочная целевая программа \"Инвентаризация муниципальных объектов недвижимости Черемховского районного муниципального образования на 2012-2014 годы\"",913,4,9,7951900,0,1320]
["Выполнение функций органами местного самоуправления",913,4,9,7951900,"500",1320]
["Другие вопросы в области национальной экономики",913,4,12,0,0,500]
["Целевые программы муниципальных образований",913,4,12,7950000,0,500]
["Долгосрочная целевая программа \"Инвентаризация муниципальных объектов недвижимости Черемховского районного муниципального образования на 2012-2014 годы\"",913,4,12,7951900,0,500]
["Выполнение функций органами местного самоуправления",913,4,12,7951900,"500",500]
["ЖИЛИЩНО-КОММУНАЛЬНОЕ ХОЗЯЙСТВО",913,5,0,0,0,1100.127]
["Жилищное хозяйство",913,5,1,0,0,1100.127]
["Поддержка жилищного хозяйства",913,5,1,3500000,0,1100.127]
["Капитальный ремонт государственного жилищного фонда субъектов Российской Федерации и муниципального жилищного фонда",913,5,1,3500200,0,1046.114]
["Субсидии юридическим лицам",913,5,1,3500200,"006",1046.114]
["Мероприятия в области жилищного хозяйства",913,5,1,3500300,0,54.012999999999998]
["Выполнение функций органами местного самоуправления",913,5,1,3500300,"500",54.012999999999998]
["ОБРАЗОВАНИЕ",913,7,0,0,0,11.4]
["Профессиональная подготовка, переподготовка и повышение квалификации",913,7,5,0,0,11.4]
["Мероприятия по переподготовке и повышению квалификации",913,7,5,4340000,0,11.4]
["Выполнение функций органами местного самоуправления",913,7,5,4340000,"500",11.4]
["Социальная политика",913,10,0,0,0,4752]
["Охрана семьи и детства",913,10,4,0,0,4752]
["Исполнение судебных актов по обеспечению жилыми помещениями детей-сирот и детей, оставшихся без попечения родителей, лиц из числа детей-сирот и детей, оставшихся без попечения родителей, вынесенных в соответствии с Законом Иркутской области от 22.06.2010 № 50-ОЗ «О дополнительных гарантиях прав детей-сирот и детей, оставшихся без попечения родителей, на жилое помещение в Иркутской области» и Законом Иркутской области от 29.06.2010 № 52-ОЗ «О наделении органов местного самоуправления областными государственными полномочиями по обеспечению детей-сирот и детей, оставшихся без попечения родителей, лиц из числа детей-сирот и детей, оставшихся без попечения родителей, жилыми помещениями по договорам социального найма в Иркутской области",913,10,4,6040000,0,4752]
["Бюджетные инвестиции",913,10,4,6040000,"003",4752]
["СРЕДСТВА МАССОВОЙ ИНФОРМАЦИИ",913,12,0,0,0,2000]
["Периодическая печать и издательства",913,12,2,0,0,2000]
["Периодические издания, учрежденные органами законодательной и исполнительной власти",913,12,2,4570000,0,2000]
["Государственная поддержка в сфере культуры, кинематографии и средств массовой информации",913,12,2,4578500,0,2000]
["Субсидии юридическим лицам",913,12,2,4578500,"006",2000]
["Дума ЧРМО",916,0,0,0,0,1350.16]
["ОБЩЕГОСУДАРСТВЕННЫЕ ВОПРОСЫ",916,1,0,0,0,1350.16]
["Функционирование законодательных (представительных) органов государственной власти и представительных органов муниципальных образований",916,1,3,0,0,1350.16]
["Руководство и управление в сфере установленных функций органов государственной власти субъектов Российской Федерации  и органов местного самоуправления",916,1,3,20000,0,1350.16]
["Центральный аппарат",916,1,3,20400,0,401.13400000000001]
["Выполнение функций органами местного самоуправления",916,1,3,20400,"500",401.13400000000001]
["Председатель представительного органа муниципального образования",916,1,3,21100,0,949.02599999999995]
["Выполнение функций органами местного самоуправления",916,1,3,21100,"500",949.02599999999995]
["Администрация ЧРМО",917,0,0,0,0,43515.650999999998]
["ОБЩЕГОСУДАРСТВЕННЫЕ ВОПРОСЫ",917,1,0,0,0,31897.188999999998]
["Функционирование высшего должностного лица субъекта Российской Федерации и муниципального образования",917,1,2,0,0,2412]
["Руководство и управление в сфере установленных функций органов государственной власти субъектов Российской Федерации  и органов местного самоуправления",917,1,2,20000,0,2412]
["Глава муниципального образования",917,1,2,20300,0,2412]
["Выполнение функций органами местного самоуправления",917,1,2,20300,"500",2412]
["Функционирование Правительства Российской Федерации, высших исполнительных органов государственной власти субъектов Российской Федерации, местных администраций",917,1,4,0,0,26064.188999999998]
["Руководство и управление в сфере установленных функций органов государственной власти субъектов Российской Федерации  и органов местного самоуправления",917,1,4,20000,0,26003.258999999998]
["Центральный аппарат",917,1,4,20400,0,26003.258999999998]
["Выполнение функций органами местного самоуправления",917,1,4,20400,"500",26003.258999999998]
["Региональные целевые программы",917,1,4,5220000,0,42.65]
["Долгосрочная целевая программа «Энергосбережение и повышение энергетической эффективности на территории Иркутской области на 2011-2015 годы и на период до 2020 года»",917,1,4,5225400,0,42.65]
["Выполнение функций органами местного самоуправления",917,1,4,5225400,"500",42.65]
["Целевые программы муниципальных образований",917,1,4,7950000,0,18.28]
["Долгосрочная целевая программа энергосбережения и повышения энергетической эффективности Черемховского районного муниципального образования на 2010-2015 годы",917,1,4,7951100,0,18.28]
["Мероприятия по повышению энергетической эффективности",917,1,4,7951100,"451",18.28]
["Резервные фонды",917,1,11,0,0,300]
["Резервные фонды",917,1,11,700000,0,300]
["Резервные фонды местных администраций",917,1,11,700500,0,300]
["Выполнение функций органами местного самоуправления",917,1,11,700500,"500",300]
["Другие общегосударственные вопросы",917,1,13,0,0,3121]
["Руководство и управление в сфере установленных функций органов государственной власти субъектов Российской Федерации  и органов местного самоуправления",917,1,13,20000,0,2785]
["Осуществление областных государственных полномочий по хранению, комплектованию, учету и использованию архивных документов, относящихся к государственной собственности Иркутской области",917,1,13,24000,0,1174]
["Выполнение функций органами местного самоуправления",917,1,13,24000,"500",1174]
["Осуществление областных государственных полномочий по определению персонального состава и обеспечению деятельности административных комиссий",917,1,13,24300,0,604.1]
["Выполнение функций органами местного самоуправления",917,1,13,24300,"500",604.1]
["Осуществление отдельных государственных полномочий в области производства и оборота этилового спирта, алкогольной и спиртосодержащей продукции",917,1,13,24400,0,402.8]
["Выполнение функций органами местного самоуправления",917,1,13,24400,"500",402.8]
["Осуществление отдельных областных государственных полномочий в области охраны труда",917,1,13,24500,0,604.1]
["Выполнение функций органами местного самоуправления",917,1,13,24500,"500",604.1]
["Реализация государственных функций, связанных с общегосударственным управлением",917,1,13,920000,0,181]
["Выполнение других обязательств государства",917,1,13,920300,0,181]
["Выполнение функций органами местного самоуправления",917,1,13,920300,"500",181]
["Целевые программы муниципальных образований",917,1,13,7950000,0,155]
["Долгосрочная целевая программа \"Улучшение условий и охраны труда в Черемховском районе на 2011-2013гг.\"",917,1,13,7951400,0,15]
["Выполнение функций органами местного самоуправления",917,1,13,7951400,"500",15]
["Комплексная программа \"Профилактика правонарушений в Черемховском районном муниципальном образовании на 2013-2016 годы\"",917,1,13,7952600,0,40]
["Выполнение функций органами местного самоуправления",917,1,13,7952600,"500",40]
["Долгосрочная целевая программа \"Поддержка молодых педагогов на территории Черемховского районного муниципального образования\" на 2012-2013 годы",917,1,13,7952700,0,100]
["Выполнение функций органами местного самоуправления",917,1,13,7952700,"500",100]
["НАЦИОНАЛЬНАЯ ЭКОНОМИКА",917,4,0,0,0,4131.51]
["Дорожное хозяйство(дорожные фонды)",917,4,9,0,0,4031.51]
["Региональные целевые программы",917,4,9,5220000,0,3829]
["Долгосрочная целевая программа \"Развитие автомобильных дорог общего пользования регионального или межмуниципального значения и местного значения в Иркутской области на 2011 - 2014 годы\"",917,4,9,5224700,0,3829]
["Выполнение функций органами местного самоуправления",917,4,9,5224700,"500",3829]
["Целевые программы муниципальных образований",917,4,9,7950000,0,202.51]
["Долгосрочная целевая программа \"Развитие автомобильных дорог Черемховского районного муниципального образования на 2013-2015 годы\"",917,4,9,7952300,0,202.51]
["Выполнение функций органами местного самоуправления",917,4,9,7952300,"500",202.51]
["Другие вопросы в области национальной экономики",917,4,12,0,0,100]
["Целевые программы муниципальных образований",917,4,12,7950000,0,100]
["Долгосрочная целевая программа \"Поддержка и развитие малого и среднего предпринимательства в Черемховском районе\" на 2013-2014 годы",917,4,12,7952200,0,100]
["Выполнение функций органами местного самоуправления",917,4,12,7952200,"500",100]
["ЖИЛИЩНО-КОММУНАЛЬНОЕ ХОЗЯЙСТВО",917,5,0,0,0,1299.817]
["Жилищное хозяйство",917,5,1,0,0,1299.817]
["Поддержка жилищного хозяйства",917,5,1,3500000,0,1299.817]
["Мероприятия в области жилищного хозяйства",917,5,1,3500300,0,1299.817]
["Выполнение функций органами местного самоуправления",917,5,1,3500300,"500",1299.817]
["ОБРАЗОВАНИЕ",917,7,0,0,0,120]
["Профессиональная подготовка, переподготовка и повышение квалификации",917,7,5,0,0,24]
["Мероприятия по переподготовке и повышению квалификации",917,7,5,4340000,0,24]
["Выполнение функций органами местного самоуправления",917,7,5,4340000,"500",24]
["Молодежная политика и оздоровление детей",917,7,7,0,0,96]
["Организационно-воспитательная работа с молодежью",917,7,7,4310000,0,46]
["Проведение мероприятий для детей и молодежи",917,7,7,4310100,0,46]
["Проведение мероприятия для детей и молодежи",917,7,7,4310100,"447",46]
[" целевые программы",917,7,7,7950000,0,50]
["Долгосрочная целевая программа \"Комплексные меры профилактики злоупотребления наркотическими средствами и психотропными веществами в Черемховском районном муниципальном образовании на 2011-2013 гг.\"",917,7,7,7951300,0,10]
["Выполнение функций органами местного самоуправления",917,7,7,7951300,"500",10]
["Долгосрочная целевая программа \"Молодежная политика в Черемховском районном муниципальном образовании\" на 2013-2015 гг.",917,7,7,7952500,0,40]
["Проведение мероприятия для детей и молодежи",917,7,7,7952500,"447",40]
["ЗДРАВООХРАНЕНИЕ",917,9,0,0,0,200]
["Другие вопросы в области здравоохранения",917,9,9,0,0,200]
["Целевые программы муниципальных образований",917,9,9,7950000,0,200]
["Ведомственная целевая программа \"Обеспечение учреждений здравоохранения Черемховского районного муниципального образования квалифицированными медицинскими кадрами\" на 2013 год",917,9,9,7952800,0,200]
["Выполнение функций органами местного самоуправления",917,9,9,7952800,"500",200]
["Социальная политика",917,10,0,0,0,5684.7349999999997]
["Пенсионное обеспечение",917,10,1,0,0,2980.0149999999999]
["Доплаты к пенсиям, дополнительное пенсионное обеспечение ",917,10,1,4910000,0,2980.0149999999999]
["Доплаты к пенсиям государственных служащих субъектов Российской Федерации и муниципальных служащих \n",917,10,1,4910100,0,2980.0149999999999]
["Социальные выплаты",917,10,1,4910100,"005",2980.0149999999999]
["Социальное обеспечение населения",917,10,3,0,0,1448.92]
["Реализация государственных функций в области социальной политики",917,10,3,5140000,0,854.05600000000004]
["Мероприятия в области социальной политики",917,10,3,5140100,0,854.05600000000004]
["Социальные выплаты",917,10,3,5140100,"005",854.05600000000004]
["Региональные целевые программы",917,10,3,5220000,0,234.864]
["Областная государственная социальная программа \"Молодым семьям - доступное жилье\" на 2005-2019 годы",917,10,3,5222200,0,234.864]
["Социальные выплаты",917,10,3,5222200,"005",234.864]
["Целевые программы муниципальных образований",917,10,3,7950000,0,360]
["Долгосрочная целевая программа \"Молодым семьям-доступное жилье\" на 2012-2019 гг.",917,10,3,7952100,0,360]
["Социальные выплаты",917,10,3,7952100,"005",360]
["Другие вопросы в области социальной политики",917,10,6,0,0,1255.8]
["Руководство и управление в сфере установленных функций органов государственной власти субъектов Российской Федерации  и органов местного самоуправления",917,10,6,20000,0,1155.8]
["Осуществление областных государственных полномочий по определению персонального состава и обеспечению деятельности районных (городских), районных в городах комиссий по делам несовершеннолетних и защите их прав",917,10,6,24100,0,1155.8]
["Выполнение функций органами местного самоуправления",917,10,6,24100,"500",1155.8]
["Целевые программы муниципальных образований",917,10,6,7950000,0,100]
["Муниципальная целевая программа \"Поддержка, проводимых мероприятий, посвященных Дням воинской славы, памятным датам России и работе с ветеранами и инвалидами в черемховском районе на 2013-2015 гг.\"",917,10,6,7952400,0,100]
["Выполнение функций органами местного самоуправления",917,10,6,7952400,"500",100]
["ФИЗИЧЕСКАЯ КУЛЬТУРА И СПОРТ",917,11,0,0,0,182.4]
["Физическая культура",917,11,1,0,0,182.4]
["Физкультурно-оздоровительная работа и спортивные мероприятия",917,11,1,5120000,0,82.4]
["Мероприятия в области спорта, физической культуры и туризма",917,11,1,5129700,0,82.4]
["Выполнение функций органами местного самоуправления",917,11,1,5129700,"500",82.4]
["Целевые программы муниципальных образований",917,11,1,7950000,0,100]
["Долгосрочная целевая программа \"Развитие физической культуры, спорта и туризма в Черемховском районном муниципальном образовании на 2011-2013 гг.\"",917,11,1,7951200,0,100]
["Выполнение функций органами местного самоуправления",917,11,1,7951200,"500",100]
["Управление жилищно-коммунального хозяйства, строительства, транспорта, связи и экологии АЧРМО",918,0,0,0,0,18824.411]
["ОБЩЕГОСУДАРСТВЕННЫЕ ВОПРОСЫ",918,1,0,0,0,748.56399999999996]
["Другие общегосударственные вопросы",918,1,13,0,0,748.56399999999996]
["Реализация государственных функций, связанных с общегосударственным управлением",918,1,13,920000,0,748.56399999999996]
["Выполнение других обязательств государства",918,1,13,920300,0,748.56399999999996]
["Выполнение функций органами местного самоуправления",918,1,13,920300,"500",748.56399999999996]
["НАЦИОНАЛЬНАЯ ЭКОНОМИКА",918,4,0,0,0,30.2]
["Другие вопросы в области национальной экономики",918,4,12,0,0,30.2]
["Мероприятия в области строительства, архитектуры и градостроительства",918,4,12,3380000,0,30.2]
["Подготовка проектов правил землепользования и застройки муниципальных образований Черемховского районного муниципального образования",918,4,12,3380200,0,30.2]
["Выполнение функций органами местного самоуправления",918,4,12,3380200,"500",30.2]
["ЖИЛИЩНО-КОММУНАЛЬНОЕ ХОЗЯЙСТВО",918,5,0,0,0,5295.9470000000001]
["Другие вопросы в области жилищно-коммунального хозяйства",918,5,5,0,0,5295.9470000000001]
["Руководство и управление в сфере установленных функций органов государственной власти субъектов Российской Федерации  и органов местного самоуправления",918,5,5,20000,0,5295.9470000000001]
["Центральный аппарат",918,5,5,20400,0,5295.9470000000001]
["Выполнение функций органами местного самоуправления",918,5,5,20400,"500",5295.9470000000001]
["ОХРАНА ОКРУЖАЮЩЕЙ СРЕДЫ",918,6,0,0,0,5150]
["Другие вопросы в области охраны окружающей среды",918,6,5,0,0,5150]
["Состояние окружающей среды и природопользования",918,6,5,4100000,0,150]
["Природоохранные мероприятия",918,6,5,4100100,0,150]
["Выполнение функций органами местного самоуправления",918,6,5,4100100,"500",150]
["Региональные целевые программы",918,6,5,5220000,0,5000]
["Долгосрочная целевая программа Иркутской области «Защита окружающей среды в Иркутской области на 2011-2015 годы»",918,6,5,5222500,0,5000]
["Подпрограмма «Отходы производства и потребления в Иркутской области на 2011-2015 годы»",918,6,5,5222502,0,5000]
["Выполнение функций органами местного самоуправления",918,6,5,5222502,"500",5000]
["ОБРАЗОВАНИЕ",918,7,0,0,0,10]
["Профессиональная подготовка, переподготовка и повышение квалификации",918,7,5,0,0,10]
["Мероприятия по переподготовке и повышению квалификации",918,7,5,4340000,0,10]
["Выполнение функций органами местного самоуправления",918,7,5,4340000,"500",10]
["Социальная политика",918,10,0,0,0,7589.7]
["Социальное обеспечение населения",918,10,3,0,0,7589.7]
["Руководство и управление в сфере установленных функций органов государственной власти субъектов Российской Федерации  и органов местного самоуправления",918,10,3,20000,0,7589.7]
["Осуществление областных государственных полномочий по предоставлению гражданам субсидий на оплату жилых помещений и коммунальных услуг",918,10,3,24700,0,7589.7]
["Содержание и обеспечение деятельности муниципальных служащих, осуществляющих областные государственные полномочия по предоставлению гражданам субсидий на оплату жилых помещений и коммунальных услуг",918,10,3,24701,0,827.4]
["Выполнение функций органами местного самоуправления",918,10,3,24701,"500",827.4]
["Предоставление гражданам субсидий на оплату жилых помещений и коммунальных услуг",918,10,3,24702,0,6762.3]
["Социальные выплаты",918,10,3,24702,"005",6762.3]
["Контрольно-счетная палата ЧРМО",923,0,0,0,0,2678.89]
["ОБЩЕГОСУДАРСТВЕННЫЕ ВОПРОСЫ",923,1,0,0,0,2676.89]
["Обеспечение деятельности финансовых, налоговых и таможенных органов и органов финансового (финансово-бюджетного) надзора",923,1,6,0,0,2676.89]
["Руководство и управление в сфере установленных функций органов государственной власти субъектов Российской Федерации  и органов местного самоуправления",923,1,6,20000,0,2676.89]
["Центральный аппарат",923,1,6,20400,0,1561.6189999999999]
["Выполнение функций органами местного самоуправления",923,1,6,20400,"500",1561.6189999999999]
["Руководитель контрольно-счетной палаты муниципального образования и его заместители",923,1,6,22500,0,1115.271]
["Выполнение функций органами местного самоуправления",923,1,6,22500,"500",1115.271]
["ОБРАЗОВАНИЕ",923,7,0,0,0,2]
["Профессиональная подготовка, переподготовка и повышение квалификации",923,7,5,0,0,2]
["Мероприятия по переподготовке и повышению квалификации",923,7,5,4340000,0,2]
["Выполнение функций органами местного самоуправления",923,7,5,4340000,"500",2]
["ИТОГО",{"$nulls":5},626506.91399999999]
[]
[]
[]
[]
["И.о. начальника финансового управления ",{"$nulls":5},"С.М. Татина"]

{"sheet":"прил9","index":7,"n_rows":396,"n_cols":8,"rows_kept":396,"cut":false,"hidden":true,"merged":[[395,6,395,7],[14,0,14,7],[17,0,18,0],[17,1,17,5],[17,6,17,7],[393,0,393,5]]}
{"$rows_empty":14}
["Распределение  бюджетных ассигнований по разделам, подразделам, целевым статьям и видам расходов классификации расходов бюджетов в ведомственной структуре расходов бюджета Черемховского районного муниципального образования на плановый период 2014 и 2015 годов"]
[]
[]
["Наименование показателя","Код",{"$nulls":4},"Сумма, тыс. руб."]
[null,"ГРБС","раздела","подраздела","целевой статьи","вида расходов",2014,2015]
[1,2,3,4,5,6,7,8]
["Отдел по культуре и библиотечному обслуживанию АЧРМО",904,0,0,0,0,17104.7,16855.8]
["ОБРАЗОВАНИЕ",904,7,0,0,0,3985.3,4112.7]
["Общее образование",904,7,2,0,0,3958.3,4085.7]
["Учреждения по внешкольной работе с детьми",904,7,2,4230000,0,3851.3,4011.9]
["Обеспечение деятельности подведомственных учреждений",904,7,2,4239900,0,3851.3,4011.9]
["Выполнение функций казенными учреждениями",904,7,2,4239900,"001",3851.3,4011.9]
["Целевые программы муниципальных образований",904,7,2,7950000,0,107,73.8]
["Долгосрочная целевая программа Черемховского районного муниципального образования \"Повышение эффективности бюджетных расходов Черемховского районного муниципального образования на 2012-2013 годы\"",904,7,2,7950200,0,0,0]
["Выполнение функций казенными учреждениями",904,7,2,7950200,"001",0,0]
["Долгосрочная целевая программа \"Развитие культуры в Черемховском районном муниципальном образовании на период 2012-2016 гг.\"",904,7,2,7952000,0,107,73.8]
["Мероприятия по поддержке и развитию культуры, искусства, кинематографии",904,7,2,7952000,"023",107,73.8]
["Профессиональная подготовка, переподготовка и повышение квалификации",904,7,5,0,0,27,27]
["Мероприятия по переподготовке и повышению квалификации",904,7,5,4340000,0,27,27]
["Выполнение функций казенными учреждениями",904,7,5,4340000,"001",27,27]
["КУЛЬТУРА И КИНЕМАТОГРАФИЯ",904,8,0,0,0,13119.4,12743.1]
["Культура",904,8,1,0,0,12183.5,11762]
["Учреждения культуры и мероприятия в сфере культуры и кинематографии",904,8,1,4400000,0,3856.1,4010.2]
["Комплектование книжных фондов библиотек муниципальных образований и государственных библиотек городов Москвы и Санкт-Петербурга",904,8,1,4400200,0,466.3,466.3]
["Комплектование книжных фондов библиотек муниципальных образований и государственных библиотек городов Москвы и Санкт-Петербурга за счет средств федерального бюджета",904,8,1,4400201,0,303.60000000000002,303.60000000000002]
["Выполнение функций казенными учреждениями",904,8,1,4400201,"001",303.60000000000002,303.60000000000002]
["Комплектование книжных фондов библиотек муниципальных образований и государственных библиотек городов Москвы и Санкт-Петербурга за счет областного бюджета",904,8,1,4400202,0,162.69999999999999,162.69999999999999]
["Выполнение функций казенными учреждениями",904,8,1,4400202,"001",162.69999999999999,162.69999999999999]
["Обеспечение деятельности подведомственных учреждений",904,8,1,4409900,0,3389.8,3543.9]
["Выполнение функций казенными учреждениями",904,8,1,4409900,"001",3389.8,3543.9]
["Музеи и постоянные выставки",904,8,1,4410000,0,899.1,935.8]
["Обеспечение деятельности подведомственных учреждений",904,8,1,4419900,0,899.1,935.8]
["Выполнение функций казенными учреждениями",904,8,1,4419900,"001",899.1,935.8]
["Библиотеки",904,8,1,4420000,0,5424.3,5676.8]
["Обеспечение деятельности подведомственных учреждений",904,8,1,4429900,0,5424.3,5676.8]
["Выполнение функций казенными учреждениями",904,8,1,4429900,"001",5424.3,5676.8]
["Региональные целевые программы",904,8,1,5220000,0,1000,0]
["Долгосрочная целевая программа Иркутской области «100 модельных домов культуры Приангарью» на 2011-2013 годы",904,8,1,5225500,0,1000,0]
["Выполнение функций казенными учреждениями",904,8,1,5225500,"001",1000,0]
["Целевые программы муниципальных образований",904,8,1,7950000,0,1004,1139.2]
["Долгосрочная целевая программа Черемховского районного муниципального образования \"Повышение эффективности бюджетных расходов Черемховского районного муниципального образования на 2012-2013 годы\"",904,8,1,7950200,0,0,0]
["Выполнение функций казенными учреждениями",904,8,1,7950200,"001",0,0]
["Долгосрочная целевая программа энергосбережения и повышения энергетической эффективности Черемховского районного муниципального образования на 2010-2015 годы",904,8,1,7951100,0,100,200]
["Мероприятия по повышению энергетической эффективности",904,8,1,7951100,"451",100,200]
["Долгосрочная целевая программа \"Развитие культуры в Черемховском районном муниципальном образовании на период 2012-2016 гг.\"",904,8,1,7952000,0,904,939.2]
["Мероприятия по поддержке и развитию культуры, искусства, кинематографии",904,8,1,7952000,"023",904,939.2]
["Другие вопросы в области культуры, кинематографии",904,8,4,0,0,935.9,981.1]
["Руководство и управление в сфере установленных функций органов государственной власти субъектов Российской Федерации  и органов местного самоуправления",904,8,4,20000,0,935.9,981.1]
["Центральный аппарат",904,8,4,20400,0,935.9,981.1]
["Выполнение функций органами местного самоуправления",904,8,4,20400,"500",935.9,981.1]
["Отдел образования АЧРМО",907,0,0,0,0,351260.8,348866.2]
["ОБРАЗОВАНИЕ",907,7,0,0,0,344899,342504.4]
["Дошкольное образование",907,7,1,0,0,64603.4,62906.1]
["Детские дошкольные учреждения",907,7,1,4200000,0,61308.4,61441.1]
["Обеспечение деятельности подведомственных учреждений",907,7,1,4209900,0,61308.4,61441.1]
["Выполнение функций казенными учреждениями",907,7,1,4209900,"001",61308.4,61441.1]
["Региональные целевые программы",907,7,1,5220000,0,0,0]
["Областная государственная целевая программа поддержки и развития учреждений дошкольного образования в Иркутской области на 2009-2014 годы",907,7,1,5223700,0,0,0]
["Выполнение функций казенными учреждениями",907,7,1,5223700,"001",0,0]
["Долгосрочная целевая программа «Энергосбережение и повышение энергетической эффективности на территории Иркутской области на 2011-2015 годы и на период до 2020 года»",907,7,1,5225400,0,0,0]
["Выполнение функций казенными учреждениями",907,7,1,5225400,"001",0,0]
["Выплата заработной платы с начислениями на нее педагогическим работникам муниципальных дошкольных образовательных учреждений и муниципальных учреждений дополнительного образования",907,7,1,5890000,0,1465,1465]
["Выполнение функций казенными учреждениями",907,7,1,5890000,"001",1465,1465]
["Целевые программы муниципальных образований",907,7,1,7950000,0,1830,0]
["Долгосрочная целевая программа Черемховского районного муниципального образования \"Повышение эффективности бюджетных расходов Черемховского районного муниципального образования на 2012-2013 годы\"",907,7,1,7950200,0,0,0]
["Выполнение функций казенными учреждениями",907,7,1,7950200,"001",0,0]
["Долгосрочная целевая программа \"Безопасность образовательных учреждений на 2010-2014 гг.\"",907,7,1,7951000,0,830,0]
["Мероприятия по обеспечению пожарной безопасности",907,7,1,7951000,"450",830,0]
["Долгосрочная целевая программа энергосбережения и повышения энергетической эффективности Черемховского районного муниципального образования на 2010-2015 годы",907,7,1,7951100,0,600,0]
["Мероприятия по повышению энергетической эффективности",907,7,1,7951100,"451",600,0]
["Долгосрочная целевая программа \"Развитие дошкольного образования на 2011-2014 гг.\"",907,7,1,7951700,0,0,0]
["Мероприятия в сфере образования",907,7,1,7951700,"022",0,0]
["Долгосрочная целевая программа \"Совершенствование дошкольного образования Черемховского района на 2011-2014 гг.\"",907,7,1,7951800,0,400,0]
["Мероприятия в сфере образования",907,7,1,7951800,"022",400,0]
["Общее образование",907,7,2,0,0,272963,272175.90000000002]
["Руководство и управление в сфере установленных функций органов государственной власти субъектов Российской Федерации  и органов местного самоуправления",907,7,2,20000,0,238581.5,238581.5]
["Обеспечение государственных гарантий прав граждан на получение общедоступного и бесплатного дошкольного, начального общего, основного общего, среднего (полного) общего образования, а также дополнительного образования в общеобразовательных учреждениях",907,7,2,25000,0,238581.5,238581.5]
["Выполнение функций казенными учреждениями",907,7,2,25000,"001",238581.5,238581.5]
["Школы - детские сады, школы начальные, неполные средние и средние",907,7,2,4210000,0,15782.6,15808.4]
["Обеспечение деятельности подведомственных учреждений",907,7,2,4219900,0,15782.6,15808.4]
["Выполнение функций казенными учреждениями",907,7,2,4219900,"001",15782.6,15808.4]
["Учреждения по внешкольной работе с детьми",907,7,2,4230000,0,16488.8,17245.900000000001]
["Обеспечение деятельности подведомственных учреждений",907,7,2,4239900,0,16488.8,17245.900000000001]
["Выполнение функций казенными учреждениями",907,7,2,4239900,"001",16488.8,17245.900000000001]
["Мероприятия в области образования",907,7,2,4360000,0,0,0]
["Модернизация региональных систем образования",907,7,2,4362100,0,0,0]
["Модернизация региональных систем образования за счет средств федерального бюджета",907,7,2,4362101,0,0,0]
["Выполнение функций казенными учреждениями",907,7,2,4362101,"001",0,0]
["Иные безвозмездные и безвозвратные перечисления",907,7,2,5200000,0,0,0]
["Ежемесячное денежное вознаграждение за классное руководство",907,7,2,5200900,0,0,0]
["Выполнение функций казенными учреждениями",907,7,2,5200900,"001",0,0]
["Региональные целевые программы",907,7,2,5220000,0,0,0]
["Долгосрочная целевая программа «Модернизация объектов коммунальной инфраструктуры Иркутской области на 2011-2013 годы»",907,7,2,5222000,0,0,0]
["Подпрограмма «Подготовка объектов коммунальной инфраструктуры Иркутской области к отопительному сезону в 2011-2013 годах»",907,7,2,5222001,0,0,0]
["Выполнение функций казенными учреждениями",907,7,2,5222001,"001",0,0]
["Долгосрочная целевая программа «Энергосбережение и повышение энергетической эффективности на территории Иркутской области на 2011-2015 годы и на период до 2020 года»",907,7,2,5225400,0,0,0]
["Выполнение функций казенными учреждениями",907,7,2,5225400,"001",0,0]
["Выплата заработной платы с начислениями на нее педагогическим работникам муниципальных дошкольных образовательных учреждений и муниципальных учреждений дополнительного образования",907,7,2,5890000,0,540.1,540.1]
["Выполнение функций казенными учреждениями",907,7,2,5890000,"001",540.1,540.1]
["Целевые программы муниципальных образований",907,7,2,7950000,0,1570,0]
["Долгосрочная целевая программа Черемховского районного муниципального образования \"Повышение эффективности бюджетных расходов Черемховского районного муниципального образования на 2012-2013 годы\"",907,7,2,7950200,0,0,0]
["Выполнение функций казенными учреждениями",907,7,2,7950200,"001",0,0]
["Долгосрочная целевая программа \"Безопасность образовательных учреждений на 2010-2014 гг.\"",907,7,2,7951000,0,970,0]
["Мероприятия по обеспечению пожарной безопасности",907,7,2,7951000,"450",970,0]
["Долгосрочная целевая программа энергосбережения и повышения энергетической эффективности Черемховского районного муниципального образования на 2010-2015 годы",907,7,2,7951100,0,0,0]
["Мероприятия по повышению энергетической эффективности",907,7,2,7951100,"451",0,0]
["Долгосрочная целевая программа \"Ветхие школы Черемховского района\" на 2011-2013 гг.",907,7,2,7951500,0,0,0]
["Мероприятия в сфере образования",907,7,2,7951500,"022",0,0]
["Долгосрочная целевая программа \"Совершенствование организации питания в образовательных учреждениях Черемховского района на 2011-2013гг.\"",907,7,2,7951600,0,600,0]
["Мероприятия в сфере образования",907,7,2,7951600,"022",600,0]
["Профессиональная подготовка, переподготовка и повышение квалификации",907,7,5,0,0,100,100]
["Мероприятия по переподготовке и повышению квалификации",907,7,5,4340000,0,100,100]
["Выполнение функций казенными учреждениями",907,7,5,4340000,"001",100,100]
["Молодежная политика и оздоровление детей",907,7,7,0,0,126,126]
["Мероприятия по проведению оздоровительной кампании детей",907,7,7,4320000,0,126,126]
["Оплата стоимости набора продуктов питания для детей в организованных органами местного самоуправления оздоровительных лагерях с дневным пребыванием детей за счет средств областного бюджета",907,7,7,4320300,0,126,126]
["Оплата стоимости набора продуктов питания для детей в организованных органами местного самоуправления оздоровительных лагерях с дневным пребыванием детей за счет средств местного бюджета ",907,7,7,4320302,0,126,126]
["Выполнение функций казенными учреждениями",907,7,7,4320302,"001",126,126]
["Региональные целевые программы",907,7,7,5220000,0,0,0]
["Долгосрочная целевая программа Иркутской области \"Организация и обеспечение отдыха и оздоровления детей в Иркутской области на 2012-2014гг.\"",907,7,7,5226200,0,0,0]
["Выполнение функций казенными учреждениями",907,7,7,5226200,"001",0,0]
["Другие вопросы в области образования",907,7,9,0,0,7106.6,7196.4]
["Руководство и управление в сфере установленных функций органов государственной власти субъектов Российской Федерации  и органов местного самоуправления",907,7,9,20000,0,2106.6,2196.4]
["Центральный аппарат",907,7,9,20400,0,2106.6,2196.4]
["Выполнение функций органами местного самоуправления",907,7,9,20400,"500",2106.6,2196.4]
["Учебно-методические кабинеты, централизованные бухгалтерии, группы хозяйственного обслуживания, учебные фильмотеки, межшкольные учебно-производственные комбинаты, логопедические пункты",907,7,9,4520000,0,5000,5000]
["Субсидии бюджетным учреждениям на финансовое обеспечение муниципального задания на оказание муниципальных услуг (выполнение работ)",907,7,9,4520000,"611",5000,5000]
["Социальная политика",907,10,0,0,0,6361.8,6361.8]
["Социальное обеспечение населения",907,10,3,0,0,6361.8,6361.8]
["Руководство и управление в сфере установленных функций органов государственной власти субъектов Российской Федерации  и органов местного самоуправления",907,10,3,20000,0,6361.8,6361.8]
["Осуществление отдельных областных государственных полномочий по предоставлению мер социальной поддержки многодетным и малоимущим семьям",907,10,3,24600,0,6361.8,6361.8]
["Социальные выплаты",907,10,3,24600,"005",6361.8,6361.8]
["Финансовое управление администрации ЧРМО",910,0,0,0,0,20193.3,21036.799999999999]
["ОБЩЕГОСУДАРСТВЕННЫЕ ВОПРОСЫ",910,1,0,0,0,16732.099999999999,17473.3]
["Обеспечение деятельности финансовых, налоговых и таможенных органов и органов финансового (финансово-бюджетного) надзора",910,1,6,0,0,5642.7,5882.2]
["Руководство и управление в сфере установленных функций органов государственной власти субъектов Российской Федерации  и органов местного самоуправления",910,1,6,20000,0,5642.7,5882.2]
["Центральный аппарат",910,1,6,20400,0,5642.7,5882.2]
["Выполнение функций органами местного самоуправления",910,1,6,20400,"500",5642.7,5882.2]
["Целевые программы муниципальных образований",910,1,6,7950000,0,0,0]
["Долгосрочная целевая программа Черемховского районного муниципального образования \"Повышение эффективности бюджетных расходов Черемховского районного муниципального образования на 2012-2013 годы\"",910,1,6,7950200,0,0,0]
["Выполнение функций органами местного самоуправления",910,1,6,7950200,"500",0,0]
["Другие общегосударственные вопросы",910,1,13,0,0,11089.4,11591.1]
["Руководство и управление в сфере установленных функций органов государственной власти субъектов Российской Федерации  и органов местного самоуправления",910,1,13,20000,0,11089.4,11591.1]
["Обеспечение деятельности подведомственных учреждений",910,1,13,29900,0,11089.4,11591.1]
["Выполнение функций казенными учреждениями",910,1,13,29900,"001",11089.4,11591.1]
["ЖИЛИЩНО-КОММУНАЛЬНОЕ ХОЗЯЙСТВО",910,5,0,0,0,0,0]
["Коммунальное хозяйство",910,5,2,0,0,0,0]
["Региональные целевые программы",910,5,2,5220000,0,0,0]
["Долгосрочная целевая программа «Энергосбережение и повышение энергетической эффективности на территории Иркутской области на 2011-2015 годы и на период до 2020 года»",910,5,2,5225400,0,0,0]
["Иные межбюджетные трансферты",910,5,2,5225400,"017",0,0]
["ОБРАЗОВАНИЕ",910,7,0,0,0,0,0]
["Профессиональная подготовка, переподготовка и повышение квалификации",910,7,5,0,0,0,0]
["Мероприятия по переподготовке и повышению квалификации",910,7,5,4340000,0,0,0]
["Выполнение функций органами местного самоуправления",910,7,5,4340000,"500",0,0]
["ОБСЛУЖИВАНИЕ ГОСУДАРСТВЕННОГО И МУНИЦИПАЛЬНОГО ДОЛГА",910,13,0,0,0,61.2,63.5]
["Обслуживание внутреннего государственного и муниципального долга",910,13,1,0,0,61.2,63.5]
["Процентные платежи по долговым обязательствам",910,13,1,650000,0,61.2,63.5]
["Процентные платежи по муниципальному долгу",910,13,1,650300,0,61.2,63.5]
["Прочие расходы",910,13,1,650300,"013",61.2,63.5]
["МЕЖБЮДЖЕТНЫЕ ТРАНСФЕРТЫ ОБЩЕГО ХАРАКТЕРА БЮДЖЕТАМ СУБЪЕКТОВ РОССИЙСКОЙ ФЕДЕРАЦИИ И МУНИЦИПАЛЬНЫХ ОБРАЗОВАНИЙ ",910,14,0,0,0,3400,3500]
["Дотации на выравнивание бюджетной обеспеченности субъектов Российской Федерации и муниципальных образований",910,14,1,0,0,3400,3500]
["Выравнивание бюджетной обеспечености",910,14,1,5160000,0,3400,3500]
["Выравнивание бюджетной обеспеченности",910,14,1,5160100,0,3400,3500]
["Выравнивание бюджетной обеспеченности поселений из районного фонда финансовой поддержки",910,14,1,5160130,0,3400,3500]
["Фонд финансовой поддержки",910,14,1,5160130,"008",3400,3500]
["Прочие межбюджетные трансферты общего характера бюджетам субъектов Российской Федерации и муниципальных образований ",910,14,3,0,0,0,0]
["Целевые программы муниципальных образований",910,14,3,7950000,0,0,0]
["Долгосрочная целевая программа Черемховского районного муниципального образования \"Повышение эффективности бюджетных расходов Черемховского районного муниципального образования на 2012-2013 годы\"",910,14,3,7950200,0,0,0]
["Иные межбюджетные трансферты",910,14,3,7950200,"017",0,0]
["Комитет по управлению муниципальным имуществом ЧРМО",913,0,0,0,0,12669.7,11759]
["ОБЩЕГОСУДАРСТВЕННЫЕ ВОПРОСЫ",913,1,0,0,0,10169.700000000001,9759]
["Другие общегосударственные вопросы",913,1,13,0,0,10169.700000000001,9759]
["Руководство и управление в сфере установленных функций органов государственной власти субъектов Российской Федерации  и органов местного самоуправления",913,1,13,20000,0,3162.4,3251.7]
["Центральный аппарат",913,1,13,20400,0,2262.4,2351.6999999999998]
["Выполнение функций органами местного самоуправления",913,1,13,20400,"500",2262.4,2351.6999999999998]
["Обеспечение деятельности подведомственных учреждений",913,1,13,29900,0,900,900]
["Субсидии бюджетным учреждениям на финансовое обеспечение муниципального задания на оказание муниципальных услуг (выполнение работ)",913,1,13,29900,"611",900,900]
["Реализация государственных функций, связанных с общегосударственным управлением",913,1,13,920000,0,7.3,7.3]
["Выполнение других обязательств государства",913,1,13,920300,0,7.3,7.3]
["Выполнение функций органами местного самоуправления",913,1,13,920300,"500",7.3,7.3]
["Учреждения по обеспечению хозяйственного обслуживания",913,1,13,930000,0,6500,6500]
["Субсидии бюджетным учреждениям на финансовое обеспечение муниципального задания на оказание муниципальных услуг (выполнение работ)",913,1,13,930000,"611",6500,6500]
["Целевые программы муниципальных образований",913,1,13,7950000,0,500,0]
["Долгосрочная целевая программа \"Инвентаризация муниципальных объектов недвижимости Черемховского районного муниципального образования на 2012-2014 годы\"",913,1,13,7951900,0,500,0]
["Выполнение функций органами местного самоуправления",913,1,13,7951900,"500",500,0]
["НАЦИОНАЛЬНАЯ ЭКОНОМИКА",913,4,0,0,0,500,0]
["Дорожное хозяйство(дорожные фонды)",913,4,9,0,0,0,0]
["Целевые программы муниципальных образований",913,4,9,7950000,0,0,0]
["Долгосрочная целевая программа \"Инвентаризация муниципальных объектов недвижимости Черемховского районного муниципального образования на 2012-2014 годы\"",913,4,9,7951900,0,0,0]
["Выполнение функций органами местного самоуправления",913,4,9,7951900,"500",0,0]
["Другие вопросы в области национальной экономики",913,4,12,0,0,500,0]
["Целевые программы муниципальных образований",913,4,12,7950000,0,500,0]
["Долгосрочная целевая программа \"Инвентаризация муниципальных объектов недвижимости Черемховского районного муниципального образования на 2012-2014 годы\"",913,4,12,7951900,0,500,0]
["Выполнение функций органами местного самоуправления",913,4,12,7951900,"500",500,0]
["ЖИЛИЩНО-КОММУНАЛЬНОЕ ХОЗЯЙСТВО",913,5,0,0,0,0,0]
["Жилищное хозяйство",913,5,1,0,0,0,0]
["Поддержка жилищного хозяйства",913,5,1,3500000,0,0,0]
["Мероприятия в области жилищного хозяйства",913,5,1,3500300,0,0,0]
["Выполнение функций органами местного самоуправления",913,5,1,3500300,"500",0,0]
["ОБРАЗОВАНИЕ",913,7,0,0,0,0,0]
["Профессиональная подготовка, переподготовка и повышение квалификации",913,7,5,0,0,0,0]
["Мероприятия по переподготовке и повышению квалификации",913,7,5,4340000,0,0,0]
["Выполнение функций органами местного самоуправления",913,7,5,4340000,"500",0,0]
["Социальная политика",913,10,0,0,0,0,0]
["Охрана семьи и детства",913,10,4,0,0,0,0]
["Исполнение судебных актов по обеспечению жилыми помещениями детей-сирот и детей, оставшихся без попечения родителей, лиц из числа детей-сирот и детей, оставшихся без попечения родителей, вынесенных в соответствии с Законом Иркутской области от 22.06.2010 № 50-ОЗ «О дополнительных гарантиях прав детей-сирот и детей, оставшихся без попечения родителей, на жилое помещение в Иркутской области» и Законом Иркутской области от 29.06.2010 № 52-ОЗ «О наделении органов местного самоуправления областными государственными полномочиями по обеспечению детей-сирот и детей, оставшихся без попечения родителей, лиц из числа детей-сирот и детей, оставшихся без попечения родителей, жилыми помещениями по договорам социального найма в Иркутской области",913,10,4,6040000,0,0,0]
["Бюджетные инвестиции",913,10,4,6040000,"003",0,0]
["СРЕДСТВА МАССОВОЙ ИНФОРМАЦИИ",913,12,0,0,0,2000,2000]
["Периодическая печать и издательства",913,12,2,0,0,2000,2000]
["Периодические издания, учрежденные органами законодательной и исполнительной власти",913,12,2,4570000,0,2000,2000]
["Государственная поддержка в сфере культуры, кинематографии и средств массовой информации",913,12,2,4578500,0,2000,2000]
["Субсидии юридическим лицам",913,12,2,4578500,"006",2000,2000]
["Дума ЧРМО",916,0,0,0,0,940.5,986.3]
["ОБЩЕГОСУДАРСТВЕННЫЕ ВОПРОСЫ",916,1,0,0,0,940.5,986.3]
["Функционирование законодательных (представительных) органов государственной власти и представительных органов муниципальных образований",916,1,3,0,0,940.5,986.3]
["Руководство и управление в сфере установленных функций органов государственной власти субъектов Российской Федерации  и органов местного самоуправления",916,1,3,20000,0,940.5,986.3]
["Центральный аппарат",916,1,3,20400,0,289,302]
["Выполнение функций органами местного самоуправления",916,1,3,20400,"500",289,302]
["Председатель представительного органа муниципального образования",916,1,3,21100,0,651.5,684.3]
["Выполнение функций органами местного самоуправления",916,1,3,21100,"500",651.5,684.3]
["Администрация ЧРМО",917,0,0,0,0,36164.1,33915]
["ОБЩЕГОСУДАРСТВЕННЫЕ ВОПРОСЫ",917,1,0,0,0,27482,25975.9]
["Функционирование высшего должностного лица субъекта Российской Федерации и муниципального образования",917,1,2,0,0,1403,1472.1]
["Руководство и управление в сфере установленных функций органов государственной власти субъектов Российской Федерации  и органов местного самоуправления",917,1,2,20000,0,1403,1472.1]
["Глава муниципального образования",917,1,2,20300,0,1403,1472.1]
["Выполнение функций органами местного самоуправления",917,1,2,20300,"500",1403,1472.1]
["Функционирование Правительства Российской Федерации, высших исполнительных органов государственной власти субъектов Российской Федерации, местных администраций",917,1,4,0,0,20490.5,21389.4]
["Руководство и управление в сфере установленных функций органов государственной власти субъектов Российской Федерации  и органов местного самоуправления",917,1,4,20000,0,20490.5,21389.4]
["Центральный аппарат",917,1,4,20400,0,20490.5,21389.4]
["Выполнение функций органами местного самоуправления",917,1,4,20400,"500",20490.5,21389.4]
["Региональные целевые программы",917,1,4,5220000,0,0,0]
["Долгосрочная целевая программа «Энергосбережение и повышение энергетической эффективности на территории Иркутской области на 2011-2015 годы и на период до 2020 года»",917,1,4,5225400,0,0,0]
["Выполнение функций органами местного самоуправления",917,1,4,5225400,"500",0,0]
["Целевые программы муниципальных образований",917,1,4,7950000,0,0,0]
["Долгосрочная целевая программа энергосбережения и повышения энергетической эффективности Черемховского районного муниципального образования на 2010-2015 годы",917,1,4,7951100,0,0,0]
["Мероприятия по повышению энергетической эффективности",917,1,4,7951100,"451",0,0]
["Обеспечение проведения выборов и референдумов",917,1,7,0,0,2500,0]
["Проведение выборов и референдумов",917,1,7,200000,0,2500,0]
["Проведение выборов и референдумов",917,1,7,200000,0,2500,0]
["Проведение выборов в представительные органы муниципального образования",917,1,7,200002,0,2500,0]
["Выполнение функций органами местного самоуправления",917,1,7,200002,"500",2500,0]
["Резервные фонды",917,1,11,0,0,300,300]
["Резервные фонды",917,1,11,700000,0,300,300]
["Резервные фонды местных администраций",917,1,11,700500,0,300,300]
["Выполнение функций органами местного самоуправления",917,1,11,700500,"500",300,300]
["Другие общегосударственные вопросы",917,1,13,0,0,2788.5,2814.4]
["Руководство и управление в сфере установленных функций органов государственной власти субъектов Российской Федерации  и органов местного самоуправления",917,1,13,20000,0,2617.5,2643.4]
["Осуществление областных государственных полномочий по хранению, комплектованию, учету и использованию архивных документов, относящихся к государственной собственности Иркутской области",917,1,13,24000,0,1086,1086]
["Выполнение функций органами местного самоуправления",917,1,13,24000,"500",1086,1086]
["Осуществление областных государственных полномочий по определению персонального состава и обеспечению деятельности административных комиссий",917,1,13,24300,0,563.6,563.6]
["Выполнение функций органами местного самоуправления",917,1,13,24300,"500",563.6,563.6]
["Осуществление отдельных государственных полномочий в области производства и оборота этилового спирта, алкогольной и спиртосодержащей продукции",917,1,13,24400,0,404.3,430.2]
["Выполнение функций органами местного самоуправления",917,1,13,24400,"500",404.3,430.2]
["Осуществление отдельных областных государственных полномочий в области охраны труда",917,1,13,24500,0,563.6,563.6]
["Выполнение функций органами местного самоуправления",917,1,13,24500,"500",563.6,563.6]
["Реализация государственных функций, связанных с общегосударственным управлением",917,1,13,920000,0,131,131]
["Выполнение других обязательств государства",917,1,13,920300,0,131,131]
["Выполнение функций органами местного самоуправления",917,1,13,920300,"500",131,131]
["Целевые программы муниципальных образований",917,1,13,7950000,0,40,40]
["Долгосрочная целевая программа \"Улучшение условий и охраны труда в Черемховском районе на 2011-2013гг.\"",917,1,13,7951400,0,0,0]
["Выполнение функций органами местного самоуправления",917,1,13,7951400,"500",0,0]
["Комплексная программа \"Профилактика правонарушений в Черемховском районном муниципальном образовании на 2013-2016 годы\"",917,1,13,7952600,0,40,40]
["Выполнение функций органами местного самоуправления",917,1,13,7952600,"500",40,40]
["Долгосрочная целевая программа \"Поддержка молодых педагогов на территории Черемховского районного муниципального образования\" на 2012-2013 годы",917,1,13,7952700,0,0,0]
["Выполнение функций органами местного самоуправления",917,1,13,7952700,"500",0,0]
["НАЦИОНАЛЬНАЯ ЭКОНОМИКА",917,4,0,0,0,3198.1,2406.5]
["Дорожное хозяйство(дорожные фонды)",917,4,9,0,0,3048.1,2406.5]
["Региональные целевые программы",917,4,9,5220000,0,0,0]
["Долгосрочная целевая программа \"Развитие автомобильных дорог общего пользования регионального или межмуниципального значения и местного значения в Иркутской области на 2011 - 2014 годы\"",917,4,9,5224700,0,0,0]
["Выполнение функций органами местного самоуправления",917,4,9,5224700,"500",0,0]
["Целевые программы муниципальных образований",917,4,9,7950000,0,3048.1,2406.5]
["Долгосрочная целевая программа \"Развитие автомобильных дорог Черемховского районного муниципального образования на 2013-2015 годы\"",917,4,9,7952300,0,3048.1,2406.5]
["Выполнение функций органами местного самоуправления",917,4,9,7952300,"500",3048.1,2406.5]
["Другие вопросы в области национальной экономики",917,4,12,0,0,150,0]
["Целевые программы муниципальных образований",917,4,12,7950000,0,150,0]
["Долгосрочная целевая программа \"Поддержка и развитие малого и среднего предпринимательства в Черемховском районе\" на 2013-2014 годы",917,4,12,7952200,0,150,0]
["Выполнение функций органами местного самоуправления",917,4,12,7952200,"500",150,0]
["ЖИЛИЩНО-КОММУНАЛЬНОЕ ХОЗЯЙСТВО",917,5,0,0,0,0,0]
["Жилищное хозяйство",917,5,1,0,0,0,0]
["Поддержка жилищного хозяйства",917,5,1,3500000,0,0,0]
["Мероприятия в области жилищного хозяйства",917,5,1,3500300,0,0,0]
["Выполнение функций органами местного самоуправления",917,5,1,3500300,"500",0,0]
["ОБРАЗОВАНИЕ",917,7,0,0,0,86,86]
["Профессиональная подготовка, переподготовка и повышение квалификации",917,7,5,0,0,0,0]
["Мероприятия по переподготовке и повышению квалификации",917,7,5,4340000,0,0,0]
["Выполнение функций органами местного самоуправления",917,7,5,4340000,"500",0,0]
["Молодежная политика и оздоровление детей",917,7,7,0,0,86,86]
["Организационно-воспитательная работа с молодежью",917,7,7,4310000,0,46,46]
["Проведение мероприятий для детей и молодежи",917,7,7,4310100,0,46,46]
["Проведение мероприятия для детей и молодежи",917,7,7,4310100,"447",46,46]
["Целевые программы муниципальных образований",917,7,7,7950000,0,40,40]
["Долгосрочная целевая программа \"Комплексные меры профилактики злоупотребления наркотическими средствами и психотропными веществами в Черемховском районном муниципальном образовании на 2011-2013 гг.\"",917,7,7,7951300,0,0,0]
["Выполнение функций органами местного самоуправления",917,7,7,7951300,"500",0,0]
["Долгосрочная целевая программа \"Молодежная политика в Черемховском районном муниципальном образовании\" на 2013-2015 гг.",917,7,7,7952500,0,40,40]
["Проведение мероприятия для детей и молодежи",917,7,7,7952500,"447",40,40]
["ЗДРАВООХРАНЕНИЕ",917,9,0,0,0,0,0]
["Другие вопросы в области здравоохранения",917,9,9,0,0,0,0]
["Целевые программы муниципальных образований",917,9,9,7950000,0,0,0]
["Ведомственная целевая программа \"Обеспечение учреждений здравоохранения Черемховского районного муниципального образования квалифицированными медицинскими кадрами\" на 2013 год",917,9,9,7952800,0,0,0]
["Выполнение функций органами местного самоуправления",917,9,9,7952800,"500",0,0]
["Социальная политика",917,10,0,0,0,5315.6,5364.2]
["Пенсионное обеспечение",917,10,1,0,0,2980,2980]
["Доплаты к пенсиям, дополнительное пенсионное обеспечение ",917,10,1,4910000,0,2980,2980]
["Доплаты к пенсиям государственных служащих субъектов Российской Федерации и муниципальных служащих ",917,10,1,4910100,0,2980,2980]
["Социальные выплаты",917,10,1,4910100,"005",2980,2980]
["Социальное обеспечение населения",917,10,3,0,0,1157.5,1206.0999999999999]
["Реализация государственных функций в области социальной политики",917,10,3,5140000,0,882.1,910]
["Мероприятия в области социальной политики",917,10,3,5140100,0,882.1,910]
["Социальные выплаты",917,10,3,5140100,"005",882.1,910]
["Региональные целевые программы",917,10,3,5220000,0,0,0]
["Областная государственная социальная программа \"Молодым семьям - доступное жилье\" на 2005-2019 годы",917,10,3,5222200,0,0,0]
["Социальные выплаты",917,10,3,5222200,"005",0,0]
["Целевые программы муниципальных образований",917,10,3,7950000,0,275.39999999999998,296.10000000000002]
["Долгосрочная целевая программа \"Молодым семьям-доступное жилье\" на 2012-2019 гг.",917,10,3,7952100,0,275.39999999999998,296.10000000000002]
["Социальные выплаты",917,10,3,7952100,"005",275.39999999999998,296.10000000000002]
["Другие вопросы в области социальной политики",917,10,6,0,0,1178.0999999999999,1178.0999999999999]
["Руководство и управление в сфере установленных функций органов государственной власти субъектов Российской Федерации  и органов местного самоуправления",917,10,6,20000,0,1078.0999999999999,1078.0999999999999]
["Осуществление областных государственных полномочий по определению персонального состава и обеспечению деятельности районных (городских), районных в городах комиссий по делам несовершеннолетних и защите их прав",917,10,6,24100,0,1078.0999999999999,1078.0999999999999]
["Выполнение функций органами местного самоуправления",917,10,6,24100,"500",1078.0999999999999,1078.0999999999999]
["Целевые программы муниципальных образований",917,10,6,7950000,0,100,100]
["Муниципальная целевая программа \"Поддержка, проводимых мероприятий, посвященных Дням воинской славы, памятным датам России и работе с ветеранами и инвалидами в черемховском районе на 2013-2015 гг.\"",917,10,6,7952400,0,100,100]
["Выполнение функций органами местного самоуправления",917,10,6,7952400,"500",100,100]
["ФИЗИЧЕСКАЯ КУЛЬТУРА И СПОРТ",917,11,0,0,0,82.4,82.4]
["Физическая культура",917,11,1,0,0,82.4,82.4]
["Физкультурно-оздоровительная работа и спортивные мероприятия",917,11,1,5120000,0,82.4,82.4]
["Мероприятия в области спорта, физической культуры и туризма",917,11,1,5129700,0,82.4,82.4]
["Выполнение функций органами местного самоуправления",917,11,1,5129700,"500",82.4,82.4]
["Целевые программы муниципальных образований",917,11,1,7950000,0,0,0]
["Долгосрочная целевая программа \"Развитие физической культуры, спорта и туризма в Черемховском районном муниципальном образовании на 2011-2013 гг.\"",917,11,1,7951200,0,0,0]
["Выполнение функций органами местного самоуправления",917,11,1,7951200,"500",0,0]
["Управление жилищно-коммунального хозяйства, строительства, транспорта, связи и экологии АЧРМО",918,0,0,0,0,12176.3,12731.6]
["ОБЩЕГОСУДАРСТВЕННЫЕ ВОПРОСЫ",918,1,0,0,0,32.5,32.5]
["Другие общегосударственные вопросы",918,1,13,0,0,32.5,32.5]
["Реализация государственных функций, связанных с общегосударственным управлением",918,1,13,920000,0,32.5,32.5]
["Выполнение других обязательств государства",918,1,13,920300,0,32.5,32.5]
["Выполнение функций органами местного самоуправления",918,1,13,920300,"500",32.5,32.5]
["НАЦИОНАЛЬНАЯ ЭКОНОМИКА",918,4,0,0,0,0,0]
["Другие вопросы в области национальной экономики",918,4,12,0,0,0,0]
["Мероприятия в области строительства, архитектуры и градостроительства",918,4,12,3380000,0,0,0]
["Подготовка проектов правил землепользования и застройки муниципальных образований Черемховского районного муниципального образования",918,4,12,3380200,0,0,0]
["Выполнение функций органами местного самоуправления",918,4,12,3380200,"500",0,0]
["ЖИЛИЩНО-КОММУНАЛЬНОЕ ХОЗЯЙСТВО",918,5,0,0,0,4258,4464.7]
["Другие вопросы в области жилищно-коммунального хозяйства",918,5,5,0,0,4258,4464.7]
["Руководство и управление в сфере установленных функций органов государственной власти субъектов Российской Федерации  и органов местного самоуправления",918,5,5,20000,0,4258,4464.7]
["Центральный аппарат",918,5,5,20400,0,4258,4464.7]
["Выполнение функций органами местного самоуправления",918,5,5,20400,"500",4258,4464.7]
["ОХРАНА ОКРУЖАЮЩЕЙ СРЕДЫ",918,6,0,0,0,0,0]
["Другие вопросы в области охраны окружающей среды",918,6,5,0,0,0,0]
["Состояние окружающей среды и природопользования",918,6,5,4100000,0,0,0]
["Природоохранные мероприятия",918,6,5,4100100,0,0,0]
["Выполнение функций органами местного самоуправления",918,6,5,4100100,"500",0,0]
["Региональные целевые программы",918,6,5,5220000,0,0,0]
["Долгосрочная целевая программа Иркутской области «Защита окружающей среды в Иркутской области на 2011-2015 годы»",918,6,5,5222500,0,0,0]
["Подпрограмма «Отходы производства и потребления в Иркутской области на 2011-2015 годы»",918,6,5,5222502,0,0,0]
["Выполнение функций органами местного самоуправления",918,6,5,5222502,"500",0,0]
["ОБРАЗОВАНИЕ",918,7,0,0,0,0,0]
["Профессиональная подготовка, переподготовка и повышение квалификации",918,7,5,0,0,0,0]
["Мероприятия по переподготовке и повышению квалификации",918,7,5,4340000,0,0,0]
["Выполнение функций органами местного самоуправления",918,7,5,4340000,"500",0,0]
["Социальная политика",918,10,0,0,0,7885.8,8234.4]
["Социальное обеспечение населения",918,10,3,0,0,7885.8,8234.4]
["Руководство и управление в сфере установленных функций органов государственной власти субъектов Российской Федерации  и органов местного самоуправления",918,10,3,20000,0,7885.8,8234.4]
["Осуществление областных государственных полномочий по предоставлению гражданам субсидий на оплату жилых помещений и коммунальных услуг",918,10,3,24700,0,7885.8,8234.4]
["Содержание и обеспечение деятельности муниципальных служащих, осуществляющих областные государственные полномочия по предоставлению гражданам субсидий на оплату жилых помещений и коммунальных услуг",918,10,3,24701,0,771.9,771.9]
["Выполнение функций органами местного самоуправления",918,10,3,24701,"500",771.9,771.9]
["Предоставление гражданам субсидий на оплату жилых помещений и коммунальных услуг",918,10,3,24702,0,7113.9,7462.5]
["Социальные выплаты",918,10,3,24702,"005",7113.9,7462.5]
["Контрольно-счетная палата ЧРМО",923,0,0,0,0,1816.6,1907.3]
["ОБЩЕГОСУДАРСТВЕННЫЕ ВОПРОСЫ",923,1,0,0,0,1816.6,1907.3]
["Обеспечение деятельности финансовых, налоговых и таможенных органов и органов финансового (финансово-бюджетного) надзора",923,1,6,0,0,1816.6,1907.3]
["Руководство и управление в сфере установленных функций органов государственной власти субъектов Российской Федерации  и органов местного самоуправления",923,1,6,20000,0,1816.6,1907.3]
["Центральный аппарат",923,1,6,20400,0,1031.4000000000001,1082.0999999999999]
["Выполнение функций органами местного самоуправления",923,1,6,20400,"500",1031.4000000000001,1082.0999999999999]
["Руководитель контрольно-счетной палаты муниципального образования и его заместители",923,1,6,22500,0,785.2,825.2]
["Выполнение функций органами местного самоуправления",923,1,6,22500,"500",785.2,825.2]
["ОБРАЗОВАНИЕ",923,7,0,0,0,0,0]
["Профессиональная подготовка, переподготовка и повышение квалификации",923,7,5,0,0,0,0]
["Мероприятия по переподготовке и повышению квалификации",923,7,5,4340000,0,0,0]
["Выполнение функций органами местного самоуправления",923,7,5,4340000,"500",0,0]
["ИТОГО",{"$nulls":5},452326,448058]
[]
["И.о.начальника финуправления",{"$nulls":5},"С.М. Татина"]

{"sheet":"прил10","index":8,"n_rows":66,"n_cols":10,"rows_kept":66,"cut":false,"hidden":false,"merged":[[62,0,62,1],[62,2,62,6],[20,2,24,2],[26,2,36,2],[37,0,39,0],[37,1,39,1],[40,0,61,0],[40,1,61,1],[14,0,14,7],[15,6,15,7],[16,0,17,0],[16,1,17,1],[16,2,17,2],[16,3,16,6],[16,7,17,7]]}
{"$rows_empty":14}
["Распределение бюджетных ассигнований на реализацию долгосрочных районных целевых программ Черемховского районного муниципального образования на 2013 год"]
[{"$nulls":6},"(тыс. рублей)"]
["№ п/п","Наименование программы","Исполнители","Бюджетная классификация",null,null,null,"сумма "]
[null,null,null,"ГРБС","РзПр","ЦСР","ВР"]
[1,2,3,4,5,6,7,8]
[1,"Развитие культуры в Черемховском районном муниципальном образовании на период 2012-2016 гг.","Отдел по культуре и библиотечному обслуживанию АЧРМО",904,"0801, 0702",7952000,"023",1023.8]
[2,"Ветхие школы Черемховского района на 2011-2013 гг.","Отдел образования АЧРМО",907,"0702",7951500,"022",900]
[3,"Совершенствование дошкольного образования Черемховского района на 2011-2014 гг.",null,907,"0701",7951800,"022",350]
[4,"Совершенствование организации питания в образовательных учреждениях Черемховского района на 2011-2013 гг.",null,907,"0702",7951600,"022",1000]
[5,"Развитие дошкольного образования на 2011-2014 гг.",null,907,"0701",7951700,"022",1102]
[6,"\"Безопасность образовательных учреждений\" 2010-2014гг.",null,907,"0701, 0702",7951000,"450",1700,null," "]
[7,"Инвентаризация муниципальных объектов недвижимости Черемховского районного муниципального образования на 2012-2014 годы","КУМИ",913,"0113, 0412, 0409",7951900,"500",2468.6]
[8,"Молодым семьям доступное жилье на 2012-2019гг.","Администрация ЧРМО ",917,1003,7952100,"005",360]
[9,"Комплексные меры профилактики злоупотребления наркотическими средствами, психотропними веществами в Черемховском районном муниципальном образовании на 2011-2013 гг.",null,917,"0707",7951300,500,10]
[10,"Молодежная политика в Черемховском районном муниципальном образовании на 2013-2015 ",null,917,"0707",7952500,447,40]
[11,"Развитие физической культуры, спорта и туризма в Черемховском районном муниципальном образовании на 2011-2013гг.",null,917,"1101",7951200,500,100]
[12,"Поддержка и развитие малого и среднего предпринимательства в Черемховском районе на 2013-2014 гг.",null,917,"0412",7952200,500,100]
[13,"Поддержка, проводимых мероприятий, посвященных Дням воинской славы, памятным датам России и работе с ветеранами и инвалидами в Черемховском районе на 2013-2015 гг.",null,917,"1006",7952400,500,100]
[14,"Улучшение условий и охраны труда в Черемховском районе на 2011-2013 гг",null,917,"0113",7951400,500,15]
[15,"Развитие автомобильных дорог Черемховского районного муниципального образования на 2013-2015 гг.",null,917,"0409",7952300,500,202.5]
[16,"Поддержка молодых педагогов на территории Черемховского районного муниципального образования на 2012-2013 гг.",null,917,"0113",7952700,500,100]
[17,"Обеспечение учреждений здравоохранения Черемховского районного муниципального образования квалифицированными медицинскими кадрами на 2013 год",null,917,"0909",7952800,500,200]
[18,"Профилактика правонарушений в Черемховском районном муниципальном образовании на 2013-2016 гг.",null,917,"0113",7952600,500,40]
[19,"Программа повышения энергетической эффективности Черемховского районного муниципального образования на 2010-2015 гг","Отдел образования АЧРМО",907,"0701, 0702",7951100,"451",600]
[null,null,"Отдел по культуре и библиотечному обслуживанию АЧРМО",903,"0800",7951099,"451",282]
[null,null,"Администрация ЧРМО ",917,"0104",7951100,"451",18.3]
[20,"Повышение эффективности бюджетных расходов Черемховского районного муниципального образования на 2012-2013 годы","Финансовое управление АЧРМО",910,"0106",7950200,"500",200]
[null,null,"Отдел образования АЧРМО",907,"0701, 0702",7950200,"001",18395.900000000001]
[null,null,"Отдел по культуре и библиотечному обслуживанию АЧРМО",904,"0702, 0801",7950200,"001",1458]
[null,null,"Муниципальные образования района, Всего, в том числе",{"$nulls":4},{"$f":"SUM(H45:H62)","v":4891}]
[null,null,"Алехинское сельское поселение",910,"1403",7950200,"017",391]
[null,null,"Бельское сельское поселение",910,"1403",7950200,"017",307]
[null,null,"Булайское сельское поселение",910,"1403",7950200,"017",351]
[null,null,"Голуметское сельское поселение",910,"1403",7950200,"017",223]
[null,null,"Зерновское сельское поселение",910,"1403",7950200,"017",234]
[null,null,"Каменно-Ангарское сельское поселение",910,"1403",7950200,"017",301]
[null,null,"Лоховское сельское поселение",910,"1403",7950200,"017",238]
[null,null,"Михайловское городское поселение",910,"1403",7950200,"017",347]
[null,null,"Нижнеиретское сельское поселение",910,"1403",7950200,"017",196]
[null,null,"Новогромовское сельское поселение",910,"1403",7950200,"017",174]
[null,null,"Новостроевское сельское поселение",910,"1403",7950200,"017",203]
[null,null,"Онотское сельское поселение",910,"1403",7950200,"017",309]
[null,null,"Парфеновское сельское поселение",910,"1403",7950200,"017",295]
[null,null,"Саянское сельское поселение",910,"1403",7950200,"017",217]
[null,null,"Тальниковское сельское поселение",910,"1403",7950200,"017",264]
[null,null,"Тунгусское сельское поселение",910,"1403",7950200,"017",275]
[null,null,"Узколугское сельское поселение",910,"1403",7950200,"017",288]
[null,null,"Черемховское сельское поселение",910,"1403",7950200,"017",278]
["Всего",{"$nulls":6},{"$f":"SUM(H20:H44)","v":35657.1}]
[]
[]
["И.о. начальника финансового управления",{"$nulls":6},"С.М. Татина"]

{"sheet":"прил 18 источн.13","index":9,"n_rows":31,"n_cols":3,"rows_kept":31,"cut":false,"hidden":false,"merged":[[13,0,13,2]]}
{"$rows_empty":13}
["Источники внутреннего финансирования дефицита бюджета Черемховского районного муниципального образования на 2013 год"]
[]
[null,null,"(тыс.рублей)"]
["Наименование","Код","Сумма"]
["Источники внутреннего финансирования дефицита бюджета","000 01 00 00 00 00 0000 000",{"$f":"C19+C25","v":19503.168849999958}]
["Кредиты кредитных организаций в валюте Российской Федерации","910 01 02 00 00 00 0000 000",{"$f":"C20+C22","v":4061.4479500000002}]
["Получение кредитов от кредитных организаций в валюте Российской Федерации","910 01 02 00 00 00 0000 700",{"$f":"C21","v":4061.4479500000002}]
["Кредиты, полученные в валюте Российской Федерации от кредитных организаций бюджетами муниципальных районнов","910 01 02 00 00 05 0000 710",4061.4479500000002]
["Бюджетные кредиты от других бюджетов бюджетной системы Российской Федерации ","910 01 03 00 00 00 0000 000",0]
["Погашение бюджетных кредитов, полученных от других бюджетов бюджетной системы Российской Федерации в валюте Российской Федерации","910 01 03 00 00 00 0000 800",0]
["Погашение бюджетами муниципальных районнов кредитов от других бюджетов бюджетной системы Российской Федерации в валюте Российской Федерации","910 01 03 00 00 05 0000 810",0]
["Изменение остатков средств на счетах по учету средств бюджетов","000 01 05 00 00 00 0000 000",{"$f":"C26+C28","v":15441.720899999957}]
["Увеличение остатков средств бюджетов","000 01 05 00 00 00 0000 500",{"$f":"C27","v":-611065.19310000003}]
["Увеличение прочих остатков  средств бюджетов","000 01 05 02 00 00 0000 500",-611065.19310000003]
["Уменьшение остатков средств бюджетов","000 01 05 00 00 00 0000 600",{"$f":"C29","v":626506.91399999999}]
["Уменьшение прочих остатков средств бюджетов","000 01 05 02 00 00 0000 600",626506.91399999999]
[]
["И.о.начальника финуправления",null,"С.М.Татина"]